{"text_format":"1","workbook":"xlsx","n_sheets":2,"sheets":["User Input","Bin Hours"],"not_rendered":{"charts":2,"images":0,"macros":1,"external_links":0,"defined_names":0,"comments":0,"pivot_tables":0},"unopened":[],"bounds":{"document_bytes":16777216,"sheet_cells":100000,"rows_first":2000,"rows_last":500,"rows_between":2000,"halvings":0,"cell_chars":16384,"cell_head_chars":4096},"cells_cut":0,"cells_raw":0,"read":"whole","date_system":"1900"}

{"sheet":"User Input","index":0,"n_rows":28,"n_cols":25,"rows_kept":28,"cut":false,"hidden":false,"merged":[]}
[]
[null,null,null,"Return Air Temperature:",{"$f":"Y16","v":85},null,null,"Percent Unit Load:",{"$f":"Y15/100","v":0.7}]
[]
[]
[null,null,null,null,null,null,null,null,null,null,null,null,null,null,null,null,null,null,"Atlanta, GA",null,2,null,3,{"$f":"INDIRECT(\"V\"&W5+8)","v":"DA125"}]
[null,null,null,null,null,null,null,null,null,null,null,null,null,null,null,null,null,null,"Boston, MA"]
[null,null,null,null,null,null,null,null,null,null,null,null,null,null,null,null,null,null,"Charlotte, NC",null,null,null,null,{"$f":"INDIRECT(\"S\"&U5+4)","v":"Boston, MA"}]
[null,null,null,null,null,null,null,null,null,null,null,null,null,null,null,null,null,null,"Chicago, IL"]
[null,null,null,null,null,null,null,null,null,null,null,null,null,null,null,null,null,null,"Columbus, OH",null,null,"DA080"]
[null,null,null,null,null,null,null,null,null,null,null,null,null,null,null,null,null,null,"Dallas, TX",null,null,"DA085"]
[null,null,null,null,null,null,null,null,null,null,null,null,null,null,null,null,null,null,"Denver, CO",null,null,"DA125"]
[null,null,null,null,null,null,null,null,null,null,null,null,null,null,null,null,null,null,"Kansas City, MO",null,null,"DA150"]
[null,null,null,null,null,null,null,null,null,null,null,null,null,null,null,null,null,null,"Los Angeles, CA"]
[null,null,null,null,null,null,null,null,null,null,null,null,null,null,null,null,null,null,"Milwaukee, WI"]
[null,null,null,null,null,null,null,null,null,null,null,null,null,null,null,null,null,null,"Minneapolis, MN",null,null,null,null,null,70]
[null,null,null,null,null,null,null,null,null,null,null,null,null,null,null,null,null,null,"New York, NY",null,null,null,null,null,85]
[null,null,null,null,null,null,null,null,null,null,null,null,null,null,null,null,null,null,"Phoenix, AZ"]
[null,null,null,null,null,null,null,null,null,null,null,null,null,null,null,null,null,null,"Portland, OR"]
[null,null,null,null,null,null,null,null,null,null,null,null,null,null,null,null,null,null,"San Francisco, CA"]
[null,null,null,null,null,null,null,null,null,null,null,null,null,null,null,null,null,null,"Seattle, WA"]
[null,null,null,null,null,null,null,null,null,null,null,null,null,null,null,null,null,null,"Washington D.C."]
[null,null,null,null,null,null,null,null,null,null,null,null,null,null,null,null,null,null,"Canada - Edmonton"]
[null,null,null,null,null,null,null,null,null,null,null,null,null,null,null,null,null,null,"Canada - Toronto"]
[null,null,null,null,null,null,null,null,null,null,null,null,null,null,null,null,null,null,"Canada - Vancouver"]
[]
[]
[]
[null,null,"Select Unit:",null,null,null,"Rated Capacity:",{"$f":"'Bin Hours'!Q50&\" kW Sensible\"","v":"130 kW Sensible"},null,null,null,"Operating Capacity:",{"$f":"'Bin Hours'!Q51&\" kW Sensible\"","v":"91 kW Sensible"}]

{"sheet":"Bin Hours","index":1,"n_rows":845,"n_cols":56,"rows_kept":845,"cut":false,"hidden":true,"merged":[]}
[null,2,3,4,5,6,7,8,9,10,11,12,13,14,15,16,17,18,19,20,21,null,null,null,null,null,{"$f":"IFERROR(INDIRECT(\"AG\"&Z4),\"\")","v":"BOSTON"},null,null,"Canada"]
[null,"below 5","5-9","10-14","15-19","20-24","25-29","30-34","35-39","40-44","45-49","50-54","55-59","60-64","65-69","70-74","75-79","80-84","85-89","90-94","above 95",null,null,null,null,null,"CHICOPEE",null,null,null,null,null,null,null,null,null,2,3,4,5,6,7,8,9,10,11,12,13,14,15,16,17,18,19,20,21]
["Phoenix, AZ",0,0,0,0,0,3,24,123,318,559,750,812,782,744,731,721,752,715,619,1106,"",24,{"$f":"INDIRECT(\"AD\"&W3)","v":"Massachusetts"},{"$f":"MATCH(X3,AH:AH,0)","v":248},null,"HANSCOM AFB",null,null,"Alabama",null,"citycode","city","state","source",null,"below 5","5-9","10-14","15-19","20-24","25-29","30-34","35-39","40-44","45-49","50-54","55-59","60-64","65-69","70-74","75-79","80-84","85-89","90-94","above 95"]
["Los Angeles, CA",0,0,0,0,0,0,0,4,42,249,868,1884,2364,1878,1040,312,85,24,9,3,"",1,{"$f":"INDIRECT(\"AA\"&W4)","v":"BOSTON"},{"$f":"COUNTIF(AH:AH,X3)","v":6},{"$f":"Y3","v":248},"FALMOUTH",null,null,"Alaska",null,1,"Anniston","Alabama","ANNISTON/CALHOUN","Alabama - Anniston",1,5,7,29,69,176,312,427,545,630,685,748,824,972,1271,829,567,423,194,46]
["San Francisco, CA",0,0,0,0,0,1,6,66,354,973,2267,2418,1439,742,322,97,46,20,7,1,"",null,{"$f":"X3&\" - \"&X4","v":"Massachusetts - BOSTON"},{"$f":"Y3+Y4-1","v":253},{"$f":"IFERROR(IF(Z4+1<=Y$5,Z4+1,\"\"),\"\")","v":249},"SOUTH WEYMOUTH",null,null,"Arizona",null,2,"BIRMINGHAM","Alabama","BIRMINGHAM","Alabama - BIRMINGHAM",2,4,11,32,78,177,290,418,515,604,676,726,866,940,1234,889,625,432,194,45]
["Denver, CO",91,77,118,191,358,548,703,727,710,698,735,738,785,699,524,414,321,209,95,19,"",null,null,null,{"$f":"IFERROR(IF(Z5+1<=Y$5,Z5+1,\"\"),\"\")","v":250},"WORCESTER",null,null,"Arkansas",null,3,"CALHOUN","Alabama","ANNISTON","Alabama - CALHOUN",1,5,7,29,69,176,312,427,545,630,685,748,824,972,1271,829,567,423,194,46]
["Washington D.C.",15,23,59,130,253,418,617,692,704,678,697,676,741,856,845,563,420,257,98,19,"",null,null,null,251,"",null,null,"California",null,4,"DOTHAN","Alabama","DOTHAN","Alabama - DOTHAN",0,0,1,5,14,50,131,243,377,499,648,720,859,966,1411,1220,771,527,268,49]
["Atlanta, GA",3,4,12,28,60,144,295,428,549,643,699,768,851,976,1225,878,636,386,148,30,"",null,null,null,252,"",null,null,"Colorado",null,5,"FT RUCKER","Alabama","CAIRNS AAF","Alabama - FT RUCKER",0,0,1,5,16,62,157,275,389,518,636,720,859,977,1359,1189,745,532,269,50]
["Chicago, IL",162,123,162,236,351,519,778,780,627,589,605,626,699,696,689,540,340,163,62,12,"",null,null,null,253,"",null,null,"Connecticut",null,6,"HUNTSVILLE","Alabama","MADISON","Alabama - HUNTSVILLE",5,8,17,49,107,197,368,478,567,652,697,768,835,930,1200,782,556,366,149,30]
["Kansas City, MO",65,71,114,167,261,397,590,598,582,565,598,655,746,796,830,690,512,313,147,61,"",null,null,null,"","",null,null,"D.C.",null,7,"MAXWELL AFB","Alabama","MONTGOMERY","Alabama - MAXWELL AFB",0,0,2,4,15,63,155,274,411,544,651,714,806,886,1187,1276,809,564,315,86]
["Boston, MA",15,37,88,181,284,441,668,788,832,760,766,777,787,804,688,422,247,121,44,8,"",null,null,null,"","",null,null,"Delaware",null,8,"MOBILE","Alabama","BATES","Alabama - MOBILE",0,1,3,5,15,57,138,236,353,471,623,691,851,1002,1428,1338,777,520,229,22]
["Minneapolis, MN",476,210,260,356,424,554,716,630,516,499,530,613,687,688,651,450,299,145,46,11,"",null,null,null,"","",null,null,"Florida",null,9,"MONTGOMERY","Alabama","DANNELLY","Alabama - MONTGOMERY",0,1,3,8,32,104,221,331,450,569,677,722,845,946,1330,1029,671,498,269,55]
["New York, NY",5,16,40,104,215,349,517,739,836,826,818,737,767,856,886,619,295,104,28,5,"",null,null,null,"","",null,null,"Georgia",null,10,"MUSCLE SHOALS","Alabama","MUSCLE SHOALS","Alabama - MUSCLE SHOALS",5,6,16,50,108,204,382,472,557,654,699,725,841,921,1123,791,578,387,194,47]
["Charlotte, NC",0,4,7,32,75,175,358,497,616,679,723,752,841,963,1153,802,571,350,137,27,"",null,null,null,"","",null,null,"Hawaii",null,11,"TUSCALOOSA","Alabama","TUSCALOOSA","Alabama - TUSCALOOSA",1,3,8,21,65,167,298,381,503,579,680,709,822,883,1202,969,653,476,279,65]
["Columbus, OH",64,69,119,181,299,463,691,705,630,633,654,671,767,809,813,551,396,190,52,7,"",null,null,null,"","",null,null,"Idaho",null,12,"ANCHORAGE","Alaska","ANCHORAGE","Alaska - ANCHORAGE",383,259,360,503,630,795,919,777,669,788,1001,955,495,175,45,7,0,0,0,0]
["Portland, OR",0,0,4,19,34,95,324,634,1094,1356,1246,1243,1063,646,435,264,164,88,36,15,"",null,null,null,"","",null,null,"Illinois",null,13,"ANIAK","Alaska","ANIAK","Alaska - ANIAK",1045,376,414,442,456,571,792,848,708,816,906,656,352,159,72,24,6,0,0,0]
["Dallas, TX",0,2,7,23,45,99,221,323,457,538,624,651,721,819,947,1034,911,615,452,270,"",null,null,null,"","",null,null,"Indiana",null,14,"ANNETTE ISLAND","Alaska","ANNETTE ISLAND","Alaska - ANNETTE ISLAND",0,8,27,56,106,237,590,1174,1639,1567,1554,1089,435,172,69,29,8,1,0,0]
["Seattle, WA",0,0,4,11,24,75,266,684,1249,1534,1477,1341,918,526,330,185,93,32,9,1,"",null,null,null,"","",null,null,"Iowa",null,15,"BARROW","Alaska","POST-ROGERS","Alaska - BARROW",3763,415,404,404,455,599,1146,818,385,197,103,48,17,5,1,0,0,0,0,0]
["Milwaukee, WI",180,131,195,262,398,564,816,826,660,616,628,615,736,739,630,390,237,97,33,8,"",null,null,null,"","",null,null,"Kansas",null,16,"BARTER ISLAND","Alaska","BARTER ISLAND","Alaska - BARTER ISLAND",3627,439,412,392,420,535,1153,981,473,204,86,30,7,1,0,0,0,0,0,0]
["Canada - Edmonton",798,275,348,411,345,633,793,739,509,748,878,841,617,314,302,144,48,6,1,0,"",null,null,null,"","",null,null,"Kentucky",null,17,"BETHEL","Alaska","BETHEL","Alaska - BETHEL",1291,370,429,446,511,632,974,771,617,825,922,536,255,123,45,11,2,0,0,0]
["Canada - Toronto",148,167,263,368,337,592,890,859,519,684,697,754,761,516,601,363,178,44,17,2,"",null,null,null,"","",null,null,"Louisiana",null,18,"BETTLES FIELD","Alaska","BETTLES FIELD","Alaska - BETTLES FIELD",2445,473,446,437,393,408,488,454,457,569,629,580,418,275,172,87,25,5,0,0]
["Canada - Vancouver",0,1,12,33,50,162,413,838,1017,1628,1426,1405,1008,425,270,63,9,0,0,0,"",null,null,null,"","",null,null,"Maine",null,19,"CAPE LISBURNE","Alaska","CAPE LISBURNE","Alaska - CAPE LISBURNE",2652,507,408,439,516,704,915,879,711,548,317,128,29,7,0,0,0,0,0,0]
[null,null,null,null,null,null,null,null,null,null,null,null,null,null,null,null,null,null,null,null,null,null,null,null,null,"","",null,null,"Maryland",null,20,"CAPE NEWENHAM","Alaska","CAPE NEWENHAM","Alaska - CAPE NEWENHAM",516,225,266,341,442,802,1409,1237,959,1338,941,237,39,7,0,0,0,0,0,0]
[null,0,5,10,15,20,25,30,35,40,45,50,55,60,65,70,75,80,85,90,95,null,null,null,null,"","",null,null,"Massachusetts",null,21,"CAPE ROMANZOFF","Alaska","CAPE ROMANZOFF","Alaska - CAPE ROMANZOFF",874,373,416,513,650,951,1183,811,876,1122,643,245,75,20,6,2,0,0,0,0]
[{"$f":"X5","v":"Massachusetts - BOSTON"},{"$f":"VLOOKUP($A25,$AJ2:$BD845,AK2,FALSE)","v":15},{"$f":"VLOOKUP($A25,$AJ2:$BD845,AL2,FALSE)","v":37},88,181,284,441,668,788,832,760,766,777,787,804,688,422,247,121,44,8,null,null,null,null,"","",null,null,"Michigan",null,22,"COLD BAY","Alaska","COLD BAY","Alaska - COLD BAY",15,48,106,218,341,622,1389,1855,1367,1426,1102,231,34,5,0,0,0,0,0,0]
["Delta",{"$f":"IF(($B52-B24)<0,0,$B52-B24)","v":85},80,75,70,65,60,55,50,45,40,35,30,25,20,15,10,5,0,0,0,null,null,null,null,"","",null,null,"Minnesota",null,23,"CORDOVA","Alaska","MILE 13","Alaska - CORDOVA",212,147,197,257,349,564,1024,1308,1290,1135,1165,682,269,106,41,11,3,0,0,0]
["% Full EconoPhase",{"$f":"IF((B26/$D$51)>1,1,(B26/$D$51))","v":1},1,1,1,1,1,1,1,1,0.88888888888888884,0.77777777777777779,0.66666666666666663,0.55555555555555558,0.44444444444444442,0.33333333333333331,0.22222222222222221,0.1111111111111111,0,0,0,null,null,null,null,"","",null,null,"Mississippi",null,24,"DUTCH HARBOR","Alaska","DUTCH HARBOR","Alaska - DUTCH HARBOR",0,1,7,52,161,400,1022,2042,1844,1762,1096,300,58,12,3,0,0,0,0,0]
["% Partial EconoPhase",1,1,{"$f":"B27","v":1},{"$f":"C27","v":1},1,1,1,1,1,1,1,0.88888888888888884,0.77777777777777779,0.66666666666666663,0.55555555555555558,0.44444444444444442,0.33333333333333331,0.22222222222222221,0.1111111111111111,0,null,null,null,null,"","",null,null,"Missouri",null,25,"EIELSON AFB","Alaska","EIELSON AFB","Alaska - EIELSON AFB",2230,395,393,382,383,397,471,463,485,557,703,670,525,344,212,103,37,9,1,0]
["Full Econo?",{"$f":"IF($B$53<=B27,1,0)","v":1},1,1,1,1,1,1,1,1,1,1,0,0,0,0,0,0,0,0,0,null,null,null,null,"","",null,null,"Montana",null,26,"ELMENDORF AFB","Alaska","ELMENDORF AFB","Alaska - ELMENDORF AFB",563,296,378,505,629,756,845,717,658,799,997,888,473,190,55,11,1,0,0,0]
["Partial Econo?",{"$f":"IF($B$53<=B28,1,0)","v":1},1,1,1,1,1,1,1,1,1,1,1,1,0,0,0,0,0,0,0,null,null,null,null,"","",null,null,"Nebraska",null,27,"FORT YUKON","Alaska","FORT YUKON","Alaska - FORT YUKON",2869,443,388,354,335,355,419,382,364,474,566,597,500,349,211,109,35,6,0,0]
[null,null,null,null,null,null,null,null,null,null,null,null,null,null,null,null,null,null,null,null,null,null,null,null,null,"","",null,null,"Nevada",null,28,"FT RICHARDSON","Alaska","BRYN","Alaska - FT RICHARDSON",1307,647,925,1087,1363,1514,1750,0,0,0,0,0,0,0,0,0,0,0,0,0]
[null,{"$f":"B24","v":0},{"$f":"C24","v":5},10,15,20,25,30,35,40,45,50,55,60,65,70,75,80,85,90,95,null,null,null,null,"","",null,null,"New Hampshire",null,29,"FT.GREELY","Alaska","ALLEN AAF","Alaska - FT.GREELY",1700,423,456,511,498,474,506,486,522,646,763,703,503,320,164,62,19,4,0,0]
["Full Pump Hours",{"$f":"B25*B29","v":15},{"$f":"C25*C29","v":37},88,181,284,441,668,788,832,760,766,0,0,0,0,0,0,0,0,0,{"$f":"SUM(B33:U33)","v":4860},null,null,null,"",{"$f":"IFERROR(INDIRECT(\"AG\"&Z36),\"\")","v":""},null,null,"New Jersey",null,30,"GALENA","Alaska","GALENA","Alaska - GALENA",2199,456,467,461,435,439,489,491,446,530,706,681,467,273,143,60,15,2,0,0]
["Partial Hours",{"$f":"IF(B33=0,B25*B30,0)","v":0},{"$f":"IF(C33=0,C25*C30,0)","v":0},0,0,0,0,0,0,0,0,0,777,787,0,0,0,0,0,0,0,{"$f":"SUM(B34:U34)","v":1564},null,null,null,"","",null,null,"New Mexico",null,31,"GULKANA","Alaska","GULKANA","Alaska - GULKANA",1789,400,427,413,439,566,628,632,651,775,736,537,368,222,112,47,14,2,0,0]
["Compressor Hours",{"$f":"B25-(B33+B34)","v":0},{"$f":"C25-(C33+C34)","v":0},0,0,0,0,0,0,0,0,0,0,0,804,688,422,247,121,44,8,2334,null,null,null,"","",null,null,"New York",null,32,"HOMER","Alaska","HOMER","Alaska - HOMER",117,151,231,328,461,687,1077,1311,1098,1111,1179,752,224,29,4,0,0,0,0,0]
[null,null,null,null,null,null,null,null,null,null,null,null,null,null,null,null,null,null,null,null,null,null,null,null,null,"","",null,null,"North Carolina",null,33,"ILIAMNA","Alaska","ILIAMNA","Alaska - ILIAMNA",615,244,297,360,419,582,1058,1223,877,967,1092,625,257,109,28,6,0,0,0,0]
[null,null,null,null,null,null,null,null,null,null,null,null,null,null,null,null,null,null,null,null,null,null,null,null,null,"","",null,null,"North Dakota",null,34,"INDIAN MTN","Alaska","INDIAN MTN","Alaska - INDIAN MTN",2026,518,572,547,495,500,503,447,514,632,654,534,378,240,132,55,13,1,0,0]
["Full Pump Hours",{"$f":"B33","v":15},{"$f":"C33","v":37},88,181,284,441,668,788,832,760,766,0,0,0,0,0,0,0,0,0,{"$f":"ROUND(V33/8760,2)","v":0.55000000000000004},{"$f":"TEXT(V38,\"##%\")","v":"55%"}," - Full EconoPhase",{"$f":"W38&X38","v":"55% - Full EconoPhase"},"","",null,null,"Ohio",null,35,"JUNEAU INTL AIRPORT","Alaska","JUNEAU INTL AIRPORT","Alaska - JUNEAU INTL AIRPORT",79,101,153,207,315,477,1022,1355,1226,1185,1335,740,329,147,65,20,3,0,0,0]
["Partial Hours",{"$f":"IF(AND(B34=0,C34>0),B33,B34)","v":0},{"$f":"IF(AND(C34=0,D34>0),C33,C34)","v":0},0,0,0,0,0,0,0,0,{"$f":"IF(AND(L34=0,M34>0),L33,L34)","v":766},{"$f":"IF(AND(M34=0,N34>0),M33,M34)","v":777},787,0,0,0,0,0,0,0,{"$f":"ROUND(V34/8760,2)","v":0.18},{"$f":"TEXT(V39,\"##%\")","v":"18%"}," - Partial EconoPhase",{"$f":"W39&X39","v":"18% - Partial EconoPhase"},"","",null,null,"Oklahoma",null,36,"KENAI","Alaska","KENAI","Alaska - KENAI",621,232,306,410,537,770,1092,906,778,940,1109,681,275,82,20,3,0,0,0,0]
["Compressor Hours",{"$f":"IF(AND(B35=0,C35>0),B34,B35)","v":0},0,0,0,0,0,0,0,0,0,0,0,{"$f":"IF(AND(N35=0,O35>0),N34,N35)","v":787},{"$f":"IF(AND(O35=0,P35>0),O34,O35)","v":804},688,422,247,121,44,8,0.27,"27%"," - Compressor","27% - Compressor","","",null,null,"Oregon",null,37,"KING SALMON","Alaska","KING SALMON","Alaska - KING SALMON",838,250,270,357,414,583,996,1140,906,987,1005,586,266,107,43,11,0,0,0,0]
[null,null,null,null,null,null,null,null,null,null,null,null,null,null,null,null,null,null,null,null,null,null,null,null,null,"","",null,null,"Pennsylvania",null,38,"KODIAK","Alaska","KODIAK","Alaska - KODIAK",14,32,82,167,284,518,968,1668,1543,1267,1263,619,240,70,22,4,0,0,0,0]
[null,"Below 0",{"$f":"C32","v":5},{"$f":"D32","v":10},15,20,25,30,35,40,45,50,55,60,65,70,75,80,85,90,"Above 95",null,null,null,null,"","",null,null,"Rhode Island",null,39,"KOTZEBUE","Alaska","RALPH WIEN","Alaska - KOTZEBUE",2302,499,520,524,570,550,654,637,535,590,675,427,191,62,16,2,1,0,0,0]
["Full Pump Hours",{"$f":"IF(B38=0,NA(),B38)","v":15},{"$f":"IF(C38=0,NA(),C38)","v":37},88,181,284,441,668,788,832,760,766,{"$error":"#N/A"},{"$error":"#N/A"},{"$error":"#N/A"},{"$error":"#N/A"},{"$error":"#N/A"},{"$error":"#N/A"},{"$error":"#N/A"},{"$error":"#N/A"},{"$error":"#N/A"},null,null,null,null,"","",null,null,"South Carolina",null,40,"MCGRATH","Alaska","MCGRATH","Alaska - MCGRATH",1995,390,418,429,429,457,583,566,557,654,775,632,421,250,141,49,14,1,0,0]
["Partial Hours",{"$f":"IF(B39=0,NA(),B39)","v":{"$error":"#N/A"}},{"$error":"#N/A"},{"$error":"#N/A"},{"$error":"#N/A"},{"$error":"#N/A"},{"$error":"#N/A"},{"$error":"#N/A"},{"$error":"#N/A"},{"$error":"#N/A"},{"$error":"#N/A"},766,777,787,{"$error":"#N/A"},{"$error":"#N/A"},{"$error":"#N/A"},{"$error":"#N/A"},{"$error":"#N/A"},{"$error":"#N/A"},{"$error":"#N/A"},null,null,null,null,"","",null,null,"South Dakota",null,41,"MERRILL","Alaska","MERRILL","Alaska - MERRILL",414,270,366,487,639,781,896,702,635,749,951,947,580,252,73,14,1,0,0,0]
["Compressor Hours",{"$f":"IF(B40=0,NA(),B40)","v":{"$error":"#N/A"}},{"$error":"#N/A"},{"$error":"#N/A"},{"$error":"#N/A"},{"$error":"#N/A"},{"$error":"#N/A"},{"$error":"#N/A"},{"$error":"#N/A"},{"$error":"#N/A"},{"$error":"#N/A"},{"$error":"#N/A"},{"$error":"#N/A"},787,804,688,422,247,121,44,8,null,null,null,null,"","",null,null,"Tennessee",null,42,"MIDDLETON ISLAND","Alaska","MIDDLETON ISLAND","Alaska - MIDDLETON ISLAND",8,3,4,32,112,282,727,1817,1996,1427,1515,732,92,11,2,0,0,0,0,0]
[null,null,null,null,null,null,null,null,null,null,null,null,null,null,null,null,null,null,null,null,null,null,null,null,null,"","",null,null,"Texas",null,43,"MITCHELL","Alaska","ADAK NAS","Alaska - MITCHELL",0,0,6,24,100,429,1396,2252,1862,1673,818,167,28,5,1,0,0,0,0,0]
[null,null,null,null,null,null,null,null,null,null,null,null,null,null,null,null,null,null,null,null,null,null,null,null,null,"","",null,null,"Utah",null,44,"NENANA","Alaska","NENANA","Alaska - NENANA",2068,424,449,441,437,462,521,462,478,595,684,612,478,332,191,89,28,6,0,0]
[null,null,null,null,null,null,null,null,null,null,null,null,null,null,null,null,null,null,null,null,null,null,null,null,null,"","",null,null,"Vermont",null,45,"NOME","Alaska","NOME","Alaska - NOME",1346,423,505,580,615,743,932,680,677,832,758,389,176,72,23,7,1,0,0,0]
[null,null,null,null,null,"DA080",1,45,null,null,null,"DA080","DA085","DA125","DA150",null,null,null,null,null,null,null,null,null,null,"","",null,null,"Virginia",null,46,"NORTHWAY","Alaska","NORTHWAY","Alaska - NORTHWAY",2565,413,380,369,366,413,457,448,512,629,685,576,429,282,152,61,22,2,0,0]
[null,null,null,null,null,"DA085",1,50,null,null,70,62,68,105,125,null,{"$f":"VLOOKUP(B52,K50:O57,MATCH(B51,L49:O49)+1,FALSE)","v":130},null,null,null,null,null,null,null,null,"","",null,null,"Washington",null,47,"NORTHWAY","Alaska","NORTHWAY","Alaska - NORTHWAY",2565,413,380,369,366,413,457,448,512,629,685,576,429,282,152,61,22,2,0,0]
[null,{"$f":"'User Input'!X5","v":"DA125"},{"$f":"VLOOKUP(B51,F49:G52,2,FALSE)","v":1},{"$f":"VLOOKUP(B51,F49:H52,3,FALSE)","v":45},null,"DA125",1,45,null,null,75,67,73,112,134,null,{"$f":"Q50*B53","v":91},null,null,null,null,null,null,null,null,"",null,null,null,"West Virginia",null,48,"PORT HEIDEN","Alaska","PORT HEIDEN","Alaska - PORT HEIDEN",244,159,193,269,406,701,1259,1433,1214,1299,1004,407,127,36,7,1,0,0,0,0]
["Return Air",{"$f":"'User Input'!E2","v":85},null,null,null,"DA150",1.2,45,null,null,80,72,78,123,145,null,null,null,null,null,null,null,null,null,null,"",null,null,null,"Wisconsin",null,49,"SAINT PAUL ISLAND","Alaska","SAINT PAUL ISLAND","Alaska - SAINT PAUL ISLAND",89,109,189,324,516,739,1670,1720,1318,1627,430,28,2,0,0,0,0,0,0,0]
["% Load",{"$f":"'User Input'!I2*C51","v":0.7},null,null,null,{"$f":"B51&\" - EconoPhase Hours\"","v":"DA125 - EconoPhase Hours"},null,null,null,null,85,77,83,130,153,null,null,null,null,null,null,null,null,null,null,"",null,null,null,"Wyoming",null,50,"SHMYA","Alaska","EARECKSON","Alaska - SHMYA",0,0,1,12,118,655,1859,2160,1566,1723,623,41,2,0,0,0,0,0,0,0]
[null,null,null,null,null,null,null,null,null,null,90,80,88,138,162,null,null,null,null,null,null,null,null,null,null,null,null,null,null,null,null,51,"SITKA","Alaska","JAPONSKI","Alaska - SITKA",2,8,26,64,113,261,689,1348,1672,1492,1554,1128,314,70,16,4,0,0,0,0]
[null,null,null,null,null,null,null,null,null,null,95,84,94,146,170,null,null,null,null,null,null,null,null,null,null,null,null,null,null,null,null,52,"SPARREVOHN","Alaska","SPARREVOHN","Alaska - SPARREVOHN",1125,311,339,461,533,780,991,830,819,936,790,469,236,98,32,9,0,0,0,0]
[null,null,null,null,null,null,null,null,null,null,100,86,96,150,174,null,null,null,null,null,null,null,null,null,null,null,null,null,null,null,null,53,"TATALINA","Alaska","TATALINA","Alaska - TATALINA",1560,440,490,533,510,547,647,530,590,751,800,604,382,217,107,40,11,2,0,0]
[null,null,null,null,null,null,null,null,null,null,105,87,98,152,176,null,null,null,null,null,null,null,null,null,null,null,null,null,null,null,null,54,"TIN CITY AFS","Alaska","TIN CITY AFS","Alaska - TIN CITY AFS",2105,502,456,487,539,804,987,769,927,749,287,109,29,7,0,0,0,0,0,0]
[null,null,null,null,null,null,null,null,null,null,null,null,null,null,null,null,null,null,null,null,null,null,null,null,null,null,null,null,null,null,null,55,"UNALAKLEET","Alaska","UNALAKLEET","Alaska - UNALAKLEET",1510,467,507,576,602,674,735,659,544,678,830,599,262,83,23,8,2,0,0,0]
[null,null,null,null,null,null,null,null,null,null,null,null,null,null,null,null,null,null,null,null,null,null,null,null,null,null,null,null,null,null,null,56,"WHITTIER","Alaska","WHITTIER","Alaska - WHITTIER",23,74,132,247,364,606,1280,1579,989,1055,1283,666,294,127,37,4,0,0,0,0]
[null,null,null,null,null,null,null,null,null,null,null,null,null,null,null,null,null,null,null,null,null,null,null,null,null,null,null,null,null,null,null,57,"YAKUTAT","Alaska","YAKUTAT","Alaska - YAKUTAT",93,94,152,208,324,604,1154,1392,1260,1093,1325,792,204,48,14,4,1,0,0,0]
[null,null,null,null,null,null,null,null,null,null,null,null,null,null,null,null,null,null,null,null,null,null,null,null,null,null,null,null,null,null,null,58,"DAVIS-MONTHAN AFB","Arizona","DAVIS-MONTHAN AFB","Arizona - DAVIS-MONTHAN AFB",0,0,0,0,1,8,60,192,404,626,812,818,782,779,897,917,796,619,539,508]
[null,null,null,null,null,null,null,null,null,null,null,null,null,null,null,null,null,null,null,null,null,null,null,null,null,null,null,null,null,null,null,59,"FLAGSTAFF","Arizona","FLAGSTAFF","Arizona - FLAGSTAFF",43,52,101,222,417,781,959,894,754,791,772,754,627,528,455,358,188,58,7,0]
[null,null,null,null,null,null,null,null,null,null,null,null,null,null,null,null,null,null,null,null,null,null,null,null,null,null,null,null,null,null,null,60,"FORT HUACHUCA","Arizona","LIBBY","Arizona - FORT HUACHUCA",0,0,0,2,11,49,189,364,551,738,802,829,886,1047,1036,873,674,434,207,66]
[null,null,null,null,null,null,null,null,null,null,null,null,null,null,null,null,null,null,null,null,null,null,null,null,null,null,null,null,null,null,null,61,"LUKE AFB","Arizona","PHOENIX","Arizona - LUKE AFB",0,0,0,0,0,3,24,123,318,559,750,812,782,744,731,721,752,715,619,1106]
[null,null,null,null,null,null,null,null,null,null,null,null,null,null,null,null,null,null,null,null,null,null,null,null,null,null,null,null,null,null,null,62,"PHOENIX","Arizona","SKY HARBOR","Arizona - PHOENIX",0,0,0,0,0,1,11,63,197,410,662,791,784,739,750,745,779,809,705,1316]
[null,null,null,null,null,null,null,null,null,null,null,null,null,null,null,null,null,null,null,null,null,null,null,null,null,null,null,null,null,null,null,63,"TUCSON","Arizona","TUCSON","Arizona - TUCSON",0,0,0,0,2,12,75,209,400,616,768,773,768,789,881,909,784,621,526,626]
[null,null,null,null,null,null,null,null,null,null,null,null,null,null,null,null,null,null,null,null,null,null,null,null,null,null,null,null,null,null,null,64,"WINSLOW","Arizona","WINSLOW","Arizona - WINSLOW",17,20,51,132,257,450,583,660,690,730,726,696,746,726,656,533,439,342,214,85]
[null,null,null,null,null,null,null,null,null,null,null,null,null,null,null,null,null,null,null,null,null,null,null,null,null,null,null,null,null,null,null,65,"YUMA","Arizona","YUMA","Arizona - YUMA",0,0,0,0,0,0,3,24,95,307,603,797,862,842,833,809,850,831,668,1235]
[null,null,null,null,null,null,null,null,null,null,null,null,null,null,null,null,null,null,null,null,null,null,null,null,null,null,null,null,null,null,null,66,"EAKER AFB","Arkansas","EAKER AFB","Arkansas - EAKER AFB",8,13,31,77,135,246,456,542,604,596,642,668,757,814,952,876,627,420,228,71]
[null,null,null,null,null,null,null,null,null,null,null,null,null,null,null,null,null,null,null,null,null,null,null,null,null,null,null,null,null,null,null,67,"EL DORADO","Arkansas","GOODWIN","Arkansas - EL DORADO",0,1,9,31,77,192,322,418,510,564,653,687,786,935,1157,910,630,491,302,85]
[null,null,null,null,null,null,"below 5","5-9","10-14","15-19","20-24","25-29","30-34","35-39","40-44","45-49","50-54","55-59","60-64","65-69","70-74","75-79","80-84","85-89","90-94","above 95",null,null,null,null,null,68,"FAYETTEVILLE","Arkansas","DRAKE","Arkansas - FAYETTEVILLE",22,35,53,102,186,333,478,542,589,639,648,723,811,925,926,703,499,342,158,44]
[null,null,null,null,null,null,65,71,114,167,261,397,590,598,582,565,598,655,746,796,830,690,512,313,147,61,null,null,null,null,null,69,"FORT SMITH","Arkansas","FORT SMITH","Arkansas - FORT SMITH",6,12,30,64,146,257,441,542,595,633,647,614,747,821,972,850,586,405,267,123]
[null,null,null,null,null,null,null,null,null,null,null,null,null,null,null,null,null,null,null,null,null,null,null,null,null,null,null,null,null,null,null,70,"HARRISON","Arkansas","BOONE","Arkansas - HARRISON",20,36,56,103,181,303,481,543,617,624,662,741,828,940,920,722,503,316,133,31]
[null,null,null,null,null,null,null,null,null,null,null,null,null,null,null,null,null,null,null,null,null,null,null,null,null,null,null,null,null,null,null,71,"LITTLE ROCK AFB","Arkansas","LITTLE ROCK AFB","Arkansas - LITTLE ROCK AFB",2,8,17,44,106,212,376,486,583,635,648,693,758,847,1019,882,645,443,259,98]
[null,null,null,null,null,null,null,null,null,null,null,null,null,null,null,null,null,null,null,null,null,null,null,null,null,null,null,null,null,null,null,72,"PINE BLUFF","Arkansas","GRIDER","Arkansas - PINE BLUFF",1,4,9,29,69,155,311,440,549,626,654,699,749,857,1030,994,691,499,300,91]
[null,null,null,null,null,null,null,null,null,null,null,null,null,null,null,null,null,null,null,null,null,null,null,null,null,null,null,null,null,null,null,73,"TEXARKANA","Arkansas","WEBB","Arkansas - TEXARKANA",1,2,7,18,48,106,256,407,534,571,658,699,769,892,1101,1048,724,509,297,112]
[null,null,null,null,null,null,null,null,null,null,null,null,null,null,null,null,null,null,null,null,null,null,null,null,null,null,null,null,null,null,null,74,"ALAMEDA","California","ALAMEDA","California - ALAMEDA",0,0,0,0,0,0,2,17,181,701,1779,2719,1817,939,390,133,55,19,6,2]
[null,null,null,null,null,null,null,null,null,null,null,null,null,null,null,null,null,null,null,null,null,null,null,null,null,null,null,null,null,null,null,75,"ARCATA","California","EUREKA","California - ARCATA",0,0,0,0,3,27,171,465,867,1581,2640,1950,819,193,33,7,2,1,0,0]
[null,null,null,null,null,null,null,null,null,null,null,null,null,null,null,null,null,null,null,null,null,null,null,null,null,null,null,null,null,null,null,76,"BAKERSFIELD","California","MEADOWS","California - BAKERSFIELD",0,0,0,0,1,6,58,241,493,756,952,963,926,854,829,767,633,484,374,422]
[null,null,null,null,null,null,null,null,null,null,null,null,null,null,null,null,null,null,null,null,null,null,null,null,null,null,null,null,null,null,null,77,"BARSTOW","California","DAGGETT","California - BARSTOW",0,0,1,1,6,31,107,256,465,649,831,864,805,768,782,744,654,545,457,794]
[null,null,null,null,null,null,null,null,null,null,null,null,null,null,null,null,null,null,null,null,null,null,null,null,null,null,null,null,null,null,null,78,"MARYSVILLE","California","Beale AFB","California - MARYSVILLE",0,0,0,0,1,12,82,301,579,892,1180,1175,1032,840,718,587,483,373,282,222]
[null,null,null,null,null,null,null,null,null,null,null,null,null,null,null,null,null,null,null,null,null,null,null,null,null,null,null,null,null,null,null,79,"BLUE CANYON","California","BLUE CANYON","California - BLUE CANYON",2,1,4,18,113,389,846,963,1027,1012,944,873,844,728,527,312,130,23,3,0]
[null,null,null,null,null,null,null,null,null,null,null,null,null,null,null,null,null,null,null,null,null,null,null,null,null,null,null,null,null,null,null,80,"CAMP PENDLETON","California","CAMP PENDLETON","California - CAMP PENDLETON",0,0,0,0,0,3,30,146,304,499,796,1237,1747,1698,1068,711,332,123,43,24]
[null,null,null,null,null,null,null,null,null,null,null,null,null,null,null,null,null,null,null,null,null,null,null,null,null,null,null,null,null,null,null,81,"MERCED","California","CASTLE AFB","California - MERCED",0,0,0,0,3,26,138,382,676,937,1104,1088,986,841,703,562,471,376,277,190]
[null,null,null,null,null,null,null,null,null,null,null,null,null,null,null,null,null,null,null,null,null,null,null,null,null,null,null,null,null,null,null,82,"CRESCENT CITY","California","CRESCENT CITY","California - CRESCENT CITY",0,0,0,0,0,1,34,222,590,1460,3033,2350,878,163,21,7,1,0,0,0]
[null,null,null,null,null,null,null,null,null,null,null,null,null,null,null,null,null,null,null,null,null,null,null,null,null,null,null,null,null,null,null,83,"EDWARDS AFB","California","EDWARDS AFB","California - EDWARDS AFB",0,0,2,13,54,159,291,436,640,820,915,883,826,752,698,599,499,419,363,391]
[null,null,null,null,null,null,null,null,null,null,null,null,null,null,null,null,null,null,null,null,null,null,null,null,null,null,null,null,null,null,null,84,"FRESNO","California","FRESNO","California - FRESNO",0,0,0,0,2,19,124,350,600,844,1004,980,932,830,748,625,530,435,357,379]
[null,null,null,null,null,null,null,null,null,null,null,null,null,null,null,null,null,null,null,null,null,null,null,null,null,null,null,null,null,null,null,85,"IMPERIAL","California","IMPERIAL","California - IMPERIAL",0,0,0,0,0,5,35,132,317,454,638,722,808,796,838,803,799,659,587,1169]
[null,null,null,null,null,null,null,null,null,null,null,null,null,null,null,null,null,null,null,null,null,null,null,null,null,null,null,null,null,null,null,86,"LEMOORE NAS","California","REEVES","California - LEMOORE NAS",0,0,0,1,4,36,142,366,626,842,979,986,948,840,735,603,503,400,342,409]
[null,null,null,null,null,null,null,null,null,null,null,null,null,null,null,null,null,null,null,null,null,null,null,null,null,null,null,null,null,null,null,87,"LONG BEACH","California","LONG BEACH","California - LONG BEACH",0,0,0,0,0,0,1,20,113,459,1047,1612,1889,1463,916,653,356,149,53,28]
[null,null,null,null,null,null,null,null,null,null,null,null,null,null,null,null,null,null,null,null,null,null,null,null,null,null,null,null,null,null,null,88,"LONG BEACH (AIRPORT)","California","LONG BEACH (AIRPORT)","California - LONG BEACH (AIRPORT)",0,0,0,0,0,0,2,19,128,406,831,1427,1912,1824,1119,611,295,123,42,21]
[null,null,null,null,null,null,null,null,null,null,null,null,null,null,null,null,null,null,null,null,null,null,null,null,null,null,null,null,null,null,null,89,"LOS ANGELES INTL","California","LOS ANGELES INTL","California - LOS ANGELES INTL",0,0,0,0,0,0,0,4,42,249,868,1884,2364,1878,1040,312,85,24,9,3]
[null,null,null,null,null,null,null,null,null,null,null,null,null,null,null,null,null,null,null,null,null,null,null,null,null,null,null,null,null,null,null,90,"MARCH ARB","California","RIVERSIDE","California - MARCH ARB",1,0,0,0,2,12,72,228,499,870,1174,1250,1176,929,753,555,427,339,272,201]
[null,null,null,null,null,null,null,null,null,null,null,null,null,null,null,null,null,null,null,null,null,null,null,null,null,null,null,null,null,null,null,91,"MARINA MUNICIPAL","California","FRITZSCHE","California - MARINA MUNICIPAL",1,0,0,0,0,4,34,168,419,805,1817,2761,1847,666,171,45,14,6,2,1]
[null,null,null,null,null,null,null,null,null,null,null,null,null,null,null,null,null,null,null,null,null,null,null,null,null,null,null,null,null,null,null,92,"MCCLELLAN AFB","California","MCCLELLAN AFB","California - MCCLELLAN AFB",0,0,0,0,1,11,79,277,565,893,1184,1257,1159,892,692,538,422,327,247,214]
[null,null,null,null,null,null,null,null,null,null,null,null,null,null,null,null,null,null,null,null,null,null,null,null,null,null,null,null,null,null,null,93,"MIRAMAR NAS","California","MIRAMAR NAS","California - MIRAMAR NAS",0,0,0,0,0,0,3,32,200,584,1062,1570,1881,1513,885,576,291,109,39,15]
[null,null,null,null,null,null,null,null,null,null,null,null,null,null,null,null,null,null,null,null,null,null,null,null,null,null,null,null,null,null,null,94,"MONTAGUE","California","SISKIYOU","California - MONTAGUE",3,11,25,74,201,381,743,926,1015,1039,929,728,639,541,445,358,303,224,127,48]
[null,null,null,null,null,null,null,null,null,null,null,null,null,null,null,null,null,null,null,null,null,null,null,null,null,null,null,null,null,null,null,95,"MONTEREY","California","MONTEREY","California - MONTEREY",0,0,0,0,0,1,13,86,358,857,2328,2507,1679,660,200,48,16,5,1,1]
[null,null,null,null,null,null,null,null,null,null,null,null,null,null,null,null,null,null,null,null,null,null,null,null,null,null,null,null,null,null,null,96,"MOUNTAIN VIEW","California","MOFFETT FIELD NAS","California - MOUNTAIN VIEW",0,0,0,0,0,1,11,103,344,756,1368,1837,1860,1190,760,330,125,49,20,7]
[null,null,null,null,null,null,null,null,null,null,null,null,null,null,null,null,null,null,null,null,null,null,null,null,null,null,null,null,null,null,null,97,"NORTH ISLAND NAS","California","NORTH ISLAND NAS","California - NORTH ISLAND NAS",0,0,0,0,0,0,0,2,32,220,732,1728,2374,2087,1136,343,78,21,6,2]
[null,null,null,null,null,null,null,null,null,null,null,null,null,null,null,null,null,null,null,null,null,null,null,null,null,null,null,null,null,null,null,98,"OAKLAND","California","OAKLAND","California - OAKLAND",0,0,0,0,0,1,6,66,294,795,1731,2711,1823,862,317,101,36,12,3,0]
[null,null,null,null,null,null,null,null,null,null,null,null,null,null,null,null,null,null,null,null,null,null,null,null,null,null,null,null,null,null,null,99,"ONTARIO","California","ONTARIO","California - ONTARIO",0,0,0,0,0,3,25,113,349,616,1032,1322,1399,1133,847,615,481,357,263,204]
[null,null,null,null,null,null,null,null,null,null,null,null,null,null,null,null,null,null,null,null,null,null,null,null,null,null,null,null,null,null,null,100,"PASO ROBLES","California","PASO ROBLES","California - PASO ROBLES",0,0,0,2,16,92,275,439,700,1022,1396,1278,953,674,522,417,325,255,204,189]
[null,null,null,null,null,null,null,null,null,null,null,null,null,null,null,null,null,null,null,null,null,null,null,null,null,null,null,null,null,null,null,101,"PT MUGU","California","PT MUGU","California - PT MUGU",0,0,0,0,0,0,3,50,241,601,1123,1869,2280,1485,839,195,51,17,5,1]
[null,null,null,null,null,null,null,null,null,null,null,null,null,null,null,null,null,null,null,null,null,null,null,null,null,null,null,null,null,null,null,102,"PT PIEDRAS","California","PT PIEDRAS","California - PT PIEDRAS",0,0,0,0,0,0,3,12,136,786,2602,3152,1457,425,135,42,8,2,0,0]
[null,null,null,null,null,null,null,null,null,null,null,null,null,null,null,null,null,null,null,null,null,null,null,null,null,null,null,null,null,null,null,103,"RED BLUFF","California","RED BLUFF","California - RED BLUFF",0,0,0,0,2,21,127,352,655,911,1080,987,940,821,716,590,482,396,310,368]
[null,null,null,null,null,null,null,null,null,null,null,null,null,null,null,null,null,null,null,null,null,null,null,null,null,null,null,null,null,null,null,104,"SACRAMENTO","California","EXECUTIVE","California - SACRAMENTO",0,0,0,0,2,14,98,341,653,973,1319,1370,1129,773,598,455,384,283,210,157]
[null,null,null,null,null,null,null,null,null,null,null,null,null,null,null,null,null,null,null,null,null,null,null,null,null,null,null,null,null,null,null,105,"SACRAMENTO","California","MATHER","California - SACRAMENTO",0,0,0,0,2,21,116,362,677,998,1268,1279,1071,799,611,463,389,294,227,182]
[null,null,null,null,null,null,null,null,null,null,null,null,null,null,null,null,null,null,null,null,null,null,null,null,null,null,null,null,null,null,null,106,"SAN BERNARDINO","California","NORTON AFB","California - SAN BERNARDINO",0,0,0,0,0,8,67,225,492,768,1087,1250,1193,966,774,571,450,340,292,278]
[null,null,null,null,null,null,null,null,null,null,null,null,null,null,null,null,null,null,null,null,null,null,null,null,null,null,null,null,null,null,null,107,"SAN CLEMENTE","California","SAN CLEMENTE","California - SAN CLEMENTE",0,0,0,0,0,0,0,3,26,218,1235,2509,2677,1442,521,104,18,5,2,0]
[null,null,null,null,null,null,null,null,null,null,null,null,null,null,null,null,null,null,null,null,null,null,null,null,null,null,null,null,null,null,null,108,"SAN DIEGO","California","LINDBERG","California - SAN DIEGO",0,0,0,0,0,0,0,3,27,193,591,1491,2261,2180,1373,473,124,33,8,2]
[null,null,null,null,null,null,null,null,null,null,null,null,null,null,null,null,null,null,null,null,null,null,null,null,null,null,null,null,null,null,null,109,"SAN FRANCISCO","California","SAN FRANCISCO","California - SAN FRANCISCO",0,0,0,0,0,1,6,66,354,973,2267,2418,1439,742,322,97,46,20,7,1]
[null,null,null,null,null,null,null,null,null,null,null,null,null,null,null,null,null,null,null,null,null,null,null,null,null,null,null,null,null,null,null,110,"SAN JOSE","California","SAN JOSE","California - SAN JOSE",0,0,0,0,0,1,19,123,340,648,1164,1646,1836,1131,772,563,298,128,63,26]
[null,null,null,null,null,null,null,null,null,null,null,null,null,null,null,null,null,null,null,null,null,null,null,null,null,null,null,null,null,null,null,111,"SANDBURG","California","SANDBURG","California - SANDBURG",19,7,8,13,36,144,392,699,948,1005,996,918,874,841,720,516,342,200,71,12]
[null,null,null,null,null,null,null,null,null,null,null,null,null,null,null,null,null,null,null,null,null,null,null,null,null,null,null,null,null,null,null,112,"SANTA BARBARA","California","SANTA BARBARA","California - SANTA BARBARA",0,0,0,0,0,2,21,139,373,675,1154,1908,2083,1352,720,243,64,17,6,3]
[null,null,null,null,null,null,null,null,null,null,null,null,null,null,null,null,null,null,null,null,null,null,null,null,null,null,null,null,null,null,null,113,"STOCKTON","California","STOCKTON","California - STOCKTON",0,0,0,0,2,24,137,360,601,867,1150,1179,1133,872,692,526,440,339,240,197]
[null,null,null,null,null,null,null,null,null,null,null,null,null,null,null,null,null,null,null,null,null,null,null,null,null,null,null,null,null,null,null,114,"FAIRFIELD","California","TRAVIS AFB","California - FAIRFIELD",0,0,0,0,2,13,83,290,600,923,1320,1620,1274,817,600,456,328,212,132,88]
[null,null,null,null,null,null,null,null,null,null,null,null,null,null,null,null,null,null,null,null,null,null,null,null,null,null,null,null,null,null,null,115,"TUSTIN MCAS","California","TUSTIN MCAS","California - TUSTIN MCAS",0,0,0,0,0,0,4,43,203,463,822,1249,1620,1718,1144,790,434,179,63,28]
[null,null,null,null,null,null,null,null,null,null,null,null,null,null,null,null,null,null,null,null,null,null,null,null,null,null,null,null,null,null,null,116,"VANDENBERG AFB","California","VANDENBERG AFB","California - VANDENBERG AFB",0,0,0,0,0,0,18,87,356,963,2400,2618,1454,589,181,61,22,7,5,1]
[null,null,null,null,null,null,null,null,null,null,null,null,null,null,null,null,null,null,null,null,null,null,null,null,null,null,null,null,null,null,null,117,"VICTORVILLE","California","VICTORVILLE","California - VICTORVILLE",0,0,1,4,16,76,244,486,708,858,943,863,843,792,761,630,501,412,337,283]
[null,null,null,null,null,null,null,null,null,null,null,null,null,null,null,null,null,null,null,null,null,null,null,null,null,null,null,null,null,null,null,118,"BUCKLEY ANGB","Colorado","DENVER","Colorado - BUCKLEY ANGB",80,75,129,210,367,570,753,738,760,743,737,728,801,622,495,370,298,191,79,14]
[null,null,null,null,null,null,null,null,null,null,null,null,null,null,null,null,null,null,null,null,null,null,null,null,null,null,null,null,null,null,null,119,"COL SPRINGS","Colorado","PETERSON AFB","Colorado - COL SPRINGS",84,81,134,243,427,599,716,697,725,724,794,840,809,599,485,357,258,142,43,3]
[null,null,null,null,null,null,null,null,null,null,null,null,null,null,null,null,null,null,null,null,null,null,null,null,null,null,null,null,null,null,null,120,"DENVER","Colorado","STAPLETON","Colorado - DENVER",91,77,118,191,358,548,703,727,710,698,735,738,785,699,524,414,321,209,95,19]
[null,null,null,null,null,null,null,null,null,null,null,null,null,null,null,null,null,null,null,null,null,null,null,null,null,null,null,null,null,null,null,121,"FORT CARSON","Colorado","BUTTS","Colorado - FORT CARSON",37,54,96,172,294,499,658,676,712,721,790,855,851,706,593,459,315,187,76,9]
[null,null,null,null,null,null,null,null,null,null,null,null,null,null,null,null,null,null,null,null,null,null,null,null,null,null,null,null,null,null,null,122,"GRAND JUNCTION","Colorado","GRAND JUNCTION","Colorado - GRAND JUNCTION",51,63,107,195,348,501,718,714,677,644,638,601,673,686,624,506,397,304,227,87]
[null,null,null,null,null,null,null,null,null,null,null,null,null,null,null,null,null,null,null,null,null,null,null,null,null,null,null,null,null,null,null,123,"LA JUNTA","Colorado","LA JUNTA","Colorado - LA JUNTA",93,85,130,200,355,508,615,627,587,592,629,647,722,700,622,488,422,313,228,197]
[null,null,null,null,null,null,null,null,null,null,null,null,null,null,null,null,null,null,null,null,null,null,null,null,null,null,null,null,null,null,null,124,"PUEBLO","Colorado","PUEBLO","Colorado - PUEBLO",88,80,141,230,373,496,615,620,596,648,679,698,780,683,564,472,379,289,212,117]
[null,null,null,null,null,null,null,null,null,null,null,null,null,null,null,null,null,null,null,null,null,null,null,null,null,null,null,null,null,null,null,125,"TRINIDAD","Colorado","ANIMAS CO.","Colorado - TRINIDAD",63,68,120,206,344,538,657,646,655,706,726,802,830,704,552,451,337,235,102,18]
[null,null,null,null,null,null,null,null,null,null,null,null,null,null,null,null,null,null,null,null,null,null,null,null,null,null,null,null,null,null,null,126,"BRIDGEPORT","Connecticut","SIKORSKI","Connecticut - BRIDGEPORT",12,29,69,146,265,388,623,806,806,735,765,732,749,801,865,594,268,90,15,1]
[null,null,null,null,null,null,null,null,null,null,null,null,null,null,null,null,null,null,null,null,null,null,null,null,null,null,null,null,null,null,null,127,"HARTFORD","Connecticut","BRADLEY","Connecticut - HARTFORD",55,76,146,232,348,499,735,752,707,665,687,720,751,728,675,448,314,159,56,9]
[null,null,null,null,null,null,null,null,null,null,null,null,null,null,null,null,null,null,null,null,null,null,null,null,null,null,null,null,null,null,null,128,"WASHINGTON","D.C.","NATIONAL","D.C. - WASHINGTON",2,8,19,59,140,236,470,658,711,732,720,682,732,763,908,864,555,328,141,29]
[null,null,null,null,null,null,null,null,null,null,null,null,null,null,null,null,null,null,null,null,null,null,null,null,null,null,null,null,null,null,null,129,"WASHINGTON","D.C.","DULLES","D.C. - WASHINGTON",15,23,59,130,253,418,617,692,704,678,697,676,741,856,845,563,420,257,98,19]
[null,null,null,null,null,null,null,null,null,null,null,null,null,null,null,null,null,null,null,null,null,null,null,null,null,null,null,null,null,null,null,130,"DOVER","Delaware","DOVER AFB","Delaware - DOVER",4,10,33,88,203,353,561,701,741,730,715,716,789,833,910,687,410,199,66,11]
[null,null,null,null,null,null,null,null,null,null,null,null,null,null,null,null,null,null,null,null,null,null,null,null,null,null,null,null,null,null,null,131,"WILMINGTON","Delaware","WILMINGTON","Delaware - WILMINGTON",13,20,58,126,216,367,585,711,731,721,718,695,758,751,878,681,439,213,70,10]
[null,null,null,null,null,null,null,null,null,null,null,null,null,null,null,null,null,null,null,null,null,null,null,null,null,null,null,null,null,null,null,132,"APALACHICOLA","Florida","APALACHICOLA","Florida - APALACHICOLA",0,0,0,2,5,18,62,154,271,386,530,742,973,1068,1279,1493,1025,634,113,5]
[null,null,null,null,null,null,null,null,null,null,null,null,null,null,null,null,null,null,null,null,null,null,null,null,null,null,null,null,null,null,null,133,"CAPE CANAVERAL","Florida","CAPE CANAVERAL","Florida - CAPE CANAVERAL",0,0,0,0,0,1,16,56,123,227,319,499,783,1200,1799,1959,1181,566,31,0]
[null,null,null,null,null,null,null,null,null,null,null,null,null,null,null,null,null,null,null,null,null,null,null,null,null,null,null,null,null,null,null,134,"CECIL FIELD","Florida","CECIL FIELD","Florida - CECIL FIELD",0,0,0,2,6,27,96,170,267,379,515,671,839,1038,1525,1360,851,597,346,72]
[null,null,null,null,null,null,null,null,null,null,null,null,null,null,null,null,null,null,null,null,null,null,null,null,null,null,null,null,null,null,null,135,"DAYTONA BEACH","Florida","DAYTONA BEACH","Florida - DAYTONA BEACH",0,0,0,0,2,9,35,92,176,271,420,566,831,1082,1720,1689,1108,632,119,8]
[null,null,null,null,null,null,null,null,null,null,null,null,null,null,null,null,null,null,null,null,null,null,null,null,null,null,null,null,null,null,null,136,"EGLIN AFB","Florida","VALPARAISO","Florida - EGLIN AFB",0,0,0,3,9,36,106,204,310,443,560,700,893,1032,1222,1417,1049,628,139,9]
[null,null,null,null,null,null,null,null,null,null,null,null,null,null,null,null,null,null,null,null,null,null,null,null,null,null,null,null,null,null,null,137,"FORT MYERS","Florida","FORT MYERS","Florida - FORT MYERS",0,0,0,0,0,1,5,19,60,123,248,408,709,1013,1561,1967,1295,906,418,26]
[null,null,null,null,null,null,null,null,null,null,null,null,null,null,null,null,null,null,null,null,null,null,null,null,null,null,null,null,null,null,null,138,"FT LAUDERDALE","Florida","HOLLYWOOD","Florida - FT LAUDERDALE",0,0,0,0,0,0,2,7,20,58,128,218,340,618,1441,2340,2279,1116,185,6]
[null,null,null,null,null,null,null,null,null,null,null,null,null,null,null,null,null,null,null,null,null,null,null,null,null,null,null,null,null,null,null,139,"GAINESVILLE","Florida","GAINESVILLE","Florida - GAINESVILLE",0,0,0,2,6,31,91,166,269,382,511,673,853,1101,1679,1290,825,596,264,21]
[null,null,null,null,null,null,null,null,null,null,null,null,null,null,null,null,null,null,null,null,null,null,null,null,null,null,null,null,null,null,null,140,"HOMESTEAD AFB","Florida","HOMESTEAD AFB","Florida - HOMESTEAD AFB",0,0,0,0,0,0,1,4,15,51,131,236,418,787,1623,2445,1993,932,119,3]
[null,null,null,null,null,null,null,null,null,null,null,null,null,null,null,null,null,null,null,null,null,null,null,null,null,null,null,null,null,null,null,141,"HURLBURT FIELD (AF)","Florida","HURLBURT FIELD (AF)","Florida - HURLBURT FIELD (AF)",0,0,1,2,6,34,103,201,309,433,539,692,906,1069,1300,1283,1073,685,117,7]
[null,null,null,null,null,null,null,null,null,null,null,null,null,null,null,null,null,null,null,null,null,null,null,null,null,null,null,null,null,null,null,142,"JACKSONVILLE","Florida","JACKSONVILLE","Florida - JACKSONVILLE",0,0,0,2,5,20,66,144,252,359,509,663,857,1005,1467,1544,950,599,274,43]
[null,null,null,null,null,null,null,null,null,null,null,null,null,null,null,null,null,null,null,null,null,null,null,null,null,null,null,null,null,null,null,143,"JACKSONVILLE","Florida","CRAIG","Florida - JACKSONVILLE",0,0,0,2,5,25,81,165,278,420,581,754,881,1087,1594,1388,828,507,149,16]
[null,null,null,null,null,null,null,null,null,null,null,null,null,null,null,null,null,null,null,null,null,null,null,null,null,null,null,null,null,null,null,144,"KEY WEST NAS","Florida","KEY WEST NAS","Florida - KEY WEST NAS",0,0,0,0,0,0,0,0,0,5,32,137,338,707,1349,2207,2680,1237,68,0]
[null,null,null,null,null,null,null,null,null,null,null,null,null,null,null,null,null,null,null,null,null,null,null,null,null,null,null,null,null,null,null,145,"MACDILL AFB","Florida","TAMPA","Florida - MACDILL AFB",0,0,0,0,0,1,10,31,96,199,344,530,781,1071,1395,1894,1307,825,267,11]
[null,null,null,null,null,null,null,null,null,null,null,null,null,null,null,null,null,null,null,null,null,null,null,null,null,null,null,null,null,null,null,146,"MAYPORT NAS","Florida","MAYPORT NAS","Florida - MAYPORT NAS",0,0,0,0,4,8,32,86,185,334,516,731,894,992,1255,1655,1211,649,179,29]
[null,null,null,null,null,null,null,null,null,null,null,null,null,null,null,null,null,null,null,null,null,null,null,null,null,null,null,null,null,null,null,147,"MELBOURNE","Florida","MELBOURNE","Florida - MELBOURNE",0,0,0,0,1,4,12,40,87,168,272,399,608,947,1590,2069,1540,821,191,12]
[null,null,null,null,null,null,null,null,null,null,null,null,null,null,null,null,null,null,null,null,null,null,null,null,null,null,null,null,null,null,null,148,"MIAMI","Florida","KENDALL-TAMIA","Florida - MIAMI",0,0,0,0,0,0,2,5,20,60,144,286,500,911,1668,2370,1595,937,260,3]
[null,null,null,null,null,null,null,null,null,null,null,null,null,null,null,null,null,null,null,null,null,null,null,null,null,null,null,null,null,null,null,149,"MIAMI","Florida","MIAMI","Florida - MIAMI",0,0,0,0,0,0,2,5,19,55,126,234,370,701,1504,2486,2109,991,157,3]
[null,null,null,null,null,null,null,null,null,null,null,null,null,null,null,null,null,null,null,null,null,null,null,null,null,null,null,null,null,null,null,150,"ORLANDO","Florida","(JETPORT)","Florida - ORLANDO",0,0,0,0,1,4,18,60,131,243,383,536,821,1095,1639,1782,1044,695,296,14]
[null,null,null,null,null,null,null,null,null,null,null,null,null,null,null,null,null,null,null,null,null,null,null,null,null,null,null,null,null,null,null,151,"COCOA BEACH","Florida","PATRICK AFB","Florida - COCOA BEACH",0,0,0,0,0,0,5,11,38,111,237,403,623,1026,1555,2138,1902,666,42,2]
[null,null,null,null,null,null,null,null,null,null,null,null,null,null,null,null,null,null,null,null,null,null,null,null,null,null,null,null,null,null,null,152,"PENSACOLA","Florida","PENSACOLA","Florida - PENSACOLA",0,0,2,4,13,44,117,231,333,442,572,690,884,1014,1305,1398,944,574,175,16]
[null,null,null,null,null,null,null,null,null,null,null,null,null,null,null,null,null,null,null,null,null,null,null,null,null,null,null,null,null,null,null,153,"PENSACOLA NAS","Florida","PENSACOLA NAS","Florida - PENSACOLA NAS",0,0,2,4,11,43,118,204,297,421,536,666,859,1033,1263,1405,1042,656,187,15]
[null,null,null,null,null,null,null,null,null,null,null,null,null,null,null,null,null,null,null,null,null,null,null,null,null,null,null,null,null,null,null,154,"SAINT PETERSBURG","Florida","SAINT PETERSBURG","Florida - SAINT PETERSBURG",0,0,0,0,0,1,4,16,51,139,298,476,731,1016,1307,1835,1565,924,366,32]
[null,null,null,null,null,null,null,null,null,null,null,null,null,null,null,null,null,null,null,null,null,null,null,null,null,null,null,null,null,null,null,155,"TALLAHASSEE","Florida","TALLAHASSEE","Florida - TALLAHASSEE",0,0,1,5,29,91,166,256,344,427,551,667,811,990,1496,1252,762,569,301,43]
[null,null,null,null,null,null,null,null,null,null,null,null,null,null,null,null,null,null,null,null,null,null,null,null,null,null,null,null,null,null,null,156,"TAMPA","Florida","TAMPA","Florida - TAMPA",0,0,0,0,1,4,19,54,127,209,360,513,741,1054,1441,1833,1287,844,268,5]
[null,null,null,null,null,null,null,null,null,null,null,null,null,null,null,null,null,null,null,null,null,null,null,null,null,null,null,null,null,null,null,157,"PANAMA CITY","Florida","TYNDALL AFB","Florida - PANAMA CITY",0,0,0,1,3,15,53,150,275,425,562,716,928,1063,1264,1382,1153,667,103,2]
[null,null,null,null,null,null,null,null,null,null,null,null,null,null,null,null,null,null,null,null,null,null,null,null,null,null,null,null,null,null,null,158,"VERO BEACH","Florida","VERO BEACH","Florida - VERO BEACH",0,0,0,0,0,3,11,34,90,158,278,408,572,923,1738,2048,1448,861,183,6]
[null,null,null,null,null,null,null,null,null,null,null,null,null,null,null,null,null,null,null,null,null,null,null,null,null,null,null,null,null,null,null,159,"WEST PALM BEACH","Florida","WEST PALM BEACH","Florida - WEST PALM BEACH",0,0,0,0,0,1,4,13,39,90,192,278,453,820,1778,2370,1740,848,131,3]
[null,null,null,null,null,null,null,null,null,null,null,null,null,null,null,null,null,null,null,null,null,null,null,null,null,null,null,null,null,null,null,160,"WHITING FIELD NAS","Florida","WHITING FIELD NAS","Florida - WHITING FIELD NAS",0,1,2,4,15,56,132,246,338,475,606,699,863,1000,1436,1289,756,533,268,39]
[null,null,null,null,null,null,null,null,null,null,null,null,null,null,null,null,null,null,null,null,null,null,null,null,null,null,null,null,null,null,null,161,"ALBANY","Georgia","MUNICIPAL","Georgia - ALBANY",0,0,2,6,25,88,173,283,410,508,642,732,845,915,1408,1074,731,527,312,80]
[null,null,null,null,null,null,null,null,null,null,null,null,null,null,null,null,null,null,null,null,null,null,null,null,null,null,null,null,null,null,null,162,"ATLANTA","Georgia"," INTL ARPT","Georgia - ATLANTA",3,4,12,28,60,144,295,428,549,643,699,768,851,976,1225,878,636,386,148,30]
[null,null,null,null,null,null,null,null,null,null,null,null,null,null,null,null,null,null,null,null,null,null,null,null,null,null,null,null,null,null,null,163,"AUGUSTA","Georgia","BUSH FIELD","Georgia - AUGUSTA",0,1,4,17,65,154,256,391,521,659,691,728,823,937,1250,862,601,456,258,85]
[null,null,null,null,null,null,null,null,null,null,null,null,null,null,null,null,null,null,null,null,null,null,null,null,null,null,null,null,null,null,null,164,"BRUNSWICK","Georgia","MALCOLM","Georgia - BRUNSWICK",0,0,0,2,6,29,88,182,291,457,605,772,938,999,1181,1483,1071,514,122,20]
[null,null,null,null,null,null,null,null,null,null,null,null,null,null,null,null,null,null,null,null,null,null,null,null,null,null,null,null,null,null,null,165,"COLUMBUS","Georgia","COLUMBUS","Georgia - COLUMBUS",0,1,3,10,33,93,224,328,458,586,666,739,848,874,1280,1088,682,500,281,65]
[null,null,null,null,null,null,null,null,null,null,null,null,null,null,null,null,null,null,null,null,null,null,null,null,null,null,null,null,null,null,null,166,"DOBBINS ARB","Georgia","MARIETTA","Georgia - DOBBINS ARB",1,3,11,28,58,157,330,461,585,662,700,784,858,962,1191,860,604,362,123,21]
[null,null,null,null,null,null,null,null,null,null,null,null,null,null,null,null,null,null,null,null,null,null,null,null,null,null,null,null,null,null,null,167,"FORT BENNING","Georgia","FORT BENNING","Georgia - FORT BENNING",0,1,4,10,41,149,266,352,487,594,669,721,827,917,1298,959,641,474,269,79]
[null,null,null,null,null,null,null,null,null,null,null,null,null,null,null,null,null,null,null,null,null,null,null,null,null,null,null,null,null,null,null,168,"HUNTER AAF","Georgia","HUNTER AAF","Georgia - HUNTER AAF",0,0,0,4,10,53,145,240,367,529,633,734,867,961,1280,1319,861,495,214,47]
[null,null,null,null,null,null,null,null,null,null,null,null,null,null,null,null,null,null,null,null,null,null,null,null,null,null,null,null,null,null,null,169,"MACON","Georgia","LEWIS WILSON","Georgia - MACON",0,1,4,11,38,105,225,321,457,629,679,735,841,945,1306,975,647,491,270,81]
[null,null,null,null,null,null,null,null,null,null,null,null,null,null,null,null,null,null,null,null,null,null,null,null,null,null,null,null,null,null,null,170,"VALDOSTA","Georgia","MOODY AFB","Georgia - VALDOSTA",0,0,0,3,7,30,104,192,337,460,586,716,849,984,1383,1312,842,585,315,55]
[null,null,null,null,null,null,null,null,null,null,null,null,null,null,null,null,null,null,null,null,null,null,null,null,null,null,null,null,null,null,null,171,"ROME","Georgia","RUSSELL","Georgia - ROME",9,14,15,45,99,232,357,516,615,708,685,772,788,968,1080,716,534,384,177,45]
[null,null,null,null,null,null,null,null,null,null,null,null,null,null,null,null,null,null,null,null,null,null,null,null,null,null,null,null,null,null,null,172,"SAVANNAH","Georgia","SAVANNAH","Georgia - SAVANNAH",0,0,1,5,16,63,146,248,377,517,638,730,870,963,1336,1261,802,498,235,56]
[null,null,null,null,null,null,null,null,null,null,null,null,null,null,null,null,null,null,null,null,null,null,null,null,null,null,null,null,null,null,null,173,"WARNER ROBINS AFB","Georgia","WARNER ROBINS AFB","Georgia - WARNER ROBINS AFB",0,0,2,8,27,99,221,336,483,604,672,743,847,923,1271,1004,679,490,270,81]
[null,null,null,null,null,null,null,null,null,null,null,null,null,null,null,null,null,null,null,null,null,null,null,null,null,null,null,null,null,null,null,174,"BARBERS PT","Hawaii","NAS/OAHU","Hawaii - BARBERS PT",0,0,0,0,0,0,0,0,0,0,1,27,190,899,2343,2433,1870,913,84,0]
[null,null,null,null,null,null,null,null,null,null,null,null,null,null,null,null,null,null,null,null,null,null,null,null,null,null,null,null,null,null,null,175,"HILO","Hawaii","HILO","Hawaii - HILO",0,0,0,0,0,0,0,0,0,0,0,9,258,1871,3093,2126,1301,100,1,0]
[null,null,null,null,null,null,null,null,null,null,null,null,null,null,null,null,null,null,null,null,null,null,null,null,null,null,null,null,null,null,null,176,"HONOLULU","Hawaii","OAHU","Hawaii - HONOLULU",0,0,0,0,0,0,0,0,0,0,0,18,159,648,2223,3137,1728,809,38,0]
[null,null,null,null,null,null,null,null,null,null,null,null,null,null,null,null,null,null,null,null,null,null,null,null,null,null,null,null,null,null,null,177,"KAHULUI","Hawaii","MAUI","Hawaii - KAHULUI",0,0,0,0,0,0,0,0,0,0,2,48,293,966,2420,2497,1760,724,51,0]
[null,null,null,null,null,null,null,null,null,null,null,null,null,null,null,null,null,null,null,null,null,null,null,null,null,null,null,null,null,null,null,178,"KANEOHE","Hawaii","OAHU","Hawaii - KANEOHE",0,0,0,0,0,0,0,0,0,0,0,1,16,282,2186,4234,1902,139,1,0]
[null,null,null,null,null,null,null,null,null,null,null,null,null,null,null,null,null,null,null,null,null,null,null,null,null,null,null,null,null,null,null,179,"LIHUE","Hawaii","KAUAI ISLAND","Hawaii - LIHUE",0,0,0,0,0,0,0,0,0,0,0,20,194,786,2351,3660,1623,126,0,0]
[null,null,null,null,null,null,null,null,null,null,null,null,null,null,null,null,null,null,null,null,null,null,null,null,null,null,null,null,null,null,null,180,"MIDWAY ISLAND NAF","Hawaii","MIDWAY ISLAND NAF","Hawaii - MIDWAY ISLAND NAF",0,0,0,0,0,0,0,0,0,0,8,126,801,1704,2146,2198,1469,309,1,0]
[null,null,null,null,null,null,null,null,null,null,null,null,null,null,null,null,null,null,null,null,null,null,null,null,null,null,null,null,null,null,null,181,"BOISE","Idaho","BOISE","Idaho - BOISE",60,44,76,149,285,449,739,820,827,938,798,721,652,549,480,390,310,235,159,77]
[null,null,null,null,null,null,null,null,null,null,null,null,null,null,null,null,null,null,null,null,null,null,null,null,null,null,null,null,null,null,null,182,"COEUR D’ALENE","Idaho","COEUR D’ALENE","Idaho - COEUR D’ALENE",47,58,133,193,355,636,1077,1080,934,895,819,700,536,409,307,239,176,109,47,9]
[null,null,null,null,null,null,null,null,null,null,null,null,null,null,null,null,null,null,null,null,null,null,null,null,null,null,null,null,null,null,null,183,"IDAHO FALLS","Idaho","FANNING","Idaho - IDAHO FALLS",266,162,252,330,491,685,933,796,711,685,709,613,544,432,371,309,245,160,60,6]
[null,null,null,null,null,null,null,null,null,null,null,null,null,null,null,null,null,null,null,null,null,null,null,null,null,null,null,null,null,null,null,184,"LEWISTON","Idaho","LEWISTON","Idaho - LEWISTON",27,25,36,79,151,324,591,904,1002,1040,889,858,717,614,466,359,276,195,126,81]
[null,null,null,null,null,null,null,null,null,null,null,null,null,null,null,null,null,null,null,null,null,null,null,null,null,null,null,null,null,null,null,185,"MOUNTAIN HOME AFB","Idaho","MOUNTAIN HOME AFB","Idaho - MOUNTAIN HOME AFB",45,41,79,152,293,519,796,864,853,803,762,689,638,550,451,370,306,239,183,125]
[null,null,null,null,null,null,null,null,null,null,null,null,null,null,null,null,null,null,null,null,null,null,null,null,null,null,null,null,null,null,null,186,"POCATELLO","Idaho","POCATELLO","Idaho - POCATELLO",157,104,158,260,392,611,881,875,821,745,723,652,579,464,421,340,265,186,104,23]
[null,null,null,null,null,null,null,null,null,null,null,null,null,null,null,null,null,null,null,null,null,null,null,null,null,null,null,null,null,null,null,187,"BELLEVILLE","Illinois","SCOTT AFB","Illinois - BELLEVILLE",43,51,95,145,222,379,596,667,631,603,602,654,730,770,848,690,509,325,160,40]
[null,null,null,null,null,null,null,null,null,null,null,null,null,null,null,null,null,null,null,null,null,null,null,null,null,null,null,null,null,null,null,188,"CHAMPAIGN","Illinois","URBANA","Illinois - CHAMPAIGN",122,98,144,191,308,464,769,727,583,570,609,632,727,754,745,598,402,221,78,18]
[null,null,null,null,null,null,null,null,null,null,null,null,null,null,null,null,null,null,null,null,null,null,null,null,null,null,null,null,null,null,null,189,"CHICAGO","Illinois","MIDWAY","Illinois - CHICAGO",130,112,152,226,317,511,744,783,622,597,586,611,689,729,755,578,361,179,63,13]
[null,null,null,null,null,null,null,null,null,null,null,null,null,null,null,null,null,null,null,null,null,null,null,null,null,null,null,null,null,null,null,190,"CHICAGO","Illinois","O’HARE","Illinois - CHICAGO",162,123,162,236,351,519,778,780,627,589,605,626,699,696,689,540,340,163,62,12]
[null,null,null,null,null,null,null,null,null,null,null,null,null,null,null,null,null,null,null,null,null,null,null,null,null,null,null,null,null,null,null,191,"DECATUR","Illinois","DECATUR","Illinois - DECATUR",114,100,145,197,297,478,709,681,578,570,590,633,713,764,779,598,445,247,97,23]
[null,null,null,null,null,null,null,null,null,null,null,null,null,null,null,null,null,null,null,null,null,null,null,null,null,null,null,null,null,null,null,192,"GLENVIEW","Illinois","GLENVIEW","Illinois - GLENVIEW",143,117,164,208,335,491,740,791,664,598,605,621,696,743,737,516,336,175,64,17]
[null,null,null,null,null,null,null,null,null,null,null,null,null,null,null,null,null,null,null,null,null,null,null,null,null,null,null,null,null,null,null,193,"KEFLAVIK","Illinois","KEFLAVIK","Illinois - KEFLAVIK",0,1,11,116,249,766,1267,1814,1184,1957,1191,185,16,1,0,0,0,0,0,0]
[null,null,null,null,null,null,null,null,null,null,null,null,null,null,null,null,null,null,null,null,null,null,null,null,null,null,null,null,null,null,null,194,"MOLINE","Illinois","QUAD CITY","Illinois - MOLINE",211,129,181,237,351,514,750,690,562,541,601,605,702,722,701,539,402,216,85,22]
[null,null,null,null,null,null,null,null,null,null,null,null,null,null,null,null,null,null,null,null,null,null,null,null,null,null,null,null,null,null,null,195,"PEORIA","Illinois","PEORIA","Illinois - PEORIA",167,112,165,217,328,498,732,674,583,546,596,623,729,745,776,562,411,207,73,18]
[null,null,null,null,null,null,null,null,null,null,null,null,null,null,null,null,null,null,null,null,null,null,null,null,null,null,null,null,null,null,null,196,"BELLEVILLE","Illinois","SCOTT AFB","Illinois - BELLEVILLE",43,51,95,145,222,379,596,667,631,603,602,654,730,770,848,690,509,325,160,40]
[null,null,null,null,null,null,null,null,null,null,null,null,null,null,null,null,null,null,null,null,null,null,null,null,null,null,null,null,null,null,null,197,"SPRINGFIELD","Illinois","CAPITAL","Illinois - SPRINGFIELD",121,96,138,185,282,438,698,677,606,544,592,618,726,736,801,634,472,265,106,24]
[null,null,null,null,null,null,null,null,null,null,null,null,null,null,null,null,null,null,null,null,null,null,null,null,null,null,null,null,null,null,null,198,"WEST CHICAGO","Illinois","DU PAGE","Illinois - WEST CHICAGO",204,131,186,241,375,537,810,736,596,557,598,638,721,712,678,487,336,161,47,7]
[null,null,null,null,null,null,null,null,null,null,null,null,null,null,null,null,null,null,null,null,null,null,null,null,null,null,null,null,null,null,null,199,"EVANSVILLE","Indiana","EVANSVILLE","Indiana - EVANSVILLE",44,48,77,114,197,359,566,656,620,615,641,647,737,779,873,695,537,354,167,34]
[null,null,null,null,null,null,null,null,null,null,null,null,null,null,null,null,null,null,null,null,null,null,null,null,null,null,null,null,null,null,null,200,"FORT WAYNE","Indiana","BAER","Indiana - FORT WAYNE",127,99,161,218,342,530,817,710,600,558,614,650,754,766,715,500,366,173,51,9]
[null,null,null,null,null,null,null,null,null,null,null,null,null,null,null,null,null,null,null,null,null,null,null,null,null,null,null,null,null,null,null,201,"GRISSOM AFB","Indiana","PERU","Indiana - GRISSOM AFB",114,95,145,209,316,507,757,722,594,573,584,634,720,778,780,588,392,187,54,11]
[null,null,null,null,null,null,null,null,null,null,null,null,null,null,null,null,null,null,null,null,null,null,null,null,null,null,null,null,null,null,null,202,"INDIANAPOLIS","Indiana","INDIANAPOLIS","Indiana - INDIANAPOLIS",100,77,120,176,289,473,703,677,610,585,591,673,727,806,835,597,433,223,60,8]
[null,null,null,null,null,null,null,null,null,null,null,null,null,null,null,null,null,null,null,null,null,null,null,null,null,null,null,null,null,null,null,203,"SOUTH BEND","Indiana","ST. JOSEPH","Indiana - SOUTH BEND",106,87,156,233,352,506,786,758,648,597,596,653,744,738,727,522,339,159,43,10]
[null,null,null,null,null,null,null,null,null,null,null,null,null,null,null,null,null,null,null,null,null,null,null,null,null,null,null,null,null,null,null,204,"TERRE HAUTE","Indiana","HULMAN FIELD","Indiana - TERRE HAUTE",105,75,115,154,262,426,678,704,609,603,632,644,762,790,821,584,445,254,84,14]
[null,null,null,null,null,null,null,null,null,null,null,null,null,null,null,null,null,null,null,null,null,null,null,null,null,null,null,null,null,null,null,205,"BURLINGTON","Iowa","BURLINGTON","Iowa - BURLINGTON",177,117,167,209,316,475,705,654,580,531,580,625,727,776,782,605,426,211,77,22]
[null,null,null,null,null,null,null,null,null,null,null,null,null,null,null,null,null,null,null,null,null,null,null,null,null,null,null,null,null,null,null,206,"CEDAR RAPIDS","Iowa","CEDAR RAPIDS","Iowa - CEDAR RAPIDS",264,144,195,261,406,554,815,658,527,532,609,633,735,707,665,470,339,162,65,15]
[null,null,null,null,null,null,null,null,null,null,null,null,null,null,null,null,null,null,null,null,null,null,null,null,null,null,null,null,null,null,null,207,"DES MOINES","Iowa","DES MOINES","Iowa - DES MOINES",241,147,197,253,350,486,721,642,532,528,571,596,708,741,730,568,419,215,86,30]
[null,null,null,null,null,null,null,null,null,null,null,null,null,null,null,null,null,null,null,null,null,null,null,null,null,null,null,null,null,null,null,208,"FORT DODGE","Iowa","FORT DODGE","Iowa - FORT DODGE",384,194,235,307,418,571,793,581,499,528,555,621,719,732,625,486,309,143,48,11]
[null,null,null,null,null,null,null,null,null,null,null,null,null,null,null,null,null,null,null,null,null,null,null,null,null,null,null,null,null,null,null,209,"MASON CITY","Iowa","MASON CITY","Iowa - MASON CITY",459,198,262,320,440,577,823,583,490,517,571,601,707,663,602,439,297,147,55,11]
[null,null,null,null,null,null,null,null,null,null,null,null,null,null,null,null,null,null,null,null,null,null,null,null,null,null,null,null,null,null,null,210,"SIOUX CITY","Iowa","SIOUX CITY","Iowa - SIOUX CITY",312,167,225,294,402,542,735,615,522,528,561,587,681,709,665,507,382,207,90,28]
[null,null,null,null,null,null,null,null,null,null,null,null,null,null,null,null,null,null,null,null,null,null,null,null,null,null,null,null,null,null,null,211,"WATERLOO","Iowa","WATERLOO","Iowa - WATERLOO",382,179,233,290,411,555,771,624,502,511,577,603,699,687,651,491,350,167,59,14]
[null,null,null,null,null,null,null,null,null,null,null,null,null,null,null,null,null,null,null,null,null,null,null,null,null,null,null,null,null,null,null,212,"CHANUTE","Kansas","MARTIN JOHN","Kansas - CHANUTE",57,62,98,150,221,363,573,598,584,591,598,685,731,815,842,687,509,339,175,83]
[null,null,null,null,null,null,null,null,null,null,null,null,null,null,null,null,null,null,null,null,null,null,null,null,null,null,null,null,null,null,null,213,"DODGE CITY","Kansas","DODGE CITY","Kansas - DODGE CITY",72,66,126,182,291,451,631,627,606,589,629,636,711,723,723,553,445,304,217,179]
[null,null,null,null,null,null,null,null,null,null,null,null,null,null,null,null,null,null,null,null,null,null,null,null,null,null,null,null,null,null,null,214,"FT RILEY","Kansas","MARSHALL AAF","Kansas - FT RILEY",76,75,119,184,287,432,585,622,589,576,571,640,666,723,745,650,528,351,210,130]
[null,null,null,null,null,null,null,null,null,null,null,null,null,null,null,null,null,null,null,null,null,null,null,null,null,null,null,null,null,null,null,215,"GOODLAND","Kansas","RENNER","Kansas - GOODLAND",118,98,156,237,366,548,737,715,621,616,676,685,754,694,538,418,329,226,152,75]
[null,null,null,null,null,null,null,null,null,null,null,null,null,null,null,null,null,null,null,null,null,null,null,null,null,null,null,null,null,null,null,216,"HUTCHINSON","Kansas","HUTCHINSON","Kansas - HUTCHINSON",64,69,116,172,269,394,602,617,584,588,598,618,686,717,759,637,492,340,243,194]
[null,null,null,null,null,null,null,null,null,null,null,null,null,null,null,null,null,null,null,null,null,null,null,null,null,null,null,null,null,null,null,217,"MCCONNELL AFB","Kansas","MCCONNELL AFB","Kansas - MCCONNELL AFB",37,50,89,139,218,372,552,605,607,613,602,651,702,769,808,700,514,354,220,156]
[null,null,null,null,null,null,null,null,null,null,null,null,null,null,null,null,null,null,null,null,null,null,null,null,null,null,null,null,null,null,null,218,"SALINA","Kansas","SALINA","Kansas - SALINA",85,73,115,170,259,427,617,635,595,593,591,626,669,724,720,638,487,338,219,181]
[null,null,null,null,null,null,null,null,null,null,null,null,null,null,null,null,null,null,null,null,null,null,null,null,null,null,null,null,null,null,null,219,"TOPEKA","Kansas","BILLARD","Kansas - TOPEKA",98,77,129,175,268,422,642,635,585,562,607,628,713,738,782,638,517,316,170,61]
[null,null,null,null,null,null,null,null,null,null,null,null,null,null,null,null,null,null,null,null,null,null,null,null,null,null,null,null,null,null,null,220,"TOPEKA","Kansas","FORBES FIELD","Kansas - TOPEKA",65,70,123,173,261,431,624,644,621,571,623,659,725,770,789,636,474,285,150,63]
[null,null,null,null,null,null,null,null,null,null,null,null,null,null,null,null,null,null,null,null,null,null,null,null,null,null,null,null,null,null,null,221,"WICHITA","Kansas","CONTINE","Kansas - WICHITA",56,54,105,146,246,383,595,600,593,607,620,634,694,731,793,658,502,339,230,174]
[null,null,null,null,null,null,null,null,null,null,null,null,null,null,null,null,null,null,null,null,null,null,null,null,null,null,null,null,null,null,null,222,"FORT CAMPBELL","Kentucky","FORT CAMPBELL","Kentucky - FORT CAMPBELL",19,27,52,97,165,322,494,563,613,613,643,702,786,866,992,757,530,338,149,32]
[null,null,null,null,null,null,null,null,null,null,null,null,null,null,null,null,null,null,null,null,null,null,null,null,null,null,null,null,null,null,null,223,"FORT KNOX","Kentucky","GODMAN","Kentucky - FORT KNOX",29,35,61,116,185,366,538,627,631,623,672,708,807,884,953,684,479,265,84,12]
[null,null,null,null,null,null,null,null,null,null,null,null,null,null,null,null,null,null,null,null,null,null,null,null,null,null,null,null,null,null,null,224,"LEXINGTON","Kentucky","BLUEGRASS","Kentucky - LEXINGTON",39,42,76,143,207,366,598,627,609,647,670,691,819,876,975,646,425,237,60,8]
[null,null,null,null,null,null,null,null,null,null,null,null,null,null,null,null,null,null,null,null,null,null,null,null,null,null,null,null,null,null,null,225,"LOUISVILLE","Kentucky","STANDIFORD","Kentucky - LOUISVILLE",27,35,66,113,181,335,532,648,625,622,659,670,746,807,954,746,546,314,119,18]
[null,null,null,null,null,null,null,null,null,null,null,null,null,null,null,null,null,null,null,null,null,null,null,null,null,null,null,null,null,null,null,226,"ALEXANDRIA","Louisiana","ESLER","Louisiana - ALEXANDRIA",0,1,1,9,23,77,210,295,420,509,607,649,793,941,1364,1082,781,571,358,67]
[null,null,null,null,null,null,null,null,null,null,null,null,null,null,null,null,null,null,null,null,null,null,null,null,null,null,null,null,null,null,null,227,"BARKSDALE AFB","Louisiana","BARKSDALE AFB","Louisiana - BARKSDALE AFB",0,1,3,15,38,119,247,372,491,568,659,707,793,906,1151,1082,713,505,316,75]
[null,null,null,null,null,null,null,null,null,null,null,null,null,null,null,null,null,null,null,null,null,null,null,null,null,null,null,null,null,null,null,228,"BATON ROUGE","Louisiana","RYAN","Louisiana - BATON ROUGE",0,0,3,5,15,51,139,252,353,460,610,673,794,921,1403,1337,864,576,288,18]
[null,null,null,null,null,null,null,null,null,null,null,null,null,null,null,null,null,null,null,null,null,null,null,null,null,null,null,null,null,null,null,229,"ENGLAND AFB","Louisiana","ALEXANDRIA","Louisiana - ENGLAND AFB",0,0,1,4,17,68,181,286,419,534,622,678,776,908,1271,1279,775,545,339,55]
[null,null,null,null,null,null,null,null,null,null,null,null,null,null,null,null,null,null,null,null,null,null,null,null,null,null,null,null,null,null,null,230,"FORT POLK","Louisiana","FORT POLK","Louisiana - FORT POLK",0,0,1,6,17,57,141,274,407,503,611,697,782,940,1342,1280,787,551,312,53]
[null,null,null,null,null,null,null,null,null,null,null,null,null,null,null,null,null,null,null,null,null,null,null,null,null,null,null,null,null,null,null,231,"LAFAYETTE","Louisiana","LAFAYETTE","Louisiana - LAFAYETTE",0,0,2,4,11,35,104,240,342,456,595,666,784,946,1342,1503,834,592,287,18]
[null,null,null,null,null,null,null,null,null,null,null,null,null,null,null,null,null,null,null,null,null,null,null,null,null,null,null,null,null,null,null,232,"LAKE CHARLES","Louisiana","LAKE CHARLES","Louisiana - LAKE CHARLES",0,0,1,2,9,32,103,230,360,466,618,675,813,960,1302,1469,863,618,226,13]
[null,null,null,null,null,null,null,null,null,null,null,null,null,null,null,null,null,null,null,null,null,null,null,null,null,null,null,null,null,null,null,233,"NEW ORLEANS","Louisiana","LAKEFRONT","Louisiana - NEW ORLEANS",0,0,1,3,4,6,21,83,197,383,612,747,840,933,1089,1492,1394,708,238,11]
[null,null,null,null,null,null,null,null,null,null,null,null,null,null,null,null,null,null,null,null,null,null,null,null,null,null,null,null,null,null,null,234,"NEW ORLEANS","Louisiana","INTERNATIONAL","Louisiana - NEW ORLEANS",0,0,1,2,5,23,75,182,300,422,578,665,810,941,1303,1540,1029,617,246,22]
[null,null,null,null,null,null,null,null,null,null,null,null,null,null,null,null,null,null,null,null,null,null,null,null,null,null,null,null,null,null,null,235,"NEW ORLEANS NAS","Louisiana","NEW ORLEANS NAS","Louisiana - NEW ORLEANS NAS",0,0,1,2,7,27,95,197,301,422,564,675,820,955,1374,1578,907,579,237,20]
[null,null,null,null,null,null,null,null,null,null,null,null,null,null,null,null,null,null,null,null,null,null,null,null,null,null,null,null,null,null,null,236,"SHREVEPORT","Louisiana","SHREVEPORT","Louisiana - SHREVEPORT",0,1,4,15,42,111,238,362,482,556,652,682,799,893,1214,1062,720,505,330,94]
[null,null,null,null,null,null,null,null,null,null,null,null,null,null,null,null,null,null,null,null,null,null,null,null,null,null,null,null,null,null,null,237,"AUGUSTA","Maine","AUGUSTA","Maine - AUGUSTA",202,190,261,341,410,509,748,784,693,683,732,768,780,640,487,309,167,48,8,1]
[null,null,null,null,null,null,null,null,null,null,null,null,null,null,null,null,null,null,null,null,null,null,null,null,null,null,null,null,null,null,null,238,"BANGOR","Maine","INTL ARPT","Maine - BANGOR",264,212,276,334,411,559,755,750,682,674,737,773,819,621,417,251,152,57,13,1]
[null,null,null,null,null,null,null,null,null,null,null,null,null,null,null,null,null,null,null,null,null,null,null,null,null,null,null,null,null,null,null,239,"BRUNSWICK","Maine","BRUNSWICK","Maine - BRUNSWICK",156,158,231,310,382,558,722,796,734,732,740,788,840,702,453,262,138,47,10,1]
[null,null,null,null,null,null,null,null,null,null,null,null,null,null,null,null,null,null,null,null,null,null,null,null,null,null,null,null,null,null,null,240,"LORING AFB","Maine","LIMESTONE","Maine - LORING AFB",588,330,383,437,484,599,770,699,634,635,664,700,668,524,340,191,86,24,3,0]
[null,null,null,null,null,null,null,null,null,null,null,null,null,null,null,null,null,null,null,null,null,null,null,null,null,null,null,null,null,null,null,241,"PORTLAND","Maine","PORTLAND","Maine - PORTLAND",123,134,218,303,396,544,769,828,765,755,769,806,796,637,449,261,142,51,15,1]
[null,null,null,null,null,null,null,null,null,null,null,null,null,null,null,null,null,null,null,null,null,null,null,null,null,null,null,null,null,null,null,242,"ANDREWS AFB","Maryland","ANDREWS AFB","Maryland - ANDREWS AFB",5,12,35,80,182,344,544,684,733,713,699,701,785,842,934,665,442,247,93,20]
[null,null,null,null,null,null,null,null,null,null,null,null,null,null,null,null,null,null,null,null,null,null,null,null,null,null,null,null,null,null,null,243,"BALTIMORE","Maryland","BALTIMORE","Maryland - BALTIMORE",8,14,43,97,197,354,570,678,719,714,695,688,775,806,908,657,452,258,106,24]
[null,null,null,null,null,null,null,null,null,null,null,null,null,null,null,null,null,null,null,null,null,null,null,null,null,null,null,null,null,null,null,244,"PATUXENT RIVER NAS","Maryland","PATUXENT RIVER NAS","Maryland - PATUXENT RIVER NAS",2,8,22,53,128,288,473,653,742,749,733,717,757,808,954,832,517,240,74,11]
[null,null,null,null,null,null,null,null,null,null,null,null,null,null,null,null,null,null,null,null,null,null,null,null,null,null,null,null,null,null,null,245,"BOSTON","Massachusetts","LOGAN","Massachusetts - BOSTON",15,37,88,181,284,441,668,788,832,760,766,777,787,804,688,422,247,121,44,8]
[null,null,null,null,null,null,null,null,null,null,null,null,null,null,null,null,null,null,null,null,null,null,null,null,null,null,null,null,null,null,null,246,"CHICOPEE","Massachusetts","WESTOVER ARB","Massachusetts - CHICOPEE",75,88,156,249,363,565,797,749,697,657,675,717,743,724,630,431,277,122,42,5]
[null,null,null,null,null,null,null,null,null,null,null,null,null,null,null,null,null,null,null,null,null,null,null,null,null,null,null,null,null,null,null,247,"HANSCOM AFB","Massachusetts","BEDFORD","Massachusetts - HANSCOM AFB",63,92,156,248,318,543,718,739,685,659,668,733,765,740,661,476,298,146,45,6]
[null,null,null,null,null,null,null,null,null,null,null,null,null,null,null,null,null,null,null,null,null,null,null,null,null,null,null,null,null,null,null,248,"FALMOUTH","Massachusetts","OTIS ANGB","Massachusetts - FALMOUTH",11,35,78,158,260,439,687,799,882,862,833,829,893,853,665,320,122,29,3,0]
[null,null,null,null,null,null,null,null,null,null,null,null,null,null,null,null,null,null,null,null,null,null,null,null,null,null,null,null,null,null,null,249,"SOUTH WEYMOUTH","Massachusetts","SOUTH WEYMOUTH","Massachusetts - SOUTH WEYMOUTH",30,51,111,206,304,442,702,771,753,777,754,778,817,737,643,425,278,128,43,8]
[null,null,null,null,null,null,null,null,null,null,null,null,null,null,null,null,null,null,null,null,null,null,null,null,null,null,null,null,null,null,null,250,"WORCESTER","Massachusetts","WORCESTER","Massachusetts - WORCESTER",79,131,222,322,426,580,773,771,706,689,723,756,800,709,536,331,156,44,4,1]
[null,null,null,null,null,null,null,null,null,null,null,null,null,null,null,null,null,null,null,null,null,null,null,null,null,null,null,null,null,null,null,251,"ALPENA","Michigan","ALPENA","Michigan - ALPENA",214,187,286,377,499,674,940,749,662,629,687,674,668,555,430,284,162,63,18,4]
[null,null,null,null,null,null,null,null,null,null,null,null,null,null,null,null,null,null,null,null,null,null,null,null,null,null,null,null,null,null,null,252,"BATTLE CREEK","Michigan","BATTLE CREEK","Michigan - BATTLE CREEK",101,109,221,305,395,572,808,697,574,542,585,663,701,726,696,499,349,159,47,10]
[null,null,null,null,null,null,null,null,null,null,null,null,null,null,null,null,null,null,null,null,null,null,null,null,null,null,null,null,null,null,null,253,"DETROIT CITY","Michigan","DETROIT CITY","Michigan - DETROIT CITY",44,76,160,246,379,479,751,806,659,597,601,624,708,729,744,560,372,168,48,7]
[null,null,null,null,null,null,null,null,null,null,null,null,null,null,null,null,null,null,null,null,null,null,null,null,null,null,null,null,null,null,null,254,"FLINT","Michigan","BISHOP","Michigan - FLINT",111,113,202,306,384,548,871,791,635,553,633,702,700,737,639,429,269,108,24,4]
[null,null,null,null,null,null,null,null,null,null,null,null,null,null,null,null,null,null,null,null,null,null,null,null,null,null,null,null,null,null,null,255,"GRAND RAPIDS","Michigan","GRAND RAPIDS","Michigan - GRAND RAPIDS",77,99,185,308,455,605,871,767,603,577,592,659,743,699,604,479,282,120,33,3]
[null,null,null,null,null,null,null,null,null,null,null,null,null,null,null,null,null,null,null,null,null,null,null,null,null,null,null,null,null,null,null,256,"HOUGHTON","Michigan","HOUGHTON","Michigan - HOUGHTON",327,315,414,486,572,700,867,683,575,589,665,701,667,522,361,195,87,25,8,1]
[null,null,null,null,null,null,null,null,null,null,null,null,null,null,null,null,null,null,null,null,null,null,null,null,null,null,null,null,null,null,null,257,"JACKSON","Michigan","REYNOLDS","Michigan - JACKSON",117,125,196,307,427,559,842,722,590,573,624,660,711,698,648,468,308,142,39,5]
[null,null,null,null,null,null,null,null,null,null,null,null,null,null,null,null,null,null,null,null,null,null,null,null,null,null,null,null,null,null,null,258,"GLADSTONE","Michigan","K. I. SAWYER","Michigan - GLADSTONE",430,265,386,504,617,748,882,663,589,604,646,644,610,484,334,204,102,34,11,1]
[null,null,null,null,null,null,null,null,null,null,null,null,null,null,null,null,null,null,null,null,null,null,null,null,null,null,null,null,null,null,null,259,"LANSING","Michigan","LANSING","Michigan - LANSING",132,125,202,325,442,584,890,758,602,589,623,651,688,685,590,448,272,114,33,5]
[null,null,null,null,null,null,null,null,null,null,null,null,null,null,null,null,null,null,null,null,null,null,null,null,null,null,null,null,null,null,null,260,"MARQUETTE","Michigan","MARQUETTE","Michigan - MARQUETTE",450,295,382,477,592,772,810,661,565,592,626,660,638,498,375,217,105,35,11,1]
[null,null,null,null,null,null,null,null,null,null,null,null,null,null,null,null,null,null,null,null,null,null,null,null,null,null,null,null,null,null,null,261,"MUSKEGON","Michigan","MUSKEGON","Michigan - MUSKEGON",53,90,200,313,436,604,889,819,644,609,651,677,731,702,646,428,211,51,6,0]
[null,null,null,null,null,null,null,null,null,null,null,null,null,null,null,null,null,null,null,null,null,null,null,null,null,null,null,null,null,null,null,262,"PELLSTON","Michigan","EMMET","Michigan - PELLSTON",262,187,287,394,494,679,917,753,638,614,647,680,649,574,440,310,161,59,13,1]
[null,null,null,null,null,null,null,null,null,null,null,null,null,null,null,null,null,null,null,null,null,null,null,null,null,null,null,null,null,null,null,263,"SAULT STE MARIE","Michigan","SAULT STE MARIE","Michigan - SAULT STE MARIE",451,283,367,425,497,656,910,744,629,651,737,711,613,470,328,187,75,23,3,0]
[null,null,null,null,null,null,null,null,null,null,null,null,null,null,null,null,null,null,null,null,null,null,null,null,null,null,null,null,null,null,null,264,"SELFRIDGE ANGB","Michigan","SELFRIDGE ANGB","Michigan - SELFRIDGE ANGB",62,101,182,284,392,557,808,818,672,620,641,686,727,726,648,455,252,100,27,5]
[null,null,null,null,null,null,null,null,null,null,null,null,null,null,null,null,null,null,null,null,null,null,null,null,null,null,null,null,null,null,null,265,"TRAVERSE CITY","Michigan","TRAVERSE CITY","Michigan - TRAVERSE CITY",121,138,260,370,500,625,895,782,640,599,642,650,707,627,510,349,224,88,29,4]
[null,null,null,null,null,null,null,null,null,null,null,null,null,null,null,null,null,null,null,null,null,null,null,null,null,null,null,null,null,null,null,266,"OSCODA","Michigan","WURTSMITH AFB","Michigan - OSCODA",129,162,244,355,469,672,887,798,655,639,670,679,688,646,491,299,173,77,23,4]
[null,null,null,null,null,null,null,null,null,null,null,null,null,null,null,null,null,null,null,null,null,null,null,null,null,null,null,null,null,null,null,267,"BEMIDJI","Minnesota","BEMIDJI","Minnesota - BEMIDJI",859,282,333,426,457,608,665,565,491,536,588,647,695,566,460,311,178,68,21,3]
[null,null,null,null,null,null,null,null,null,null,null,null,null,null,null,null,null,null,null,null,null,null,null,null,null,null,null,null,null,null,null,268,"DULUTH","Minnesota","DULUTH","Minnesota - DULUTH",701,279,351,411,568,635,783,628,531,612,709,660,717,494,318,237,87,29,6,0]
[null,null,null,null,null,null,null,null,null,null,null,null,null,null,null,null,null,null,null,null,null,null,null,null,null,null,null,null,null,null,null,269,"INTERNATIONAL FALLS","Minnesota","INTERNATIONAL FALLS","Minnesota - INTERNATIONAL FALLS",1031,298,354,400,474,592,678,569,523,538,636,647,661,509,391,253,144,49,13,1]
[null,null,null,null,null,null,null,null,null,null,null,null,null,null,null,null,null,null,null,null,null,null,null,null,null,null,null,null,null,null,null,270,"MINNEAPOLIS-ST PAUL","Minnesota","MINNEAPOLIS-ST PAUL","Minnesota - MINNEAPOLIS-ST PAUL",476,210,260,356,424,554,716,630,516,499,530,613,687,688,651,450,299,145,46,11]
[null,null,null,null,null,null,null,null,null,null,null,null,null,null,null,null,null,null,null,null,null,null,null,null,null,null,null,null,null,null,null,271,"ROCHESTER","Minnesota","ROCHESTER","Minnesota - ROCHESTER",525,213,252,360,459,590,823,605,496,532,573,649,751,662,548,386,224,90,22,4]
[null,null,null,null,null,null,null,null,null,null,null,null,null,null,null,null,null,null,null,null,null,null,null,null,null,null,null,null,null,null,null,272,"COLUMBUS AFB","Mississippi","COLUMBUS AFB","Mississippi - COLUMBUS AFB",1,3,6,22,67,169,305,431,525,613,668,714,823,891,1173,952,632,450,255,60]
[null,null,null,null,null,null,null,null,null,null,null,null,null,null,null,null,null,null,null,null,null,null,null,null,null,null,null,null,null,null,null,273,"JACKSON","Mississippi","THOMPSON","Mississippi - JACKSON",1,2,6,18,55,155,261,372,466,531,636,695,791,912,1271,1072,668,488,303,59]
[null,null,null,null,null,null,null,null,null,null,null,null,null,null,null,null,null,null,null,null,null,null,null,null,null,null,null,null,null,null,null,274,"BILOXI","Mississippi","BILOXI","Mississippi - BILOXI",0,0,1,2,5,21,70,164,305,421,553,706,893,982,1116,1391,1205,710,199,17]
[null,null,null,null,null,null,null,null,null,null,null,null,null,null,null,null,null,null,null,null,null,null,null,null,null,null,null,null,null,null,null,275,"MCCOMB","Mississippi","LEWIS","Mississippi - MCCOMB",0,1,4,11,32,102,215,319,418,532,622,695,856,1069,1521,999,619,479,233,32]
[null,null,null,null,null,null,null,null,null,null,null,null,null,null,null,null,null,null,null,null,null,null,null,null,null,null,null,null,null,null,null,276,"MERIDIAN","Mississippi","KEY","Mississippi - MERIDIAN",0,2,5,18,56,147,278,365,478,579,639,691,831,961,1303,966,602,494,284,64]
[null,null,null,null,null,null,null,null,null,null,null,null,null,null,null,null,null,null,null,null,null,null,null,null,null,null,null,null,null,null,null,277,"COLUMBIA","Missouri","COLUMBIA","Missouri - COLUMBIA",85,73,123,173,276,415,657,621,599,587,616,677,772,804,818,597,435,267,125,40]
[null,null,null,null,null,null,null,null,null,null,null,null,null,null,null,null,null,null,null,null,null,null,null,null,null,null,null,null,null,null,null,278,"FORT LEONARD WOOD","Missouri","FORT LEONARD WOOD","Missouri - FORT LEONARD WOOD",39,44,77,141,223,340,535,563,588,589,619,688,782,874,891,721,532,321,146,46]
[null,null,null,null,null,null,null,null,null,null,null,null,null,null,null,null,null,null,null,null,null,null,null,null,null,null,null,null,null,null,null,279,"JOPLIN","Missouri","JOPLIN","Missouri - JOPLIN",40,44,77,119,203,319,514,583,579,594,631,675,775,830,875,738,546,359,190,69]
[null,null,null,null,null,null,null,null,null,null,null,null,null,null,null,null,null,null,null,null,null,null,null,null,null,null,null,null,null,null,null,280,"KANSAS CITY","Missouri","RICHARDS-GEBAUR AFB","Missouri - KANSAS CITY",65,71,114,167,261,397,590,598,582,565,598,655,746,796,830,690,512,313,147,61]
[null,null,null,null,null,null,null,null,null,null,null,null,null,null,null,null,null,null,null,null,null,null,null,null,null,null,null,null,null,null,null,281,"SPRINGFIELD","Missouri","SPRINGFLD","Missouri - SPRINGFIELD",48,48,76,137,217,344,548,617,663,615,632,706,783,867,892,647,446,299,137,41]
[null,null,null,null,null,null,null,null,null,null,null,null,null,null,null,null,null,null,null,null,null,null,null,null,null,null,null,null,null,null,null,282,"ST LOUIS","Missouri","ST LOUIS","Missouri - ST LOUIS",37,47,77,120,218,381,614,662,644,622,619,650,735,775,831,694,506,324,158,45]
[null,null,null,null,null,null,null,null,null,null,null,null,null,null,null,null,null,null,null,null,null,null,null,null,null,null,null,null,null,null,null,283,"ST. LOUIS","Missouri","LAMBERT","Missouri - ST. LOUIS",59,59,110,150,219,353,590,612,609,576,577,629,695,737,849,761,578,371,172,56]
[null,null,null,null,null,null,null,null,null,null,null,null,null,null,null,null,null,null,null,null,null,null,null,null,null,null,null,null,null,null,null,284,"WHITEMAN AFB","Missouri","WHITEMAN AFB","Missouri - WHITEMAN AFB",68,63,106,158,241,383,615,641,613,594,607,665,730,802,826,674,481,294,149,49]
[null,null,null,null,null,null,null,null,null,null,null,null,null,null,null,null,null,null,null,null,null,null,null,null,null,null,null,null,null,null,null,285,"BILLINGS","Montana","LOGAN","Montana - BILLINGS",328,128,161,197,322,489,737,778,783,748,763,725,696,556,467,338,263,161,91,29]
[null,null,null,null,null,null,null,null,null,null,null,null,null,null,null,null,null,null,null,null,null,null,null,null,null,null,null,null,null,null,null,286,"BUTTE","Montana","MOONEY","Montana - BUTTE",480,202,275,359,555,795,965,902,814,740,656,508,432,330,289,226,161,61,9,0]
[null,null,null,null,null,null,null,null,null,null,null,null,null,null,null,null,null,null,null,null,null,null,null,null,null,null,null,null,null,null,null,287,"CUT BANK","Montana","CUT BANK","Montana - CUT BANK",540,156,204,256,397,595,801,837,873,849,835,688,560,411,318,220,139,61,16,1]
[null,null,null,null,null,null,null,null,null,null,null,null,null,null,null,null,null,null,null,null,null,null,null,null,null,null,null,null,null,null,null,288,"GLASGOW","Montana","GLASGOW","Montana - GLASGOW",641,225,297,335,453,541,689,671,583,583,677,638,643,545,426,340,231,138,77,30]
[null,null,null,null,null,null,null,null,null,null,null,null,null,null,null,null,null,null,null,null,null,null,null,null,null,null,null,null,null,null,null,289,"GREAT FALLS","Montana","GREAT FALLS","Montana - GREAT FALLS",431,128,156,206,309,493,742,822,855,833,849,755,639,485,391,283,205,116,53,12]
[null,null,null,null,null,null,null,null,null,null,null,null,null,null,null,null,null,null,null,null,null,null,null,null,null,null,null,null,null,null,null,290,"HAVRE","Montana","HAVRE","Montana - HAVRE",605,199,211,302,377,529,702,800,685,711,744,682,586,479,379,315,212,136,77,28]
[null,null,null,null,null,null,null,null,null,null,null,null,null,null,null,null,null,null,null,null,null,null,null,null,null,null,null,null,null,null,null,291,"HELENA","Montana","HELENA","Montana - HELENA",375,168,214,309,397,547,789,836,819,762,776,713,608,462,355,267,189,116,47,8]
[null,null,null,null,null,null,null,null,null,null,null,null,null,null,null,null,null,null,null,null,null,null,null,null,null,null,null,null,null,null,null,292,"KALISPELL","Montana","GLACIER","Montana - KALISPELL",200,132,192,281,466,704,1015,965,830,806,781,668,521,380,309,228,165,85,30,2]
[null,null,null,null,null,null,null,null,null,null,null,null,null,null,null,null,null,null,null,null,null,null,null,null,null,null,null,null,null,null,null,293,"LEWISTOWN","Montana","LEWISTOWN","Montana - LEWISTOWN",420,148,196,272,402,594,816,862,891,827,817,671,539,423,343,247,174,85,28,4]
[null,null,null,null,null,null,null,null,null,null,null,null,null,null,null,null,null,null,null,null,null,null,null,null,null,null,null,null,null,null,null,294,"MALMSTROM AFB","Montana","MALMSTROM AFB","Montana - MALMSTROM AFB",427,137,158,206,320,453,668,792,841,846,830,794,670,508,401,297,208,129,60,15]
[null,null,null,null,null,null,null,null,null,null,null,null,null,null,null,null,null,null,null,null,null,null,null,null,null,null,null,null,null,null,null,295,"MILES CITY","Montana","MILES CITY","Montana - MILES CITY",455,178,226,285,386,546,706,708,635,626,637,637,614,569,476,386,296,199,120,74]
[null,null,null,null,null,null,null,null,null,null,null,null,null,null,null,null,null,null,null,null,null,null,null,null,null,null,null,null,null,null,null,296,"MISSOULA","Montana","BELL FIELD","Montana - MISSOULA",152,112,167,291,425,663,1022,910,846,789,783,694,544,405,319,250,190,123,61,12]
[null,null,null,null,null,null,null,null,null,null,null,null,null,null,null,null,null,null,null,null,null,null,null,null,null,null,null,null,null,null,null,297,"GRAND ISLAND","Nebraska","GRAND ISLAND","Nebraska - GRAND ISLAND",208,140,188,256,370,527,710,650,570,556,598,608,708,714,657,502,382,227,122,66]
[null,null,null,null,null,null,null,null,null,null,null,null,null,null,null,null,null,null,null,null,null,null,null,null,null,null,null,null,null,null,null,298,"LINCOLN","Nebraska","LINCOLN","Nebraska - LINCOLN",210,136,192,244,367,522,687,620,559,536,577,589,667,698,690,543,436,262,146,81]
[null,null,null,null,null,null,null,null,null,null,null,null,null,null,null,null,null,null,null,null,null,null,null,null,null,null,null,null,null,null,null,299,"N. PLATTE","Nebraska","LEE BIRD","Nebraska - N. PLATTE",229,140,221,305,456,602,705,653,592,572,611,634,726,655,547,420,321,210,115,47]
[null,null,null,null,null,null,null,null,null,null,null,null,null,null,null,null,null,null,null,null,null,null,null,null,null,null,null,null,null,null,null,300,"OFFUTT AFB","Nebraska","BELLEVUE","Nebraska - OFFUTT AFB",172,141,195,247,346,508,697,664,557,531,573,593,683,746,745,580,416,229,98,38]
[null,null,null,null,null,null,null,null,null,null,null,null,null,null,null,null,null,null,null,null,null,null,null,null,null,null,null,null,null,null,null,301,"OMAHA","Nebraska","EPPLEY","Nebraska - OMAHA",216,144,184,247,371,518,681,639,549,546,565,595,680,729,702,554,427,245,120,51]
[null,null,null,null,null,null,null,null,null,null,null,null,null,null,null,null,null,null,null,null,null,null,null,null,null,null,null,null,null,null,null,302,"SCOTTSBLUFF","Nebraska","SCOTTSBLUFF","Nebraska - SCOTTSBLUFF",208,132,177,275,403,563,747,720,663,654,657,692,724,592,481,371,297,217,128,58]
[null,null,null,null,null,null,null,null,null,null,null,null,null,null,null,null,null,null,null,null,null,null,null,null,null,null,null,null,null,null,null,303,"ELKO","Nevada","ELKO","Nevada - ELKO",129,110,180,282,429,624,834,912,833,749,676,586,522,434,382,328,297,240,159,52]
[null,null,null,null,null,null,null,null,null,null,null,null,null,null,null,null,null,null,null,null,null,null,null,null,null,null,null,null,null,null,null,304,"ELY","Nevada","YELLAND FIELD","Nevada - ELY",156,131,212,310,480,704,908,883,771,717,672,618,538,431,380,340,288,176,47,1]
[null,null,null,null,null,null,null,null,null,null,null,null,null,null,null,null,null,null,null,null,null,null,null,null,null,null,null,null,null,null,null,305,"LAS VEGAS","Nevada","MCCARRAN","Nevada - LAS VEGAS",0,0,0,2,8,31,140,335,547,728,794,758,713,666,683,686,716,610,508,835]
[null,null,null,null,null,null,null,null,null,null,null,null,null,null,null,null,null,null,null,null,null,null,null,null,null,null,null,null,null,null,null,306,"MERCURY","Nevada","DESERT ROCK","Nevada - MERCURY",0,0,1,4,27,86,274,507,664,795,812,731,720,730,728,666,622,520,443,433]
[null,null,null,null,null,null,null,null,null,null,null,null,null,null,null,null,null,null,null,null,null,null,null,null,null,null,null,null,null,null,null,307,"NELLIS AFB","Nevada","NELLIS AFB","Nevada - NELLIS AFB",0,0,1,3,9,57,180,326,501,675,775,776,730,674,677,667,658,599,534,921]
[null,null,null,null,null,null,null,null,null,null,null,null,null,null,null,null,null,null,null,null,null,null,null,null,null,null,null,null,null,null,null,308,"RENO","Nevada","CANNON INTL","Nevada - RENO",15,20,49,122,293,509,755,802,865,884,855,744,645,521,464,401,359,257,156,43]
[null,null,null,null,null,null,null,null,null,null,null,null,null,null,null,null,null,null,null,null,null,null,null,null,null,null,null,null,null,null,null,309,"TONOPAH","Nevada","TONOPAH","Nevada - TONOPAH",19,26,62,151,316,531,781,806,768,734,743,714,655,579,522,450,392,302,170,39]
[null,null,null,null,null,null,null,null,null,null,null,null,null,null,null,null,null,null,null,null,null,null,null,null,null,null,null,null,null,null,null,310,"WINNEMUCCA","Nevada","WINNEMUCCA","Nevada - WINNEMUCCA",56,57,115,191,345,540,785,861,854,829,748,625,568,486,423,352,327,278,212,108]
[null,null,null,null,null,null,null,null,null,null,null,null,null,null,null,null,null,null,null,null,null,null,null,null,null,null,null,null,null,null,null,311,"CONCORD","New Hampshire","CONCORD","New Hampshire - CONCORD",208,156,233,329,420,599,794,733,682,652,676,677,708,617,507,351,248,121,41,5]
[null,null,null,null,null,null,null,null,null,null,null,null,null,null,null,null,null,null,null,null,null,null,null,null,null,null,null,null,null,null,null,312,"LEBANON","New Hampshire","LEBANON","New Hampshire - LEBANON",267,177,242,310,406,578,792,786,676,642,674,708,714,646,477,325,216,99,23,2]
[null,null,null,null,null,null,null,null,null,null,null,null,null,null,null,null,null,null,null,null,null,null,null,null,null,null,null,null,null,null,null,313,"MANCHESTER","New Hampshire","MANCHESTER","New Hampshire - MANCHESTER",74,94,165,243,367,477,723,720,746,660,690,683,782,679,646,438,320,167,73,12]
[null,null,null,null,null,null,null,null,null,null,null,null,null,null,null,null,null,null,null,null,null,null,null,null,null,null,null,null,null,null,null,314,"PEASE AFB","New Hampshire","PORTSMOUTH","New Hampshire - PEASE AFB",63,87,173,275,389,521,751,806,765,723,731,765,792,718,559,340,198,81,21,2]
[null,null,null,null,null,null,null,null,null,null,null,null,null,null,null,null,null,null,null,null,null,null,null,null,null,null,null,null,null,null,null,315,"ATLANTIC CITY","New Jersey","ATLANTIC CITY","New Jersey - ATLANTIC CITY",21,31,70,148,242,382,578,673,738,750,789,771,786,771,845,573,355,170,56,9]
[null,null,null,null,null,null,null,null,null,null,null,null,null,null,null,null,null,null,null,null,null,null,null,null,null,null,null,null,null,null,null,316,"LAKEHURST","New Jersey","LAKEHURST","New Jersey - LAKEHURST",16,30,77,142,260,378,571,646,739,718,744,784,816,787,802,567,371,209,84,17]
[null,null,null,null,null,null,null,null,null,null,null,null,null,null,null,null,null,null,null,null,null,null,null,null,null,null,null,null,null,null,null,317,"MCGUIRE AFB","New Jersey","MCGUIRE AFB","New Jersey - MCGUIRE AFB",9,24,60,142,256,403,605,712,751,716,702,728,770,798,820,587,390,206,70,11]
[null,null,null,null,null,null,null,null,null,null,null,null,null,null,null,null,null,null,null,null,null,null,null,null,null,null,null,null,null,null,null,318,"NEWARK INTL AIRPORT","New Jersey","NEWARK INTL AIRPORT","New Jersey - NEWARK INTL AIRPORT",12,22,57,133,229,340,546,705,756,708,736,671,735,753,858,692,452,237,93,25]
[null,null,null,null,null,null,null,null,null,null,null,null,null,null,null,null,null,null,null,null,null,null,null,null,null,null,null,null,null,null,null,319,"TETERBORO","New Jersey","TETERBORO","New Jersey - TETERBORO",12,22,65,133,257,402,584,756,771,728,719,729,795,777,776,576,370,200,71,14]
[null,null,null,null,null,null,null,null,null,null,null,null,null,null,null,null,null,null,null,null,null,null,null,null,null,null,null,null,null,null,null,320,"TRENTON","New Jersey","MERCER","New Jersey - TRENTON",18,30,76,164,260,399,603,687,722,705,723,699,783,774,840,596,390,208,69,14]
[null,null,null,null,null,null,null,null,null,null,null,null,null,null,null,null,null,null,null,null,null,null,null,null,null,null,null,null,null,null,null,321,"ALBUQUERQUE","New Mexico","ALBUQUERQUE","New Mexico - ALBUQUERQUE",0,8,22,58,176,367,611,700,705,711,715,686,786,839,753,589,455,316,197,65]
[null,null,null,null,null,null,null,null,null,null,null,null,null,null,null,null,null,null,null,null,null,null,null,null,null,null,null,null,null,null,null,322,"CLOVIS","New Mexico","CANNON AFB","New Mexico - CLOVIS",5,16,37,76,159,343,513,622,670,680,709,746,862,953,758,573,444,336,191,69]
[null,null,null,null,null,null,null,null,null,null,null,null,null,null,null,null,null,null,null,null,null,null,null,null,null,null,null,null,null,null,null,323,"CARLSBAD","New Mexico","CAVERN CITY","New Mexico - CARLSBAD",2,3,11,30,88,214,364,440,527,589,673,703,793,934,941,735,613,464,357,280]
[null,null,null,null,null,null,null,null,null,null,null,null,null,null,null,null,null,null,null,null,null,null,null,null,null,null,null,null,null,null,null,324,"FARMINGTON","New Mexico","FARMINGTON","New Mexico - FARMINGTON",33,48,97,194,368,590,776,730,698,669,655,659,757,664,563,446,370,265,143,35]
[null,null,null,null,null,null,null,null,null,null,null,null,null,null,null,null,null,null,null,null,null,null,null,null,null,null,null,null,null,null,null,325,"GALLUP","New Mexico","GALLUP","New Mexico - GALLUP",75,83,165,275,422,591,770,748,697,692,689,727,731,588,481,424,345,196,56,5]
[null,null,null,null,null,null,null,null,null,null,null,null,null,null,null,null,null,null,null,null,null,null,null,null,null,null,null,null,null,null,null,326,"LAS CRUCES","New Mexico","HOLLOMAN AFB","New Mexico - LAS CRUCES",0,1,7,27,93,248,410,525,592,680,719,739,790,853,843,711,601,450,305,166]
[null,null,null,null,null,null,null,null,null,null,null,null,null,null,null,null,null,null,null,null,null,null,null,null,null,null,null,null,null,null,null,327,"ROSWELL","New Mexico","INDUSTRIAL","New Mexico - ROSWELL",3,7,20,48,127,280,431,491,581,615,701,701,782,872,877,696,594,434,319,183]
[null,null,null,null,null,null,null,null,null,null,null,null,null,null,null,null,null,null,null,null,null,null,null,null,null,null,null,null,null,null,null,328,"TUCUMCARI","New Mexico","TUCUMCARI","New Mexico - TUCUMCARI",12,22,49,96,185,325,463,555,616,689,712,755,785,859,766,643,488,363,245,130]
[null,null,null,null,null,null,null,null,null,null,null,null,null,null,null,null,null,null,null,null,null,null,null,null,null,null,null,null,null,null,null,329,"WHITE SANDS MISSLE RANGE","New Mexico","WHITE SANDS MISSLE RANGE","New Mexico - WHITE SANDS MISSLE RANGE",1,2,8,26,87,200,342,426,524,641,714,760,813,941,894,743,612,476,346,204]
[null,null,null,null,null,null,null,null,null,null,null,null,null,null,null,null,null,null,null,null,null,null,null,null,null,null,null,null,null,null,null,330,"ALBANY","New York","ALBANY","New York - ALBANY",146,136,211,289,368,526,730,777,696,636,677,719,738,722,608,401,252,100,25,2]
[null,null,null,null,null,null,null,null,null,null,null,null,null,null,null,null,null,null,null,null,null,null,null,null,null,null,null,null,null,null,null,331,"BINGHAMTON","New York","BROOME","New York - BINGHAMTON",122,153,254,334,448,592,809,690,637,652,684,740,832,749,548,315,153,45,4,0]
[null,null,null,null,null,null,null,null,null,null,null,null,null,null,null,null,null,null,null,null,null,null,null,null,null,null,null,null,null,null,null,332,"BUFFALO","New York","BUFFALO","New York - BUFFALO",67,120,195,316,396,526,803,778,651,640,657,702,743,742,684,449,221,63,7,0]
[null,null,null,null,null,null,null,null,null,null,null,null,null,null,null,null,null,null,null,null,null,null,null,null,null,null,null,null,null,null,null,333,"FORT DRUM","New York","WHEELER","New York - FORT DRUM",326,203,269,303,359,479,724,672,596,584,651,723,793,761,610,408,222,69,9,0]
[null,null,null,null,null,null,null,null,null,null,null,null,null,null,null,null,null,null,null,null,null,null,null,null,null,null,null,null,null,null,null,334,"GLEN FALLS","New York","WARREN","New York - GLEN FALLS",259,164,251,317,409,563,787,758,678,631,670,689,738,660,517,344,220,84,19,1]
[null,null,null,null,null,null,null,null,null,null,null,null,null,null,null,null,null,null,null,null,null,null,null,null,null,null,null,null,null,null,null,335,"ROME","New York","GRIFFISS AFB","New York - ROME",202,152,229,314,417,545,809,796,665,616,657,700,730,705,550,360,210,84,18,1]
[null,null,null,null,null,null,null,null,null,null,null,null,null,null,null,null,null,null,null,null,null,null,null,null,null,null,null,null,null,null,null,336,"ISLIP","New York","MACARTHUR","New York - ISLIP",9,26,67,142,262,390,595,747,810,784,800,762,800,833,855,521,244,91,18,2]
[null,null,null,null,null,null,null,null,null,null,null,null,null,null,null,null,null,null,null,null,null,null,null,null,null,null,null,null,null,null,null,337,"JAMESTOWN","New York","JAMESTOWN","New York - JAMESTOWN",94,139,235,340,453,665,898,678,636,664,665,751,800,711,517,319,145,44,8,0]
[null,null,null,null,null,null,null,null,null,null,null,null,null,null,null,null,null,null,null,null,null,null,null,null,null,null,null,null,null,null,null,338,"NEW YORK","New York","LA GUARDIA","New York - NEW YORK",8,17,45,103,214,344,512,739,791,733,770,722,776,780,878,675,403,183,59,10]
[null,null,null,null,null,null,null,null,null,null,null,null,null,null,null,null,null,null,null,null,null,null,null,null,null,null,null,null,null,null,null,339,"NEW YORK","New York","JOHN F KENNEDY","New York - NEW YORK",5,16,40,104,215,349,517,739,836,826,818,737,767,856,886,619,295,104,28,5]
[null,null,null,null,null,null,null,null,null,null,null,null,null,null,null,null,null,null,null,null,null,null,null,null,null,null,null,null,null,null,null,340,"NEWBURGH","New York","STEWART","New York - NEWBURGH",42,68,138,220,339,467,713,772,747,704,711,761,779,816,686,440,246,89,19,2]
[null,null,null,null,null,null,null,null,null,null,null,null,null,null,null,null,null,null,null,null,null,null,null,null,null,null,null,null,null,null,null,341,"NIAGARA FALLS INTL","New York","NIAGARA FALLS INTL","New York - NIAGARA FALLS INTL",57,109,186,310,406,539,823,800,671,624,644,713,744,734,643,431,241,75,10,1]
[null,null,null,null,null,null,null,null,null,null,null,null,null,null,null,null,null,null,null,null,null,null,null,null,null,null,null,null,null,null,null,342,"PLATTSBURGH AFB","New York","PLATTSBURGH AFB","New York - PLATTSBURGH AFB",334,211,284,334,416,556,712,748,662,653,667,716,740,696,524,316,140,40,9,1]
[null,null,null,null,null,null,null,null,null,null,null,null,null,null,null,null,null,null,null,null,null,null,null,null,null,null,null,null,null,null,null,343,"POUGHKEEPSIE","New York","POUGHKEEPSIE","New York - POUGHKEEPSIE",83,90,157,242,367,539,723,744,704,666,676,711,736,725,636,448,301,151,52,9]
[null,null,null,null,null,null,null,null,null,null,null,null,null,null,null,null,null,null,null,null,null,null,null,null,null,null,null,null,null,null,null,344,"SYRACUSE","New York","HANCOCK","New York - SYRACUSE",127,119,209,297,381,507,767,776,686,643,691,715,738,700,618,420,247,96,25,1]
[null,null,null,null,null,null,null,null,null,null,null,null,null,null,null,null,null,null,null,null,null,null,null,null,null,null,null,null,null,null,null,345,"UTICA","New York","ONEIDA","New York - UTICA",172,157,249,323,419,537,837,758,647,617,668,703,755,704,559,356,210,73,17,0]
[null,null,null,null,null,null,null,null,null,null,null,null,null,null,null,null,null,null,null,null,null,null,null,null,null,null,null,null,null,null,null,346,"WATERTOWN","New York","WATERTOWN","New York - WATERTOWN",306,171,237,304,400,511,749,776,677,647,697,681,734,683,584,371,181,47,6,0]
[null,null,null,null,null,null,null,null,null,null,null,null,null,null,null,null,null,null,null,null,null,null,null,null,null,null,null,null,null,null,null,347,"WHITE PLAINS","New York","WHITE PLAINS","New York - WHITE PLAINS",25,47,111,203,319,453,698,776,737,735,754,748,784,806,708,446,273,102,29,3]
[null,null,null,null,null,null,null,null,null,null,null,null,null,null,null,null,null,null,null,null,null,null,null,null,null,null,null,null,null,null,null,348,"ASHEVILLE","North Carolina","ASHEVILLE","North Carolina - ASHEVILLE",7,17,40,81,161,323,546,618,686,736,796,826,1008,1140,792,519,328,115,21,1]
[null,null,null,null,null,null,null,null,null,null,null,null,null,null,null,null,null,null,null,null,null,null,null,null,null,null,null,null,null,null,null,349,"CAPE HATTERAS","North Carolina","CAPE HATTERAS","North Carolina - CAPE HATTERAS",0,0,2,4,22,84,192,301,493,676,742,806,936,1028,1183,1240,783,253,13,0]
[null,null,null,null,null,null,null,null,null,null,null,null,null,null,null,null,null,null,null,null,null,null,null,null,null,null,null,null,null,null,null,350,"CHARLOTTE","North Carolina","DOUGLAS","North Carolina - CHARLOTTE",0,4,7,32,75,175,358,497,616,679,723,752,841,963,1153,802,571,350,137,27]
[null,null,null,null,null,null,null,null,null,null,null,null,null,null,null,null,null,null,null,null,null,null,null,null,null,null,null,null,null,null,null,351,"CHERRY POINT","North Carolina","CHERRY POINT","North Carolina - CHERRY POINT",0,1,4,14,44,122,254,376,503,628,686,726,848,968,1195,1144,713,385,128,22]
[null,null,null,null,null,null,null,null,null,null,null,null,null,null,null,null,null,null,null,null,null,null,null,null,null,null,null,null,null,null,null,352,"FORT BRAGG","North Carolina","SIMMONS","North Carolina - FORT BRAGG",0,1,5,22,67,161,335,446,572,634,678,709,801,883,1150,979,652,427,184,51]
[null,null,null,null,null,null,null,null,null,null,null,null,null,null,null,null,null,null,null,null,null,null,null,null,null,null,null,null,null,null,null,353,"GREENSBORO","North Carolina","PIEDMONT","North Carolina - GREENSBORO",2,8,24,61,123,259,490,576,665,682,725,744,837,962,1062,667,481,279,95,15]
[null,null,null,null,null,null,null,null,null,null,null,null,null,null,null,null,null,null,null,null,null,null,null,null,null,null,null,null,null,null,null,354,"GREENVILLE","North Carolina","SPARTANBURG","North Carolina - GREENVILLE",1,3,8,31,78,193,364,507,652,714,769,772,864,994,1127,704,527,304,121,27]
[null,null,null,null,null,null,null,null,null,null,null,null,null,null,null,null,null,null,null,null,null,null,null,null,null,null,null,null,null,null,null,355,"NEW RIVER MCAS","North Carolina","NEW RIVER MCAS","North Carolina - NEW RIVER MCAS",0,1,3,16,49,125,267,378,506,609,689,730,841,946,1201,1118,699,401,152,27]
[null,null,null,null,null,null,null,null,null,null,null,null,null,null,null,null,null,null,null,null,null,null,null,null,null,null,null,null,null,null,null,356,"POPE AFB","North Carolina","POPE AFB","North Carolina - POPE AFB",0,1,8,30,74,189,359,460,568,634,667,701,810,877,1107,957,652,419,197,51]
[null,null,null,null,null,null,null,null,null,null,null,null,null,null,null,null,null,null,null,null,null,null,null,null,null,null,null,null,null,null,null,357,"RALEIGH-DURHAM","North Carolina","RALEIGH-DURHAM","North Carolina - RALEIGH-DURHAM",1,5,21,45,97,234,416,534,613,667,720,760,821,961,1113,755,519,333,126,22]
[null,null,null,null,null,null,null,null,null,null,null,null,null,null,null,null,null,null,null,null,null,null,null,null,null,null,null,null,null,null,null,358,"SEYMOUR-JOHNSON AFB","North Carolina","SEYMOUR-JOHNSON AFB","North Carolina - SEYMOUR-JOHNSON AFB",0,1,5,20,65,161,330,460,560,647,698,745,824,910,1149,954,624,390,174,42]
[null,null,null,null,null,null,null,null,null,null,null,null,null,null,null,null,null,null,null,null,null,null,null,null,null,null,null,null,null,null,null,359,"BISMARCK","North Dakota","BISMARCK","North Dakota - BISMARCK",664,261,303,376,482,566,689,634,577,529,616,629,636,537,447,348,233,136,71,28]
[null,null,null,null,null,null,null,null,null,null,null,null,null,null,null,null,null,null,null,null,null,null,null,null,null,null,null,null,null,null,null,360,"DICKINSON","North Dakota","DICKINSON","North Dakota - DICKINSON",571,211,263,341,480,604,728,696,618,593,679,658,610,523,416,318,223,129,72,29]
[null,null,null,null,null,null,null,null,null,null,null,null,null,null,null,null,null,null,null,null,null,null,null,null,null,null,null,null,null,null,null,361,"FARGO","North Dakota","HECTOR","North Dakota - FARGO",823,298,317,373,465,547,674,531,483,480,553,604,655,612,518,384,253,131,44,14]
[null,null,null,null,null,null,null,null,null,null,null,null,null,null,null,null,null,null,null,null,null,null,null,null,null,null,null,null,null,null,null,362,"GRAND FORKS","North Dakota","GRAND FORKS AFB","North Dakota - GRAND FORKS",936,309,333,393,458,545,636,576,500,514,571,625,642,563,454,326,220,105,43,10]
[null,null,null,null,null,null,null,null,null,null,null,null,null,null,null,null,null,null,null,null,null,null,null,null,null,null,null,null,null,null,null,363,"MINOT","North Dakota","MINOT AFB","North Dakota - MINOT",854,281,320,372,464,563,702,612,526,508,620,638,610,512,435,319,214,123,61,25]
[null,null,null,null,null,null,null,null,null,null,null,null,null,null,null,null,null,null,null,null,null,null,null,null,null,null,null,null,null,null,null,364,"AKRON-CANTON","Ohio","AKRON-CANTON","Ohio - AKRON-CANTON",79,93,149,238,331,503,765,723,635,642,684,711,799,819,715,473,283,95,20,2]
[null,null,null,null,null,null,null,null,null,null,null,null,null,null,null,null,null,null,null,null,null,null,null,null,null,null,null,null,null,null,null,365,"CINCINNATI","Ohio","COVINGTON","Ohio - CINCINNATI",64,57,100,158,263,428,653,666,597,611,665,675,793,865,890,578,425,203,58,9]
[null,null,null,null,null,null,null,null,null,null,null,null,null,null,null,null,null,null,null,null,null,null,null,null,null,null,null,null,null,null,null,366,"CINCINNATI","Ohio","LUNKIN","Ohio - CINCINNATI",42,46,79,141,223,406,598,713,636,649,648,689,753,832,864,626,434,273,95,15]
[null,null,null,null,null,null,null,null,null,null,null,null,null,null,null,null,null,null,null,null,null,null,null,null,null,null,null,null,null,null,null,367,"CLEVELAND","Ohio","HOPKINS","Ohio - CLEVELAND",72,79,139,226,339,506,747,760,647,630,662,670,787,807,749,493,296,118,29,4]
[null,null,null,null,null,null,null,null,null,null,null,null,null,null,null,null,null,null,null,null,null,null,null,null,null,null,null,null,null,null,null,368,"COLUMBUS","Ohio","PORT COLUMBUS","Ohio - COLUMBUS",64,69,119,181,299,463,691,705,630,633,654,671,767,809,813,551,396,190,52,7]
[null,null,null,null,null,null,null,null,null,null,null,null,null,null,null,null,null,null,null,null,null,null,null,null,null,null,null,null,null,null,null,369,"DAYTON","Ohio","JAMES M COX","Ohio - DAYTON",83,84,127,192,303,482,726,691,604,609,646,672,758,806,795,556,385,189,48,7]
[null,null,null,null,null,null,null,null,null,null,null,null,null,null,null,null,null,null,null,null,null,null,null,null,null,null,null,null,null,null,null,370,"MANSFIELD","Ohio","LAHM","Ohio - MANSFIELD",106,108,164,238,357,533,762,676,604,610,674,699,791,803,736,500,280,99,19,1]
[null,null,null,null,null,null,null,null,null,null,null,null,null,null,null,null,null,null,null,null,null,null,null,null,null,null,null,null,null,null,null,371,"RICKENBACKER","Ohio","RICKENBACKER","Ohio - RICKENBACKER",56,59,108,177,284,462,706,718,631,624,666,678,777,831,814,540,382,182,57,8]
[null,null,null,null,null,null,null,null,null,null,null,null,null,null,null,null,null,null,null,null,null,null,null,null,null,null,null,null,null,null,null,372,"TOLEDO","Ohio","TOLEDO","Ohio - TOLEDO",114,104,178,254,376,541,820,732,633,580,651,661,736,713,655,475,335,149,47,8]
[null,null,null,null,null,null,null,null,null,null,null,null,null,null,null,null,null,null,null,null,null,null,null,null,null,null,null,null,null,null,null,373,"WRIGHT-PATTERSON AFB","Ohio","WRIGHT-PATTERSON AFB","Ohio - WRIGHT-PATTERSON AFB",64,71,120,186,296,463,679,710,626,608,631,669,753,798,808,592,406,211,59,8]
[null,null,null,null,null,null,null,null,null,null,null,null,null,null,null,null,null,null,null,null,null,null,null,null,null,null,null,null,null,null,null,374,"YOUNGSTOWN","Ohio","YOUNGSTOWN","Ohio - YOUNGSTOWN",88,95,175,255,368,549,813,695,647,645,690,720,789,778,633,435,268,95,21,1]
[null,null,null,null,null,null,null,null,null,null,null,null,null,null,null,null,null,null,null,null,null,null,null,null,null,null,null,null,null,null,null,375,"ZANESVILLE","Ohio","ZANESVILLE","Ohio - ZANESVILLE",67,66,111,190,301,492,698,690,643,644,660,728,784,858,758,512,352,163,37,3]
[null,null,null,null,null,null,null,null,null,null,null,null,null,null,null,null,null,null,null,null,null,null,null,null,null,null,null,null,null,null,null,376,"ALTUS","Oklahoma","ALTUS AFB","Oklahoma - ALTUS",2,9,28,57,130,242,427,516,585,610,630,655,697,762,882,799,631,457,342,302]
[null,null,null,null,null,null,null,null,null,null,null,null,null,null,null,null,null,null,null,null,null,null,null,null,null,null,null,null,null,null,null,377,"FORT SILL","Oklahoma","FORT SILL","Oklahoma - FORT SILL",3,11,28,53,115,217,376,517,602,623,660,682,723,796,908,840,631,448,314,214]
[null,null,null,null,null,null,null,null,null,null,null,null,null,null,null,null,null,null,null,null,null,null,null,null,null,null,null,null,null,null,null,378,"MC ALESTER","Oklahoma","MC ALESTER","Oklahoma - MC ALESTER",7,17,38,64,131,229,371,463,551,593,669,652,772,863,1001,878,671,420,253,119]
[null,null,null,null,null,null,null,null,null,null,null,null,null,null,null,null,null,null,null,null,null,null,null,null,null,null,null,null,null,null,null,379,"OKLAHOMA CITY","Oklahoma","OKLAHOMA CITY","Oklahoma - OKLAHOMA CITY",12,23,47,89,158,252,441,548,573,618,660,674,752,817,931,802,562,399,267,134]
[null,null,null,null,null,null,null,null,null,null,null,null,null,null,null,null,null,null,null,null,null,null,null,null,null,null,null,null,null,null,null,380,"TINKER AFB","Oklahoma","TINKER AFB","Oklahoma - TINKER AFB",5,18,39,71,133,238,400,523,599,612,660,694,760,820,926,872,609,401,253,124]
[null,null,null,null,null,null,null,null,null,null,null,null,null,null,null,null,null,null,null,null,null,null,null,null,null,null,null,null,null,null,null,381,"TULSA","Oklahoma","(AW)","Oklahoma - TULSA",15,27,53,86,153,251,419,525,568,610,648,635,719,768,873,817,677,456,292,168]
[null,null,null,null,null,null,null,null,null,null,null,null,null,null,null,null,null,null,null,null,null,null,null,null,null,null,null,null,null,null,null,382,"ENID","Oklahoma","VANCE AFB","Oklahoma - ENID",15,28,58,102,178,313,498,547,617,605,631,655,714,764,835,747,565,398,280,208]
[null,null,null,null,null,null,null,null,null,null,null,null,null,null,null,null,null,null,null,null,null,null,null,null,null,null,null,null,null,null,null,383,"ASTORIA","Oregon","CLATSOP","Oregon - ASTORIA",0,0,2,7,20,71,259,589,1085,1688,1842,1690,987,361,101,36,17,4,1,0]
[null,null,null,null,null,null,null,null,null,null,null,null,null,null,null,null,null,null,null,null,null,null,null,null,null,null,null,null,null,null,null,384,"BURNS","Oregon","BURNS","Oregon - BURNS",77,78,148,247,406,704,987,1009,843,811,705,620,530,430,368,309,253,159,70,8]
[null,null,null,null,null,null,null,null,null,null,null,null,null,null,null,null,null,null,null,null,null,null,null,null,null,null,null,null,null,null,null,385,"EUGENE","Oregon","MAHLON SWEET","Oregon - EUGENE",0,2,6,16,47,148,417,759,1088,1407,1454,1143,806,520,365,249,174,96,44,16]
[null,null,null,null,null,null,null,null,null,null,null,null,null,null,null,null,null,null,null,null,null,null,null,null,null,null,null,null,null,null,null,386,"KLAMATH FALLS","Oregon","KINGS FLD","Oregon - KLAMATH FALLS",28,41,81,148,296,633,1025,1065,1001,896,783,654,554,445,380,304,238,132,46,8]
[null,null,null,null,null,null,null,null,null,null,null,null,null,null,null,null,null,null,null,null,null,null,null,null,null,null,null,null,null,null,null,387,"MEDFORD","Oregon","JACKSON CO.","Oregon - MEDFORD",1,1,3,12,67,220,580,868,1083,1110,1053,907,749,563,459,342,285,209,145,105]
[null,null,null,null,null,null,null,null,null,null,null,null,null,null,null,null,null,null,null,null,null,null,null,null,null,null,null,null,null,null,null,388,"NORTH BEND","Oregon","NORTH BEND","Oregon - NORTH BEND",0,0,0,1,4,22,121,390,861,1629,2231,1949,1080,396,63,10,3,1,0,0]
[null,null,null,null,null,null,null,null,null,null,null,null,null,null,null,null,null,null,null,null,null,null,null,null,null,null,null,null,null,null,null,389,"PENDLETON","Oregon","PENDLETON","Oregon - PENDLETON",42,36,47,92,165,364,614,794,956,1086,952,881,743,602,431,351,267,170,111,55]
[null,null,null,null,null,null,null,null,null,null,null,null,null,null,null,null,null,null,null,null,null,null,null,null,null,null,null,null,null,null,null,390,"PORTLAND","Oregon","PORTLAND","Oregon - PORTLAND",0,0,4,19,34,95,324,634,1094,1356,1246,1243,1063,646,435,264,164,88,36,15]
[null,null,null,null,null,null,null,null,null,null,null,null,null,null,null,null,null,null,null,null,null,null,null,null,null,null,null,null,null,null,null,391,"REDMOND","Oregon","REDMOND","Oregon - REDMOND",52,42,76,149,325,574,884,973,1085,1027,898,679,551,410,344,261,214,135,67,18]
[null,null,null,null,null,null,null,null,null,null,null,null,null,null,null,null,null,null,null,null,null,null,null,null,null,null,null,null,null,null,null,392,"SALEM","Oregon","MCNARY","Oregon - SALEM",0,1,7,21,56,148,408,703,1093,1387,1419,1163,851,536,378,257,174,94,44,20]
[null,null,null,null,null,null,null,null,null,null,null,null,null,null,null,null,null,null,null,null,null,null,null,null,null,null,null,null,null,null,null,393,"SEXTON SUMMIT","Oregon","SEXTON SUMMIT","Oregon - SEXTON SUMMIT",0,2,5,14,85,441,1012,1238,1327,1163,989,786,622,471,323,176,79,23,4,0]
[null,null,null,null,null,null,null,null,null,null,null,null,null,null,null,null,null,null,null,null,null,null,null,null,null,null,null,null,null,null,null,394,"ALLENTOWN","Pennsylvania","BETHLEHEM","Pennsylvania - ALLENTOWN",25,46,105,196,309,453,696,783,711,676,684,680,753,774,766,527,353,167,51,6]
[null,null,null,null,null,null,null,null,null,null,null,null,null,null,null,null,null,null,null,null,null,null,null,null,null,null,null,null,null,null,null,395,"ALTOONA","Pennsylvania","BLAIR ","Pennsylvania - ALTOONA",44,67,144,217,346,526,774,745,649,656,689,724,833,843,683,455,259,87,20,1]
[null,null,null,null,null,null,null,null,null,null,null,null,null,null,null,null,null,null,null,null,null,null,null,null,null,null,null,null,null,null,null,396,"DU BOIS","Pennsylvania","DU BOIS","Pennsylvania - DU BOIS",103,116,208,296,432,631,821,665,640,660,662,761,830,794,556,357,176,45,4,0]
[null,null,null,null,null,null,null,null,null,null,null,null,null,null,null,null,null,null,null,null,null,null,null,null,null,null,null,null,null,null,null,397,"JOHNSTOWN","Pennsylvania","CAMBRIA","Pennsylvania - JOHNSTOWN",74,102,173,267,404,591,757,679,645,670,696,777,900,863,598,335,168,52,8,1]
[null,null,null,null,null,null,null,null,null,null,null,null,null,null,null,null,null,null,null,null,null,null,null,null,null,null,null,null,null,null,null,398,"MIDDLETOWN","Pennsylvania","OLMSTED","Pennsylvania - MIDDLETOWN",12,21,66,142,264,405,651,790,780,677,690,638,705,799,835,609,405,194,63,13]
[null,null,null,null,null,null,null,null,null,null,null,null,null,null,null,null,null,null,null,null,null,null,null,null,null,null,null,null,null,null,null,399,"PHILADELPHIA","Pennsylvania","PHILADELPHIA","Pennsylvania - PHILADELPHIA",9,17,51,117,225,367,563,705,737,715,690,702,757,763,874,665,453,245,88,18]
[null,null,null,null,null,null,null,null,null,null,null,null,null,null,null,null,null,null,null,null,null,null,null,null,null,null,null,null,null,null,null,400,"PHILADELPHIA ","Pennsylvania","NORTHEAST","Pennsylvania - PHILADELPHIA ",10,19,60,133,249,390,588,728,758,723,690,719,756,773,814,603,414,235,81,16]
[null,null,null,null,null,null,null,null,null,null,null,null,null,null,null,null,null,null,null,null,null,null,null,null,null,null,null,null,null,null,null,401,"PITTSBURGH INTL","Pennsylvania","PITTSBURGH INTL","Pennsylvania - PITTSBURGH INTL",62,72,129,209,318,494,750,690,643,654,671,729,807,842,734,487,316,118,30,4]
[null,null,null,null,null,null,null,null,null,null,null,null,null,null,null,null,null,null,null,null,null,null,null,null,null,null,null,null,null,null,null,402,"WILKES-BARRE","Pennsylvania","SCRANTON","Pennsylvania - WILKES-BARRE",57,80,159,248,359,508,744,784,690,664,692,706,792,799,666,433,264,92,21,2]
[null,null,null,null,null,null,null,null,null,null,null,null,null,null,null,null,null,null,null,null,null,null,null,null,null,null,null,null,null,null,null,403,"WILLIAMSPORT","Pennsylvania","WILLIAMSPORT","Pennsylvania - WILLIAMSPORT",52,70,127,218,335,506,738,848,704,659,689,694,754,777,672,452,293,125,39,8]
[null,null,null,null,null,null,null,null,null,null,null,null,null,null,null,null,null,null,null,null,null,null,null,null,null,null,null,null,null,null,null,404,"WILLOW GROVE","Pennsylvania","WILLOW GROVE","Pennsylvania - WILLOW GROVE",14,28,77,154,255,392,604,750,746,703,696,714,757,789,817,588,398,201,68,12]
[null,null,null,null,null,null,null,null,null,null,null,null,null,null,null,null,null,null,null,null,null,null,null,null,null,null,null,null,null,null,null,405,"PROVIDENCE","Rhode Island","GREEN","Rhode Island - PROVIDENCE",27,50,104,188,296,431,684,757,753,760,788,757,793,797,713,456,254,113,34,5]
[null,null,null,null,null,null,null,null,null,null,null,null,null,null,null,null,null,null,null,null,null,null,null,null,null,null,null,null,null,null,null,406,"BEAUFORT","South Carolina","BEAUFORT","South Carolina - BEAUFORT",0,0,1,5,15,64,145,256,391,542,642,740,871,952,1176,1317,886,500,215,43]
[null,null,null,null,null,null,null,null,null,null,null,null,null,null,null,null,null,null,null,null,null,null,null,null,null,null,null,null,null,null,null,407,"CHARLESTON","South Carolina","CHARLESTON","South Carolina - CHARLESTON",0,0,2,7,22,83,191,295,423,565,672,727,904,947,1251,1217,803,444,178,29]
[null,null,null,null,null,null,null,null,null,null,null,null,null,null,null,null,null,null,null,null,null,null,null,null,null,null,null,null,null,null,null,408,"COLUMBIA","South Carolina","COLUMBIA","South Carolina - COLUMBIA",0,1,5,21,66,165,290,394,517,610,683,707,798,902,1246,924,635,466,251,80]
[null,null,null,null,null,null,null,null,null,null,null,null,null,null,null,null,null,null,null,null,null,null,null,null,null,null,null,null,null,null,null,409,"FLORENCE","South Carolina","FLORENCE","South Carolina - FLORENCE",0,0,4,17,50,128,252,376,510,603,692,706,826,937,1208,999,651,479,254,66]
[null,null,null,null,null,null,null,null,null,null,null,null,null,null,null,null,null,null,null,null,null,null,null,null,null,null,null,null,null,null,null,410,"MCENTIRE ANGS","South Carolina","MCENTIRE ANGS","South Carolina - MCENTIRE ANGS",0,0,3,11,44,147,272,364,483,588,674,748,878,964,1279,962,661,436,193,53]
[null,null,null,null,null,null,null,null,null,null,null,null,null,null,null,null,null,null,null,null,null,null,null,null,null,null,null,null,null,null,null,411,"MYRTLE BEACH","South Carolina","MYRTLE BEACH","South Carolina - MYRTLE BEACH",0,0,1,6,27,101,218,326,474,574,685,783,874,950,1132,1200,906,396,94,12]
[null,null,null,null,null,null,null,null,null,null,null,null,null,null,null,null,null,null,null,null,null,null,null,null,null,null,null,null,null,null,null,412,"SHAW AFB","South Carolina","SUMTER","South Carolina - SHAW AFB",0,0,2,8,33,108,241,380,520,619,686,742,852,963,1298,981,659,438,186,42]
[null,null,null,null,null,null,null,null,null,null,null,null,null,null,null,null,null,null,null,null,null,null,null,null,null,null,null,null,null,null,null,413,"ABERDEEN","South Dakota","ABERDEEN","South Dakota - ABERDEEN",614,226,298,371,458,563,697,594,524,506,546,619,636,574,529,424,300,172,73,36]
[null,null,null,null,null,null,null,null,null,null,null,null,null,null,null,null,null,null,null,null,null,null,null,null,null,null,null,null,null,null,null,414,"ELLSWORTH AFB","South Dakota","ELLSWORTH AFB","South Dakota - ELLSWORTH AFB",274,165,212,275,382,545,711,712,698,686,667,676,697,599,503,377,268,174,92,47]
[null,null,null,null,null,null,null,null,null,null,null,null,null,null,null,null,null,null,null,null,null,null,null,null,null,null,null,null,null,null,null,415,"HURON","South Dakota","HURON","South Dakota - HURON",476,199,265,348,442,568,699,662,548,513,556,626,630,607,564,424,309,187,92,43]
[null,null,null,null,null,null,null,null,null,null,null,null,null,null,null,null,null,null,null,null,null,null,null,null,null,null,null,null,null,null,null,416,"PIERRE","South Dakota","PIERRE","South Dakota - PIERRE",385,182,234,305,419,574,675,660,600,543,577,630,643,610,528,405,324,226,134,103]
[null,null,null,null,null,null,null,null,null,null,null,null,null,null,null,null,null,null,null,null,null,null,null,null,null,null,null,null,null,null,null,417,"RAPID CITY","South Dakota","RAPID CITY","South Dakota - RAPID CITY",292,158,219,285,392,545,716,711,688,657,684,699,693,591,483,361,271,175,94,48]
[null,null,null,null,null,null,null,null,null,null,null,null,null,null,null,null,null,null,null,null,null,null,null,null,null,null,null,null,null,null,null,418,"SIOUX FALLS","South Dakota","SIOUX FALLS","South Dakota - SIOUX FALLS",443,194,242,333,478,583,719,612,505,512,549,596,651,643,601,475,321,188,82,32]
[null,null,null,null,null,null,null,null,null,null,null,null,null,null,null,null,null,null,null,null,null,null,null,null,null,null,null,null,null,null,null,419,"BRISTOL","Tennessee","TRI-CITY","Tennessee - BRISTOL",15,24,52,90,194,342,537,600,661,708,755,755,903,1081,864,557,416,171,33,4]
[null,null,null,null,null,null,null,null,null,null,null,null,null,null,null,null,null,null,null,null,null,null,null,null,null,null,null,null,null,null,null,420,"CHATTANOOGA","Tennessee","LOVELL","Tennessee - CHATTANOOGA",4,6,20,53,118,238,388,530,624,684,723,740,801,895,1094,734,557,361,153,38]
[null,null,null,null,null,null,null,null,null,null,null,null,null,null,null,null,null,null,null,null,null,null,null,null,null,null,null,null,null,null,null,421,"JACKSON","Tennessee","MCKELLAR","Tennessee - JACKSON",9,13,30,74,129,242,417,506,570,615,644,699,798,878,1064,829,571,410,216,46]
[null,null,null,null,null,null,null,null,null,null,null,null,null,null,null,null,null,null,null,null,null,null,null,null,null,null,null,null,null,null,null,422,"KNOXVILLE","Tennessee","KNOXVILLE","Tennessee - KNOXVILLE",7,10,26,63,126,247,436,579,638,680,724,720,771,985,1086,721,522,304,97,18]
[null,null,null,null,null,null,null,null,null,null,null,null,null,null,null,null,null,null,null,null,null,null,null,null,null,null,null,null,null,null,null,423,"MEMPHIS","Tennessee","MEMPHIS","Tennessee - MEMPHIS",5,13,21,54,115,212,377,485,582,599,629,690,754,830,975,928,672,464,267,88]
[null,null,null,null,null,null,null,null,null,null,null,null,null,null,null,null,null,null,null,null,null,null,null,null,null,null,null,null,null,null,null,424,"MEMPHIS INTL ARPT","Tennessee","MEMPHIS INTL ARPT","Tennessee - MEMPHIS INTL ARPT",4,5,14,39,88,194,322,460,554,570,654,676,727,842,964,991,785,508,294,69]
[null,null,null,null,null,null,null,null,null,null,null,null,null,null,null,null,null,null,null,null,null,null,null,null,null,null,null,null,null,null,null,425,"NASHVILLE","Tennessee","NASHVILLE","Tennessee - NASHVILLE",11,16,39,79,132,256,425,503,614,631,677,717,769,891,1060,786,582,373,161,37]
[null,null,null,null,null,null,null,null,null,null,null,null,null,null,null,null,null,null,null,null,null,null,null,null,null,null,null,null,null,null,null,426,"ABILENE","Texas","ABILENE","Texas - ABILENE",1,7,21,35,79,164,306,404,489,578,640,684,771,859,1002,925,723,512,370,191]
[null,null,null,null,null,null,null,null,null,null,null,null,null,null,null,null,null,null,null,null,null,null,null,null,null,null,null,null,null,null,null,427,"AMARILLO","Texas","AMARILLO","Texas - AMARILLO",25,38,69,122,238,386,555,582,599,627,682,697,810,874,775,582,461,341,217,82]
[null,null,null,null,null,null,null,null,null,null,null,null,null,null,null,null,null,null,null,null,null,null,null,null,null,null,null,null,null,null,null,428,"AUSTIN","Texas","MUELLER","Texas - AUSTIN",0,0,1,7,20,55,119,251,367,480,600,653,762,897,1182,1326,858,577,420,185]
[null,null,null,null,null,null,null,null,null,null,null,null,null,null,null,null,null,null,null,null,null,null,null,null,null,null,null,null,null,null,null,429,"BEAUMONT","Texas","PORT ARTHUR","Texas - BEAUMONT",0,0,0,3,9,31,95,193,325,455,585,652,798,966,1237,1586,883,639,281,23]
[null,null,null,null,null,null,null,null,null,null,null,null,null,null,null,null,null,null,null,null,null,null,null,null,null,null,null,null,null,null,null,430,"BERGSTROM AFB","Texas","AUSTIN","Texas - BERGSTROM AFB",0,0,0,6,19,54,137,254,385,495,584,638,740,880,1209,1291,841,601,424,200]
[null,null,null,null,null,null,null,null,null,null,null,null,null,null,null,null,null,null,null,null,null,null,null,null,null,null,null,null,null,null,null,431,"BROWNSVILLE","Texas","BROWNSVILLE","Texas - BROWNSVILLE",0,0,0,0,1,5,21,59,143,237,378,457,628,893,1247,1860,1413,813,535,69]
[null,null,null,null,null,null,null,null,null,null,null,null,null,null,null,null,null,null,null,null,null,null,null,null,null,null,null,null,null,null,null,432,"CHASE NAS","Texas","BEEVILLE","Texas - CHASE NAS",0,0,0,2,8,29,64,144,263,385,478,569,689,865,1233,1676,1000,651,475,230]
[null,null,null,null,null,null,null,null,null,null,null,null,null,null,null,null,null,null,null,null,null,null,null,null,null,null,null,null,null,null,null,433,"CORPUS CHRISTI","Texas","CORPUS CHRISTI","Texas - CORPUS CHRISTI",0,0,0,1,4,15,46,94,218,349,459,562,690,883,1222,1687,1260,758,455,57]
[null,null,null,null,null,null,null,null,null,null,null,null,null,null,null,null,null,null,null,null,null,null,null,null,null,null,null,null,null,null,null,434,"DALLAS","Texas","LOVE","Texas - DALLAS",0,2,7,23,45,99,221,323,457,538,624,651,721,819,947,1034,911,615,452,270]
[null,null,null,null,null,null,null,null,null,null,null,null,null,null,null,null,null,null,null,null,null,null,null,null,null,null,null,null,null,null,null,435,"DALLAS","Texas","FT WORTH","Texas - DALLAS",0,3,10,27,51,119,247,367,474,576,648,679,732,809,971,1028,801,549,410,259]
[null,null,null,null,null,null,null,null,null,null,null,null,null,null,null,null,null,null,null,null,null,null,null,null,null,null,null,null,null,null,null,436,"DALLAS NAS","Texas","HENSLEY","Texas - DALLAS NAS",0,1,10,23,44,106,216,339,455,558,614,668,732,827,938,1099,867,599,413,248]
[null,null,null,null,null,null,null,null,null,null,null,null,null,null,null,null,null,null,null,null,null,null,null,null,null,null,null,null,null,null,null,437,"DEL RIO","Texas","DEL RIO","Texas - DEL RIO",0,0,1,2,8,28,83,184,329,483,575,657,749,808,1024,1200,1002,744,543,342]
[null,null,null,null,null,null,null,null,null,null,null,null,null,null,null,null,null,null,null,null,null,null,null,null,null,null,null,null,null,null,null,438,"DYESS AFB","Texas","ABILENE","Texas - DYESS AFB",1,3,15,32,75,167,295,406,492,571,636,684,759,852,971,934,727,515,380,247]
[null,null,null,null,null,null,null,null,null,null,null,null,null,null,null,null,null,null,null,null,null,null,null,null,null,null,null,null,null,null,null,439,"EL PASO","Texas","EL PASO","Texas - EL PASO",0,1,3,16,51,133,277,401,505,642,732,751,791,856,934,806,682,510,387,281]
[null,null,null,null,null,null,null,null,null,null,null,null,null,null,null,null,null,null,null,null,null,null,null,null,null,null,null,null,null,null,null,440,"FORT HOOD","Texas","GRAY AAF","Texas - FORT HOOD",0,0,5,13,32,77,175,314,423,531,614,664,772,911,1166,1150,781,557,389,185]
[null,null,null,null,null,null,null,null,null,null,null,null,null,null,null,null,null,null,null,null,null,null,null,null,null,null,null,null,null,null,null,441,"FORT WORTH","Texas","FORT WORTH","Texas - FORT WORTH",0,1,7,21,45,111,224,365,483,579,635,671,732,813,958,1032,838,578,407,260]
[null,null,null,null,null,null,null,null,null,null,null,null,null,null,null,null,null,null,null,null,null,null,null,null,null,null,null,null,null,null,null,442,"GALVESTON","Texas","SCHOLES","Texas - GALVESTON",0,0,0,1,6,15,57,121,239,400,541,716,884,1033,1067,1237,1524,797,120,1]
[null,null,null,null,null,null,null,null,null,null,null,null,null,null,null,null,null,null,null,null,null,null,null,null,null,null,null,null,null,null,null,443,"HOUSTON","Texas","INTERCONTINENTAL","Texas - HOUSTON",0,0,1,3,15,43,122,223,346,464,563,644,728,903,1328,1320,945,638,383,90]
[null,null,null,null,null,null,null,null,null,null,null,null,null,null,null,null,null,null,null,null,null,null,null,null,null,null,null,null,null,null,null,444,"HOUSTON","Texas","ELLINGTON","Texas - HOUSTON",0,0,0,1,4,23,69,156,312,439,572,665,777,936,1224,1564,974,650,349,45]
[null,null,null,null,null,null,null,null,null,null,null,null,null,null,null,null,null,null,null,null,null,null,null,null,null,null,null,null,null,null,null,445,"KELLY AFB","Texas","KELLY AFB","Texas - KELLY AFB",0,0,0,3,12,38,103,214,342,445,552,639,740,893,1153,1446,935,618,422,205]
[null,null,null,null,null,null,null,null,null,null,null,null,null,null,null,null,null,null,null,null,null,null,null,null,null,null,null,null,null,null,null,446,"KINGSVILLE NAS","Texas","KINGSVILLE NAS","Texas - KINGSVILLE NAS",0,0,0,1,5,17,50,110,242,347,455,530,676,854,1180,1646,1212,748,540,145]
[null,null,null,null,null,null,null,null,null,null,null,null,null,null,null,null,null,null,null,null,null,null,null,null,null,null,null,null,null,null,null,447,"LAUGHLIN AFB","Texas","LAUGHLIN AFB","Texas - LAUGHLIN AFB",0,0,0,2,7,33,90,195,333,490,593,690,770,871,1075,1191,923,661,474,360]
[null,null,null,null,null,null,null,null,null,null,null,null,null,null,null,null,null,null,null,null,null,null,null,null,null,null,null,null,null,null,null,448,"LUBBOCK","Texas","LUBBOCK","Texas - LUBBOCK",8,19,29,74,150,273,454,512,578,618,628,703,806,896,916,735,555,408,280,120]
[null,null,null,null,null,null,null,null,null,null,null,null,null,null,null,null,null,null,null,null,null,null,null,null,null,null,null,null,null,null,null,449,"LUFKIN","Texas","ANGELINA","Texas - LUFKIN",0,0,3,9,36,87,201,317,431,517,593,643,762,920,1367,1166,718,555,359,75]
[null,null,null,null,null,null,null,null,null,null,null,null,null,null,null,null,null,null,null,null,null,null,null,null,null,null,null,null,null,null,null,450,"MIDLAND","Texas","MIDLAND","Texas - MIDLAND",1,4,12,34,81,198,325,447,535,609,662,697,762,930,1021,765,627,476,367,208]
[null,null,null,null,null,null,null,null,null,null,null,null,null,null,null,null,null,null,null,null,null,null,null,null,null,null,null,null,null,null,null,451,"RANDOLPH AFB","Texas","RANDOLPH AFB","Texas - RANDOLPH AFB",0,0,0,3,13,43,121,236,368,478,585,663,782,942,1293,1296,821,564,388,165]
[null,null,null,null,null,null,null,null,null,null,null,null,null,null,null,null,null,null,null,null,null,null,null,null,null,null,null,null,null,null,null,452,"REESE AFB","Texas","LUBBOCK","Texas - REESE AFB",2,11,25,57,132,269,430,513,580,600,636,686,798,920,911,711,580,438,301,162]
[null,null,null,null,null,null,null,null,null,null,null,null,null,null,null,null,null,null,null,null,null,null,null,null,null,null,null,null,null,null,null,453,"SAN ANGELO","Texas","MATHIS","Texas - SAN ANGELO",1,3,11,23,60,143,274,378,468,546,640,665,794,900,1096,929,718,517,389,206]
[null,null,null,null,null,null,null,null,null,null,null,null,null,null,null,null,null,null,null,null,null,null,null,null,null,null,null,null,null,null,null,454,"SAN ANTONIO","Texas","SAN ANTONIO","Texas - SAN ANTONIO",0,0,1,7,19,51,129,247,347,457,531,633,738,867,1148,1422,938,638,423,167]
[null,null,null,null,null,null,null,null,null,null,null,null,null,null,null,null,null,null,null,null,null,null,null,null,null,null,null,null,null,null,null,455,"TYLER","Texas","POUNDS","Texas - TYLER",0,3,8,22,42,95,231,356,441,538,617,643,769,879,1113,1121,760,554,394,175]
[null,null,null,null,null,null,null,null,null,null,null,null,null,null,null,null,null,null,null,null,null,null,null,null,null,null,null,null,null,null,null,456,"WACO","Texas","MADISON COOPER","Texas - WACO",0,1,4,19,43,98,226,364,450,535,624,658,728,831,1002,1110,797,548,422,301]
[null,null,null,null,null,null,null,null,null,null,null,null,null,null,null,null,null,null,null,null,null,null,null,null,null,null,null,null,null,null,null,457,"WICHITA FALLS","Texas","WICHITA FALLS","Texas - WICHITA FALLS",1,11,29,54,106,212,364,473,553,596,637,669,710,787,931,828,665,463,348,323]
[null,null,null,null,null,null,null,null,null,null,null,null,null,null,null,null,null,null,null,null,null,null,null,null,null,null,null,null,null,null,null,458,"CHARLOTTESVILLE","USA","CHARLOTTESVILLE","USA - CHARLOTTESVILLE",6,11,30,66,137,278,512,615,676,692,745,704,800,887,994,702,503,278,107,17]
[null,null,null,null,null,null,null,null,null,null,null,null,null,null,null,null,null,null,null,null,null,null,null,null,null,null,null,null,null,null,null,459,"CEDAR CITY","Utah","CEDAR CITY","Utah - CEDAR CITY",40,53,91,184,321,490,772,829,774,730,676,661,743,645,519,425,362,277,142,28]
[null,null,null,null,null,null,null,null,null,null,null,null,null,null,null,null,null,null,null,null,null,null,null,null,null,null,null,null,null,null,null,460,"OGDEN","Utah","HILL AFB","Utah - OGDEN",20,33,96,212,380,591,797,818,786,710,661,630,634,638,597,461,346,228,108,15]
[null,null,null,null,null,null,null,null,null,null,null,null,null,null,null,null,null,null,null,null,null,null,null,null,null,null,null,null,null,null,null,461,"PROVO","Utah","PROVO","Utah - PROVO",38,48,112,207,378,536,804,835,825,766,703,686,661,573,495,372,326,232,131,35]
[null,null,null,null,null,null,null,null,null,null,null,null,null,null,null,null,null,null,null,null,null,null,null,null,null,null,null,null,null,null,null,462,"SALT LAKE CITY","Utah","SALT LAKE CITY","Utah - SALT LAKE CITY",24,30,70,145,306,528,757,782,795,731,698,637,645,609,576,463,379,289,206,93]
[null,null,null,null,null,null,null,null,null,null,null,null,null,null,null,null,null,null,null,null,null,null,null,null,null,null,null,null,null,null,null,463,"WENDOVER","Utah","WENDOVER","Utah - WENDOVER",37,36,91,218,378,530,675,694,693,677,663,612,652,630,617,526,433,313,199,84]
[null,null,null,null,null,null,null,null,null,null,null,null,null,null,null,null,null,null,null,null,null,null,null,null,null,null,null,null,null,null,null,464,"BURLINGTON","Vermont","BURLINGTON","Vermont - BURLINGTON",303,189,269,310,404,540,727,733,652,631,675,684,718,678,571,369,209,79,20,2]
[null,null,null,null,null,null,null,null,null,null,null,null,null,null,null,null,null,null,null,null,null,null,null,null,null,null,null,null,null,null,null,465,"FORT BELVOIR","Virginia","FORT BELVOIR","Virginia - FORT BELVOIR",8,16,37,86,184,373,578,662,710,711,681,736,727,809,896,666,448,287,118,27]
[null,null,null,null,null,null,null,null,null,null,null,null,null,null,null,null,null,null,null,null,null,null,null,null,null,null,null,null,null,null,null,466,"LANGLEY AFB","Virginia","HAMPTON","Virginia - LANGLEY AFB",0,2,8,25,76,202,380,554,682,744,709,727,795,851,1046,977,579,284,101,17]
[null,null,null,null,null,null,null,null,null,null,null,null,null,null,null,null,null,null,null,null,null,null,null,null,null,null,null,null,null,null,null,467,"NEWPORT NEWS","Virginia","NEWPORT NEWS","Virginia - NEWPORT NEWS",1,4,14,46,110,252,437,536,666,721,745,720,818,840,1006,844,532,303,132,29]
[null,null,null,null,null,null,null,null,null,null,null,null,null,null,null,null,null,null,null,null,null,null,null,null,null,null,null,null,null,null,null,468,"NORFOLK","Virginia","NORFOLK","Virginia - NORFOLK",0,1,6,23,71,188,352,516,685,730,723,726,814,863,1080,942,576,314,125,27]
[null,null,null,null,null,null,null,null,null,null,null,null,null,null,null,null,null,null,null,null,null,null,null,null,null,null,null,null,null,null,null,469,"NORFOLK NAS","Virginia","CHAMBER","Virginia - NORFOLK NAS",0,2,6,16,57,162,331,503,702,736,710,714,823,855,1043,1007,624,317,124,29]
[null,null,null,null,null,null,null,null,null,null,null,null,null,null,null,null,null,null,null,null,null,null,null,null,null,null,null,null,null,null,null,470,"OCEANA NAS","Virginia","SOUCEK","Virginia - OCEANA NAS",0,1,7,28,74,193,349,486,644,766,736,749,839,918,1067,955,560,270,99,18]
[null,null,null,null,null,null,null,null,null,null,null,null,null,null,null,null,null,null,null,null,null,null,null,null,null,null,null,null,null,null,null,471,"QUANTICO","Virginia","QUANTICO","Virginia - QUANTICO",2,8,17,54,125,286,514,648,686,731,712,703,743,814,973,793,516,299,118,17]
[null,null,null,null,null,null,null,null,null,null,null,null,null,null,null,null,null,null,null,null,null,null,null,null,null,null,null,null,null,null,null,472,"RICHMOND","Virginia","BYRD FIELD","Virginia - RICHMOND",2,9,28,66,129,303,477,586,662,688,719,698,784,860,1001,715,512,324,153,42]
[null,null,null,null,null,null,null,null,null,null,null,null,null,null,null,null,null,null,null,null,null,null,null,null,null,null,null,null,null,null,null,473,"ROANOKE","Virginia","ROANOKE","Virginia - ROANOKE",7,13,41,85,161,315,537,660,682,710,743,716,858,930,947,607,420,229,82,15]
[null,null,null,null,null,null,null,null,null,null,null,null,null,null,null,null,null,null,null,null,null,null,null,null,null,null,null,null,null,null,null,474,"BELLINGHAM","Washington","BELLINGHAM","Washington - BELLINGHAM",0,2,15,34,78,200,450,689,1156,1468,1506,1412,950,448,224,90,32,6,0,0]
[null,null,null,null,null,null,null,null,null,null,null,null,null,null,null,null,null,null,null,null,null,null,null,null,null,null,null,null,null,null,null,475,"BREMERTON","Washington","BREMERTON","Washington - BREMERTON",0,0,7,18,46,138,482,876,1348,1566,1357,1163,724,428,284,175,89,41,15,2]
[null,null,null,null,null,null,null,null,null,null,null,null,null,null,null,null,null,null,null,null,null,null,null,null,null,null,null,null,null,null,null,476,"FAIRCHILD AFB","Washington","FAIRCHILD AFB","Washington - FAIRCHILD AFB",45,50,97,169,316,585,1012,1005,890,835,799,736,641,505,403,280,206,117,56,14]
[null,null,null,null,null,null,null,null,null,null,null,null,null,null,null,null,null,null,null,null,null,null,null,null,null,null,null,null,null,null,null,477,"FORT LEWIS","Washington","GRAY","Washington - FORT LEWIS",0,3,10,22,51,179,498,802,1223,1444,1383,1217,801,492,303,185,95,37,13,2]
[null,null,null,null,null,null,null,null,null,null,null,null,null,null,null,null,null,null,null,null,null,null,null,null,null,null,null,null,null,null,null,478,"HANFORD","Washington","HANFORD","Washington - HANFORD",34,29,50,101,216,377,712,727,728,782,824,778,796,645,592,459,359,233,176,139]
[null,null,null,null,null,null,null,null,null,null,null,null,null,null,null,null,null,null,null,null,null,null,null,null,null,null,null,null,null,null,null,479,"KELSO-LONGVEIW","Washington","KELSO-LONGVEIW","Washington - KELSO-LONGVEIW",0,0,1,20,45,126,359,744,1101,1507,1493,1339,943,463,298,178,87,33,21,2]
[null,null,null,null,null,null,null,null,null,null,null,null,null,null,null,null,null,null,null,null,null,null,null,null,null,null,null,null,null,null,null,480,"MCCHORD AFB","Washington","TACOMA","Washington - MCCHORD AFB",0,4,10,20,51,164,442,786,1211,1462,1432,1236,837,491,308,175,87,32,10,1]
[null,null,null,null,null,null,null,null,null,null,null,null,null,null,null,null,null,null,null,null,null,null,null,null,null,null,null,null,null,null,null,481,"OLYMPIA","Washington","OLYMPIA","Washington - OLYMPIA",2,5,11,24,70,200,556,857,1255,1458,1375,1085,732,455,302,191,113,47,17,4]
[null,null,null,null,null,null,null,null,null,null,null,null,null,null,null,null,null,null,null,null,null,null,null,null,null,null,null,null,null,null,null,482,"QUILLAYUTE STATE","Washington","QUILLAYUTE STATE","Washington - QUILLAYUTE STATE",0,0,2,9,41,135,428,788,1303,1798,1681,1372,683,304,117,55,28,10,4,1]
[null,null,null,null,null,null,null,null,null,null,null,null,null,null,null,null,null,null,null,null,null,null,null,null,null,null,null,null,null,null,null,483,"SEATTLE","Washington","BOEING FIELD","Washington - SEATTLE",0,0,5,11,27,84,257,560,1048,1438,1440,1332,1127,643,397,220,116,41,11,1]
[null,null,null,null,null,null,null,null,null,null,null,null,null,null,null,null,null,null,null,null,null,null,null,null,null,null,null,null,null,null,null,484,"SEATTLE-TACOMA","Washington","SEATTLE-TACOMA","Washington - SEATTLE-TACOMA",0,0,4,11,24,75,266,684,1249,1534,1477,1341,918,526,330,185,93,32,9,1]
[null,null,null,null,null,null,null,null,null,null,null,null,null,null,null,null,null,null,null,null,null,null,null,null,null,null,null,null,null,null,null,485,"SPOKANE","Washington","FELTS","Washington - SPOKANE",37,37,70,141,232,463,861,1022,932,934,915,793,666,489,371,296,215,161,88,37]
[null,null,null,null,null,null,null,null,null,null,null,null,null,null,null,null,null,null,null,null,null,null,null,null,null,null,null,null,null,null,null,486,"SPOKANE","Washington","SPOKANE","Washington - SPOKANE",64,56,104,167,317,583,981,956,871,860,840,742,651,486,390,275,215,124,63,15]
[null,null,null,null,null,null,null,null,null,null,null,null,null,null,null,null,null,null,null,null,null,null,null,null,null,null,null,null,null,null,null,487,"WALLA WALLA","Washington","WALLA WALLA","Washington - WALLA WALLA",38,29,43,78,152,320,555,683,876,943,992,900,805,690,522,396,300,202,138,98]
[null,null,null,null,null,null,null,null,null,null,null,null,null,null,null,null,null,null,null,null,null,null,null,null,null,null,null,null,null,null,null,488,"WENATCHEE","Washington","PANGBORN","Washington - WENATCHEE",42,41,76,168,307,533,835,830,758,742,766,783,770,666,518,373,257,161,92,43]
[null,null,null,null,null,null,null,null,null,null,null,null,null,null,null,null,null,null,null,null,null,null,null,null,null,null,null,null,null,null,null,489,"YAKIMA","Washington","YAKIMA","Washington - YAKIMA",41,41,76,133,280,554,861,801,799,799,834,802,719,581,477,368,268,177,100,50]
[null,null,null,null,null,null,null,null,null,null,null,null,null,null,null,null,null,null,null,null,null,null,null,null,null,null,null,null,null,null,null,490,"BECKLEY","West Virginia","BECKLEY","West Virginia - BECKLEY",47,60,98,164,256,466,616,613,666,700,761,850,1029,1045,717,441,196,35,3,0]
[null,null,null,null,null,null,null,null,null,null,null,null,null,null,null,null,null,null,null,null,null,null,null,null,null,null,null,null,null,null,null,491,"BLUEFIELD","West Virginia","MERCER","West Virginia - BLUEFIELD",38,51,104,151,261,424,581,597,654,681,781,874,1094,1118,745,417,163,24,2,0]
[null,null,null,null,null,null,null,null,null,null,null,null,null,null,null,null,null,null,null,null,null,null,null,null,null,null,null,null,null,null,null,492,"CHARLESTON","West Virginia","KANAWHA","West Virginia - CHARLESTON",28,39,68,120,218,373,601,609,620,655,701,737,840,939,885,597,441,226,57,7]
[null,null,null,null,null,null,null,null,null,null,null,null,null,null,null,null,null,null,null,null,null,null,null,null,null,null,null,null,null,null,null,493,"HUNTINGTON","West Virginia","TRI STATE","West Virginia - HUNTINGTON",28,34,67,120,203,370,579,639,623,649,695,709,815,911,931,620,452,240,68,8]
[null,null,null,null,null,null,null,null,null,null,null,null,null,null,null,null,null,null,null,null,null,null,null,null,null,null,null,null,null,null,null,494,"MARTINSBURG","West Virginia","MARTINSBURG","West Virginia - MARTINSBURG",18,30,66,144,251,408,636,724,711,704,681,708,759,799,803,555,394,245,100,22]
[null,null,null,null,null,null,null,null,null,null,null,null,null,null,null,null,null,null,null,null,null,null,null,null,null,null,null,null,null,null,null,495,"MORGANTOWN","West Virginia","HART","West Virginia - MORGANTOWN",40,50,106,176,265,429,667,643,632,672,717,750,838,906,812,534,349,138,32,2]
[null,null,null,null,null,null,null,null,null,null,null,null,null,null,null,null,null,null,null,null,null,null,null,null,null,null,null,null,null,null,null,496,"WHEELING","West Virginia","OHIO","West Virginia - WHEELING",70,84,128,192,281,448,647,637,625,637,674,719,800,878,843,545,365,148,35,3]
[null,null,null,null,null,null,null,null,null,null,null,null,null,null,null,null,null,null,null,null,null,null,null,null,null,null,null,null,null,null,null,497,"EAU CLAIRE","Wisconsin","EAU CLAIRE","Wisconsin - EAU CLAIRE",517,215,276,338,452,573,742,608,513,527,559,637,699,691,571,410,259,128,38,9]
[null,null,null,null,null,null,null,null,null,null,null,null,null,null,null,null,null,null,null,null,null,null,null,null,null,null,null,null,null,null,null,498,"GREEN BAY","Wisconsin","GREEN BAY","Wisconsin - GREEN BAY",331,197,276,348,454,589,848,698,567,562,614,660,713,661,540,366,225,84,23,4]
[null,null,null,null,null,null,null,null,null,null,null,null,null,null,null,null,null,null,null,null,null,null,null,null,null,null,null,null,null,null,null,499,"LA CROSSE","Wisconsin","LA CROSSE","Wisconsin - LA CROSSE",374,192,223,301,444,548,741,659,517,531,580,615,698,709,629,472,306,151,54,15]
[null,null,null,null,null,null,null,null,null,null,null,null,null,null,null,null,null,null,null,null,null,null,null,null,null,null,null,null,null,null,null,500,"MADISON","Wisconsin","DANE CO. RGNL","Wisconsin - MADISON",297,175,225,312,450,579,803,705,550,569,603,633,687,689,590,440,279,129,40,7]
[null,null,null,null,null,null,null,null,null,null,null,null,null,null,null,null,null,null,null,null,null,null,null,null,null,null,null,null,null,null,null,501,"MILWAUKEE","Wisconsin","MITCHELL","Wisconsin - MILWAUKEE",180,131,195,262,398,564,816,826,660,616,628,615,736,739,630,390,237,97,33,8]
[null,null,null,null,null,null,null,null,null,null,null,null,null,null,null,null,null,null,null,null,null,null,null,null,null,null,null,null,null,null,null,502,"CASPER","Wyoming","CASPER","Wyoming - CASPER",227,122,187,304,453,661,844,808,812,699,675,663,555,461,404,323,267,189,88,18]
[null,null,null,null,null,null,null,null,null,null,null,null,null,null,null,null,null,null,null,null,null,null,null,null,null,null,null,null,null,null,null,503,"CHEYENNE","Wyoming","F. E. WARREN AFB","Wyoming - CHEYENNE",131,96,163,288,432,653,805,857,852,766,776,777,655,474,413,305,212,84,18,1]
[null,null,null,null,null,null,null,null,null,null,null,null,null,null,null,null,null,null,null,null,null,null,null,null,null,null,null,null,null,null,null,504,"LANDER","Wyoming","HUNT","Wyoming - LANDER",307,200,272,360,484,613,720,690,668,651,663,671,652,542,450,351,252,155,52,7]
[null,null,null,null,null,null,null,null,null,null,null,null,null,null,null,null,null,null,null,null,null,null,null,null,null,null,null,null,null,null,null,505,"ROCK SPRINGS","Wyoming","ROCK SPRINGS","Wyoming - ROCK SPRINGS",215,152,282,404,581,778,930,778,685,629,692,640,559,463,381,286,222,76,7,0]
[null,null,null,null,null,null,null,null,null,null,null,null,null,null,null,null,null,null,null,null,null,null,null,null,null,null,null,null,null,null,null,506,"SHERIDAN","Wyoming","SHERIDAN","Wyoming - SHERIDAN",327,171,197,276,409,593,811,775,719,690,716,694,596,500,422,328,256,163,83,34]
[null,null,null,null,null,null,null,null,null,null,null,null,null,null,null,null,null,null,null,null,null,null,null,null,null,null,null,null,null,null,null,507,"DAR-EL-BEIDA","Algeria","HOUARI","Algeria - DAR-EL-BEIDA",0,0,0,0,0,0,16,161,306,774,1114,1312,1342,921,1120,810,536,207,103,39]
[null,null,null,null,null,null,null,null,null,null,null,null,null,null,null,null,null,null,null,null,null,null,null,null,null,null,null,null,null,null,null,508,"COOLIDGE","Antigua","COOLIDGE","Antigua - COOLIDGE",0,0,0,0,0,0,0,0,0,0,0,0,2,34,408,3232,4112,948,24,0]
[null,null,null,null,null,null,null,null,null,null,null,null,null,null,null,null,null,null,null,null,null,null,null,null,null,null,null,null,null,null,null,509,"BUENOS AIRES","Argentina","EZEIZA","Argentina - BUENOS AIRES",0,0,0,0,0,17,92,243,399,760,1106,1258,1323,1064,1064,708,427,201,80,18]
[null,null,null,null,null,null,null,null,null,null,null,null,null,null,null,null,null,null,null,null,null,null,null,null,null,null,null,null,null,null,null,510,"ADELAIDE","Australia","ADELAIDE","Australia - ADELAIDE",0,0,0,0,0,0,2,49,186,655,1582,2103,1615,880,711,437,273,125,92,49]
[null,null,null,null,null,null,null,null,null,null,null,null,null,null,null,null,null,null,null,null,null,null,null,null,null,null,null,null,null,null,null,511,"ALICE SPRINGS","Australia","ALICE SPRINGS","Australia - ALICE SPRINGS",0,0,0,0,0,5,62,175,237,481,645,822,923,757,1063,990,913,572,545,570]
[null,null,null,null,null,null,null,null,null,null,null,null,null,null,null,null,null,null,null,null,null,null,null,null,null,null,null,null,null,null,null,512,"BRISBANE","Australia","BRISBANE","Australia - BRISBANE",0,0,0,0,0,0,0,8,42,212,491,965,1331,1370,2038,1441,721,113,25,3]
[null,null,null,null,null,null,null,null,null,null,null,null,null,null,null,null,null,null,null,null,null,null,null,null,null,null,null,null,null,null,null,513,"DARWIN","Australia","DARWIN","Australia - DARWIN",0,0,0,0,0,0,0,0,0,0,0,5,60,210,833,2341,3010,1546,741,14]
[null,null,null,null,null,null,null,null,null,null,null,null,null,null,null,null,null,null,null,null,null,null,null,null,null,null,null,null,null,null,null,514,"MELBOURNE","Australia","MELBOURNE","Australia - MELBOURNE",0,0,0,0,0,0,14,142,419,1405,2056,1937,1209,565,457,266,153,66,45,27]
[null,null,null,null,null,null,null,null,null,null,null,null,null,null,null,null,null,null,null,null,null,null,null,null,null,null,null,null,null,null,null,515,"PERTH","Australia","BELMONT","Australia - PERTH",0,0,0,0,0,0,2,42,161,583,1104,1603,1634,1192,968,623,382,213,145,109]
[null,null,null,null,null,null,null,null,null,null,null,null,null,null,null,null,null,null,null,null,null,null,null,null,null,null,null,null,null,null,null,516,"SYDNEY","Australia","SYDNEY","Australia - SYDNEY",0,0,0,0,0,0,1,11,90,433,830,1468,1818,1579,1603,628,208,48,28,16]
[null,null,null,null,null,null,null,null,null,null,null,null,null,null,null,null,null,null,null,null,null,null,null,null,null,null,null,null,null,null,null,517,"TOWNSVILLE","Australia","TOWNSVILLE","Australia - TOWNSVILLE",0,0,0,0,0,0,0,0,4,35,105,267,483,742,1714,2522,2000,703,166,18]
[null,null,null,null,null,null,null,null,null,null,null,null,null,null,null,null,null,null,null,null,null,null,null,null,null,null,null,null,null,null,null,518,"SALZBURG","Austria","SALZBURG","Austria - SALZBURG",16,31,63,126,168,495,934,1070,746,927,1023,1053,871,432,402,246,119,29,11,1]
[null,null,null,null,null,null,null,null,null,null,null,null,null,null,null,null,null,null,null,null,null,null,null,null,null,null,null,null,null,null,null,519,"LAJES AB","Azores","LAJES AB","Azores - LAJES AB",0,0,0,0,0,0,0,0,6,98,633,2060,2700,1391,1392,431,47,0,0,0]
[null,null,null,null,null,null,null,null,null,null,null,null,null,null,null,null,null,null,null,null,null,null,null,null,null,null,null,null,null,null,null,520,"NASSAU","Bahamas","NASSAU","Bahamas - NASSAU",0,0,0,0,0,0,0,0,0,2,21,89,326,554,1873,2758,2187,777,173,0]
[null,null,null,null,null,null,null,null,null,null,null,null,null,null,null,null,null,null,null,null,null,null,null,null,null,null,null,null,null,null,null,521,"BELEM","Belize","VAL DE CAES","Belize - BELEM",0,0,0,0,0,0,0,0,0,0,0,0,0,0,719,4502,1889,1275,373,1]
[null,null,null,null,null,null,null,null,null,null,null,null,null,null,null,null,null,null,null,null,null,null,null,null,null,null,null,null,null,null,null,522,"BERMUDA NAS","Bermuda","KINDLEY","Bermuda - BERMUDA NAS",0,0,0,0,0,0,0,0,0,1,39,331,1243,1629,1918,1793,1506,286,13,0]
[null,null,null,null,null,null,null,null,null,null,null,null,null,null,null,null,null,null,null,null,null,null,null,null,null,null,null,null,null,null,null,523,"GALEAO","Brazil","RIO DE JANEIRO","Brazil - GALEAO",0,0,0,0,0,0,0,0,0,0,2,63,558,1016,2324,2350,1318,507,420,202]
[null,null,null,null,null,null,null,null,null,null,null,null,null,null,null,null,null,null,null,null,null,null,null,null,null,null,null,null,null,null,null,524,"SANTOS DUMONT","Brazil","RIO DE JANEIRO","Brazil - SANTOS DUMONT",0,0,0,0,0,0,0,0,0,0,0,13,324,995,2573,2704,1540,433,156,21]
[null,null,null,null,null,null,null,null,null,null,null,null,null,null,null,null,null,null,null,null,null,null,null,null,null,null,null,null,null,null,null,525,"ARGENTIA","Canada","MARS","Canada - ARGENTIA",255,210,297,405,378,735,1179,1120,740,984,968,1001,422,55,12,0,0,0,0,0]
[null,null,null,null,null,null,null,null,null,null,null,null,null,null,null,null,null,null,null,null,null,null,null,null,null,null,null,null,null,null,null,526,"CALGARY","Canada","CALGARY","Canada - CALGARY",585,200,264,368,355,646,806,869,624,898,907,784,582,318,303,165,68,15,2,0]
[null,null,null,null,null,null,null,null,null,null,null,null,null,null,null,null,null,null,null,null,null,null,null,null,null,null,null,null,null,null,null,527,"CAMBRIDGE BAY","Canada","CAMBRIDGE BAY","Canada - CAMBRIDGE BAY",4306,369,352,341,258,419,647,654,483,502,268,114,34,8,3,1,0,0,0,0]
[null,null,null,null,null,null,null,null,null,null,null,null,null,null,null,null,null,null,null,null,null,null,null,null,null,null,null,null,null,null,null,528,"CAPE DYER","Canada","CAPE DYER","Canada - CAPE DYER",3171,553,553,626,474,779,828,785,436,357,148,42,7,0,0,0,0,0,0,0]
[null,null,null,null,null,null,null,null,null,null,null,null,null,null,null,null,null,null,null,null,null,null,null,null,null,null,null,null,null,null,null,529,"CAPE PARRY","Canada","CAPE PARRY","Canada - CAPE PARRY",3711,408,410,423,320,540,903,896,498,393,162,66,23,7,2,0,0,0,0,0]
[null,null,null,null,null,null,null,null,null,null,null,null,null,null,null,null,null,null,null,null,null,null,null,null,null,null,null,null,null,null,null,530,"CHURCHILL","Canada","CHURCHILL","Canada - CHURCHILL",2868,406,382,406,326,552,791,703,468,661,463,297,192,96,86,43,17,6,1,0]
[null,null,null,null,null,null,null,null,null,null,null,null,null,null,null,null,null,null,null,null,null,null,null,null,null,null,null,null,null,null,null,531,"EDMONTON","Canada","NAMAO","Canada - EDMONTON",798,275,348,411,345,633,793,739,509,748,878,841,617,314,302,144,48,6,1,0]
[null,null,null,null,null,null,null,null,null,null,null,null,null,null,null,null,null,null,null,null,null,null,null,null,null,null,null,null,null,null,null,532,"ESTEVAN","Canada","ESTEVAN","Canada - ESTEVAN",911,309,350,421,375,640,713,620,405,610,690,711,630,375,424,289,171,62,40,13]
[null,null,null,null,null,null,null,null,null,null,null,null,null,null,null,null,null,null,null,null,null,null,null,null,null,null,null,null,null,null,null,533,"FORT NELSON","Canada","FORT NELSON","Canada - FORT NELSON",1897,457,412,368,248,433,545,525,408,661,759,711,552,293,281,143,53,10,3,0]
[null,null,null,null,null,null,null,null,null,null,null,null,null,null,null,null,null,null,null,null,null,null,null,null,null,null,null,null,null,null,null,534,"FORT SMITH","Canada","FORT SMITH","Canada - FORT SMITH",2094,406,408,413,303,479,535,538,412,618,676,638,502,270,255,141,57,13,5,0]
[null,null,null,null,null,null,null,null,null,null,null,null,null,null,null,null,null,null,null,null,null,null,null,null,null,null,null,null,null,null,null,535,"FROBISHER","Canada","IQALUIT","Canada - FROBISHER",3139,383,403,448,357,606,853,1002,631,552,256,90,31,7,3,0,0,0,0,0]
[null,null,null,null,null,null,null,null,null,null,null,null,null,null,null,null,null,null,null,null,null,null,null,null,null,null,null,null,null,null,null,536,"GANDER","Canada","GANDER","Canada - GANDER",207,243,384,482,424,831,1162,964,622,829,798,688,543,260,202,92,23,3,0,0]
[null,null,null,null,null,null,null,null,null,null,null,null,null,null,null,null,null,null,null,null,null,null,null,null,null,null,null,null,null,null,null,537,"GOOSE BAY","Canada","GOOSE BAY","Canada - GOOSE BAY",1452,371,393,430,368,590,837,845,549,755,697,556,399,200,179,85,39,11,5,0]
[null,null,null,null,null,null,null,null,null,null,null,null,null,null,null,null,null,null,null,null,null,null,null,null,null,null,null,null,null,null,null,538,"GRANDE PRAIRE","Canada","GRANDE PRAIRE","Canada - GRANDE PRAIRE",1068,318,344,377,323,565,737,778,524,782,878,753,574,294,269,120,47,10,0,0]
[null,null,null,null,null,null,null,null,null,null,null,null,null,null,null,null,null,null,null,null,null,null,null,null,null,null,null,null,null,null,null,539,"HALIFAX","Canada","HALIFAX","Canada - HALIFAX",143,191,284,393,359,678,968,876,566,794,856,891,830,400,322,156,46,8,1,0]
[null,null,null,null,null,null,null,null,null,null,null,null,null,null,null,null,null,null,null,null,null,null,null,null,null,null,null,null,null,null,null,540,"HALL BEACH","Canada","HALL BEACH","Canada - HALL BEACH",4057,404,345,369,302,542,916,946,412,293,116,45,11,3,0,0,0,0,0,0]
[null,null,null,null,null,null,null,null,null,null,null,null,null,null,null,null,null,null,null,null,null,null,null,null,null,null,null,null,null,null,null,541,"HOPEDALE","Canada","HOPEDALE","Canada - HOPEDALE",1530,435,483,513,370,687,1195,1087,694,744,478,307,144,48,34,10,1,0,0,0]
[null,null,null,null,null,null,null,null,null,null,null,null,null,null,null,null,null,null,null,null,null,null,null,null,null,null,null,null,null,null,null,542,"INUVIK","Canada","INUVIK","Canada - INUVIK",3405,429,389,385,262,406,492,513,394,515,445,385,310,162,163,77,22,3,0,0]
[null,null,null,null,null,null,null,null,null,null,null,null,null,null,null,null,null,null,null,null,null,null,null,null,null,null,null,null,null,null,null,543,"KAMLOOPS","Canada","KAMLOOPS","Canada - KAMLOOPS",134,88,146,207,233,525,838,946,605,818,870,913,814,463,487,314,194,86,59,19]
[null,null,null,null,null,null,null,null,null,null,null,null,null,null,null,null,null,null,null,null,null,null,null,null,null,null,null,null,null,null,null,544,"KAPUSKASING","Canada","KAPUSKASING","Canada - KAPUSKASING",1361,358,395,419,354,612,752,652,440,625,639,622,572,320,325,191,93,22,6,0]
[null,null,null,null,null,null,null,null,null,null,null,null,null,null,null,null,null,null,null,null,null,null,null,null,null,null,null,null,null,null,null,545,"MONTREAL","Canada","DORVAL","Canada - MONTREAL",435,274,333,394,334,539,714,753,477,629,671,718,776,558,609,360,154,29,6,0]
[null,null,null,null,null,null,null,null,null,null,null,null,null,null,null,null,null,null,null,null,null,null,null,null,null,null,null,null,null,null,null,546,"NORTH BAY","Canada","NORTH BAY","Canada - NORTH BAY",708,333,390,438,348,645,816,644,421,637,717,787,776,453,407,182,51,6,1,0]
[null,null,null,null,null,null,null,null,null,null,null,null,null,null,null,null,null,null,null,null,null,null,null,null,null,null,null,null,null,null,null,547,"OTTAWA","Canada","OTTAWA","Canada - OTTAWA",487,293,337,406,337,554,756,736,447,622,653,728,769,524,568,330,160,41,13,0]
[null,null,null,null,null,null,null,null,null,null,null,null,null,null,null,null,null,null,null,null,null,null,null,null,null,null,null,null,null,null,null,548,"PORT HARDY","Canada","PORT HARDY","Canada - PORT HARDY",0,0,4,14,34,144,541,1128,1341,1969,1800,1300,398,65,19,3,0,0,0,0]
[null,null,null,null,null,null,null,null,null,null,null,null,null,null,null,null,null,null,null,null,null,null,null,null,null,null,null,null,null,null,null,549,"PRINCE GEORGE","Canada","PRINCE GEORGE","Canada - PRINCE GEORGE",486,168,260,333,319,714,1018,975,672,950,954,749,517,250,221,114,47,9,2,0]
[null,null,null,null,null,null,null,null,null,null,null,null,null,null,null,null,null,null,null,null,null,null,null,null,null,null,null,null,null,null,null,550,"RESOLUTE","Canada","RESOLUTE","Canada - RESOLUTE",4583,413,398,378,310,543,941,698,261,172,50,9,0,0,0,0,0,0,0,0]
[null,null,null,null,null,null,null,null,null,null,null,null,null,null,null,null,null,null,null,null,null,null,null,null,null,null,null,null,null,null,null,551,"SAINT JOHN’S","Canada","SAINT JOHN’S","Canada - SAINT JOHN’S",54,111,251,430,420,907,1298,1033,685,915,898,745,541,243,166,53,7,0,0,0]
[null,null,null,null,null,null,null,null,null,null,null,null,null,null,null,null,null,null,null,null,null,null,null,null,null,null,null,null,null,null,null,552,"SANDSPIT","Canada","SANDSPIT","Canada - SANDSPIT",0,0,3,16,28,111,458,1261,1317,1961,1580,1451,480,72,21,1,0,0,0,0]
[null,null,null,null,null,null,null,null,null,null,null,null,null,null,null,null,null,null,null,null,null,null,null,null,null,null,null,null,null,null,null,553,"SASKATOON","Canada","SASKATOON","Canada - SASKATOON",1134,355,404,457,368,571,659,595,402,615,706,716,629,359,380,238,115,35,16,3]
[null,null,null,null,null,null,null,null,null,null,null,null,null,null,null,null,null,null,null,null,null,null,null,null,null,null,null,null,null,null,null,554,"SHEPHERD BAY","Canada","SHEPHERD BAY","Canada - SHEPHERD BAY",4307,361,371,391,311,485,734,652,377,375,214,120,47,14,3,0,0,0,0,0]
[null,null,null,null,null,null,null,null,null,null,null,null,null,null,null,null,null,null,null,null,null,null,null,null,null,null,null,null,null,null,null,555,"SIOUX LOOKOUT","Canada","SIOUX LOOKOUT","Canada - SIOUX LOOKOUT",1293,357,379,436,372,601,665,581,395,595,655,690,662,372,363,216,97,23,8,1]
[null,null,null,null,null,null,null,null,null,null,null,null,null,null,null,null,null,null,null,null,null,null,null,null,null,null,null,null,null,null,null,556,"STEPHENVILLE","Canada","STEPHENVILLE","Canada - STEPHENVILLE",134,187,330,511,430,697,971,965,633,866,884,915,777,299,139,22,2,0,0,0]
[null,null,null,null,null,null,null,null,null,null,null,null,null,null,null,null,null,null,null,null,null,null,null,null,null,null,null,null,null,null,null,557,"THE PAS","Canada","THE PAS","Canada - THE PAS",1595,379,392,415,322,551,623,600,401,581,646,718,621,322,326,180,69,15,6,0]
[null,null,null,null,null,null,null,null,null,null,null,null,null,null,null,null,null,null,null,null,null,null,null,null,null,null,null,null,null,null,null,558,"THUNDER BAY","Canada","THUNDER BAY","Canada - THUNDER BAY",889,327,374,424,366,660,799,717,468,690,758,762,643,322,299,168,72,17,7,1]
[null,null,null,null,null,null,null,null,null,null,null,null,null,null,null,null,null,null,null,null,null,null,null,null,null,null,null,null,null,null,null,559,"TIMMINS","Canada","TIMMINS","Canada - TIMMINS",1201,353,397,440,368,629,771,652,446,642,666,641,586,328,322,195,93,20,7,0]
[null,null,null,null,null,null,null,null,null,null,null,null,null,null,null,null,null,null,null,null,null,null,null,null,null,null,null,null,null,null,null,560,"TORONTO","Canada","PEARSON","Canada - TORONTO",148,167,263,368,337,592,890,859,519,684,697,754,761,516,601,363,178,44,17,2]
[null,null,null,null,null,null,null,null,null,null,null,null,null,null,null,null,null,null,null,null,null,null,null,null,null,null,null,null,null,null,null,561,"VANCOUVER","Canada","VANCOUVER","Canada - VANCOUVER",0,1,12,33,50,162,413,838,1017,1628,1426,1405,1008,425,270,63,9,0,0,0]
[null,null,null,null,null,null,null,null,null,null,null,null,null,null,null,null,null,null,null,null,null,null,null,null,null,null,null,null,null,null,null,562,"WHITEHORSE","Canada","WHITEHORSE","Canada - WHITEHORSE",1255,315,374,443,388,754,875,826,565,843,794,600,379,159,120,53,17,1,0,0]
[null,null,null,null,null,null,null,null,null,null,null,null,null,null,null,null,null,null,null,null,null,null,null,null,null,null,null,null,null,null,null,563,"WINNIPEG","Canada","WINNIPEG","Canada - WINNIPEG",1227,337,389,440,343,541,624,554,372,545,607,680,690,422,461,302,154,47,21,4]
[null,null,null,null,null,null,null,null,null,null,null,null,null,null,null,null,null,null,null,null,null,null,null,null,null,null,null,null,null,null,null,564,"YARMOUTH","Canada","YARMOUTH","Canada - YARMOUTH",14,63,176,306,296,569,856,1017,723,1005,1098,1196,937,325,155,24,1,0,0,0]
[null,null,null,null,null,null,null,null,null,null,null,null,null,null,null,null,null,null,null,null,null,null,null,null,null,null,null,null,null,null,null,565,"YELLOWKNIFE","Canada","YELLOWKNIFE","Canada - YELLOWKNIFE",2617,417,389,390,276,427,480,528,384,568,644,645,504,237,173,67,14,2,0,0]
[null,null,null,null,null,null,null,null,null,null,null,null,null,null,null,null,null,null,null,null,null,null,null,null,null,null,null,null,null,null,null,566,"PUDAHUEL","Chile","PUDAHUEL","Chile - PUDAHUEL",0,0,0,0,1,29,166,411,541,1180,1620,1370,1013,555,642,570,446,172,43,1]
[null,null,null,null,null,null,null,null,null,null,null,null,null,null,null,null,null,null,null,null,null,null,null,null,null,null,null,null,null,null,null,567,"ARMSTRONG","China","ARMSTRONG","China - ARMSTRONG",1472,350,369,413,375,671,754,622,431,629,665,623,539,295,294,169,68,14,6,0]
[null,null,null,null,null,null,null,null,null,null,null,null,null,null,null,null,null,null,null,null,null,null,null,null,null,null,null,null,null,null,null,568,"BEIJING","China","PEKING","China - BEIJING",0,10,62,214,308,620,715,639,463,535,544,585,652,610,914,850,590,277,146,26]
[null,null,null,null,null,null,null,null,null,null,null,null,null,null,null,null,null,null,null,null,null,null,null,null,null,null,null,null,null,null,null,569,"HONG KONG","China","HONG KONG","China - HONG KONG",0,0,0,0,0,0,0,0,5,45,160,570,1145,885,1207,1541,2177,773,246,6]
[null,null,null,null,null,null,null,null,null,null,null,null,null,null,null,null,null,null,null,null,null,null,null,null,null,null,null,null,null,null,null,570,"SHANGHAI","China","HONGQIAO","China - SHANGHAI",0,0,0,2,12,97,320,590,627,858,754,726,798,665,963,986,804,319,200,38]
[null,null,null,null,null,null,null,null,null,null,null,null,null,null,null,null,null,null,null,null,null,null,null,null,null,null,null,null,null,null,null,571,"BOGOTA","Columbia","ELDORADO","Columbia - BOGOTA",0,0,0,0,0,2,22,116,247,998,2870,1944,1932,562,66,2,0,0,0,0]
[null,null,null,null,null,null,null,null,null,null,null,null,null,null,null,null,null,null,null,null,null,null,null,null,null,null,null,null,null,null,null,572,"SAN JOSE","CostaRica","SANTAMARIA","CostaRica - SAN JOSE",0,0,0,0,0,0,0,0,0,0,0,16,757,2841,2382,1628,1018,113,4,0]
[null,null,null,null,null,null,null,null,null,null,null,null,null,null,null,null,null,null,null,null,null,null,null,null,null,null,null,null,null,null,null,573,"GUANTANAMO BAY NAS","Cuba","GUANTANAMO BAY NAS","Cuba - GUANTANAMO BAY NAS",0,0,0,0,0,0,0,0,0,0,0,0,27,244,1277,2665,2481,1520,533,13]
[null,null,null,null,null,null,null,null,null,null,null,null,null,null,null,null,null,null,null,null,null,null,null,null,null,null,null,null,null,null,null,574,"HAVANA","Cuba","JOSE MARTI","Cuba - HAVANA",0,0,0,0,0,0,0,0,1,10,42,142,450,703,2131,2643,1567,787,284,1]
[null,null,null,null,null,null,null,null,null,null,null,null,null,null,null,null,null,null,null,null,null,null,null,null,null,null,null,null,null,null,null,575,"DIEGO GARCIA","DIEGO GARCIA","DIEGO GARCIA","DIEGO GARCIA - DIEGO GARCIA",0,0,0,0,0,0,0,0,0,0,0,0,0,0,94,3188,4428,975,75,0]
[null,null,null,null,null,null,null,null,null,null,null,null,null,null,null,null,null,null,null,null,null,null,null,null,null,null,null,null,null,null,null,576,"CAUCEDO","Dominican Republic","DE LAS AMERICAS","Dominican Republic - CAUCEDO",0,0,0,0,0,0,0,0,0,0,0,0,60,488,2155,2648,2208,1051,150,0]
[null,null,null,null,null,null,null,null,null,null,null,null,null,null,null,null,null,null,null,null,null,null,null,null,null,null,null,null,null,null,null,577,"QUITO","Ecuador","MARISCAL SUCRE","Ecuador - QUITO",0,0,0,0,0,0,0,4,30,557,3249,2165,1651,876,222,5,1,0,0,0]
[null,null,null,null,null,null,null,null,null,null,null,null,null,null,null,null,null,null,null,null,null,null,null,null,null,null,null,null,null,null,null,578,"ALEXANDRIA","Egypt","ALEXANDRIA","Egypt - ALEXANDRIA",0,0,0,0,0,0,0,2,29,224,612,1166,1415,966,1333,1633,1060,256,49,16]
[null,null,null,null,null,null,null,null,null,null,null,null,null,null,null,null,null,null,null,null,null,null,null,null,null,null,null,null,null,null,null,579,"CAIRO","Egypt","CAIRO","Egypt - CAIRO",0,0,0,0,0,0,0,1,15,198,702,1014,1148,864,1381,1216,851,564,563,243]
[null,null,null,null,null,null,null,null,null,null,null,null,null,null,null,null,null,null,null,null,null,null,null,null,null,null,null,null,null,null,null,580,"ILOPANGO","El Salvador","SAN SALVADOR","El Salvador - ILOPANGO",0,0,0,0,0,0,0,0,0,0,0,41,507,1513,2811,1808,1562,450,68,1]
[null,null,null,null,null,null,null,null,null,null,null,null,null,null,null,null,null,null,null,null,null,null,null,null,null,null,null,null,null,null,null,581,"NANDI","Fiji","NADI","Fiji - NANDI",0,0,0,0,0,0,0,0,0,0,0,25,268,773,2185,2476,1952,967,114,1]
[null,null,null,null,null,null,null,null,null,null,null,null,null,null,null,null,null,null,null,null,null,null,null,null,null,null,null,null,null,null,null,582,"LYON","France","LYON","France - LYON",0,1,7,21,41,225,608,866,748,1104,1133,1112,1001,595,585,374,216,78,41,7]
[null,null,null,null,null,null,null,null,null,null,null,null,null,null,null,null,null,null,null,null,null,null,null,null,null,null,null,null,null,null,null,583,"MARSEILLE","France","MARSEILLE","France - MARSEILLE",0,0,1,5,10,60,197,436,541,1053,1270,1232,1113,775,920,625,358,121,39,3]
[null,null,null,null,null,null,null,null,null,null,null,null,null,null,null,null,null,null,null,null,null,null,null,null,null,null,null,null,null,null,null,584,"PARIS","France","PARIS","France - PARIS",0,0,7,17,38,190,538,868,844,1334,1345,1206,994,520,454,247,109,32,15,2]
[null,null,null,null,null,null,null,null,null,null,null,null,null,null,null,null,null,null,null,null,null,null,null,null,null,null,null,null,null,null,null,585,"CAYENNE","French Guiana ","ROCHAMBEAU","French Guiana  - CAYENNE",0,0,0,0,0,0,0,0,0,0,0,0,0,16,1716,3714,2318,927,69,0]
[null,null,null,null,null,null,null,null,null,null,null,null,null,null,null,null,null,null,null,null,null,null,null,null,null,null,null,null,null,null,null,586,"TAHITI ISLAND","French Polynesia","FAAA","French Polynesia - TAHITI ISLAND",0,0,0,0,0,0,0,0,0,0,0,0,6,113,1170,3161,3015,1238,56,0]
[null,null,null,null,null,null,null,null,null,null,null,null,null,null,null,null,null,null,null,null,null,null,null,null,null,null,null,null,null,null,null,587,"AUGSBERG","Germany","AUGSBERG","Germany - AUGSBERG",16,34,65,127,203,532,1012,1008,883,992,1062,1002,775,418,329,192,86,22,4,0]
[null,null,null,null,null,null,null,null,null,null,null,null,null,null,null,null,null,null,null,null,null,null,null,null,null,null,null,null,null,null,null,588,"BERLIN","Germany","TEMPELHOF","Germany - BERLIN",6,15,45,96,157,377,801,1042,954,975,1010,1087,904,533,397,210,103,37,8,2]
[null,null,null,null,null,null,null,null,null,null,null,null,null,null,null,null,null,null,null,null,null,null,null,null,null,null,null,null,null,null,null,589,"BREMEN","Germany","BREMEN","Germany - BREMEN",5,12,35,83,131,321,738,1063,1085,1203,1191,1129,848,418,264,143,64,19,6,0]
[null,null,null,null,null,null,null,null,null,null,null,null,null,null,null,null,null,null,null,null,null,null,null,null,null,null,null,null,null,null,null,590,"BREMERHAVEN","Germany","BREMERHAVEN","Germany - BREMERHAVEN",0,2,20,63,115,271,651,1064,1161,1169,1153,1341,980,408,212,96,39,11,3,0]
[null,null,null,null,null,null,null,null,null,null,null,null,null,null,null,null,null,null,null,null,null,null,null,null,null,null,null,null,null,null,null,591,"COBURG","Germany","COBURG","Germany - COBURG",13,26,62,119,198,496,1098,1105,923,979,1036,932,712,416,314,194,97,32,8,1]
[null,null,null,null,null,null,null,null,null,null,null,null,null,null,null,null,null,null,null,null,null,null,null,null,null,null,null,null,null,null,null,592,"ERDING","Germany","ERDING","Germany - ERDING",27,40,80,143,169,577,1125,1007,738,1026,1094,1000,735,336,346,211,84,15,5,0]
[null,null,null,null,null,null,null,null,null,null,null,null,null,null,null,null,null,null,null,null,null,null,null,null,null,null,null,null,null,null,null,593,"FRANKFURT","Germany","FRANKFURT","Germany - FRANKFURT",2,10,28,63,120,344,733,1037,943,1072,1065,1080,904,523,411,239,125,46,13,2]
[null,null,null,null,null,null,null,null,null,null,null,null,null,null,null,null,null,null,null,null,null,null,null,null,null,null,null,null,null,null,null,594,"GIESSEN","Germany","GIESSEN","Germany - GIESSEN",4,16,41,90,146,363,800,1066,974,1077,1111,1066,810,480,353,212,106,38,8,0]
[null,null,null,null,null,null,null,null,null,null,null,null,null,null,null,null,null,null,null,null,null,null,null,null,null,null,null,null,null,null,null,595,"GRAFENWOHR","Germany","GRAFENWOHR","Germany - GRAFENWOHR",43,41,73,148,192,653,1197,1112,714,987,1051,924,660,322,323,197,92,22,9,0]
[null,null,null,null,null,null,null,null,null,null,null,null,null,null,null,null,null,null,null,null,null,null,null,null,null,null,null,null,null,null,null,596,"HAHN","Germany","HAHN","Germany - HAHN",1,8,39,109,163,498,1011,1209,814,1190,1172,1048,771,300,269,110,41,6,1,0]
[null,null,null,null,null,null,null,null,null,null,null,null,null,null,null,null,null,null,null,null,null,null,null,null,null,null,null,null,null,null,null,597,"HANAU AAF","Germany","HANAU AAF","Germany - HANAU AAF",3,9,20,51,56,239,566,1113,701,1248,1048,1115,1094,451,517,292,170,44,24,2]
[null,null,null,null,null,null,null,null,null,null,null,null,null,null,null,null,null,null,null,null,null,null,null,null,null,null,null,null,null,null,null,598,"HANNOVER","Germany","HANNOVER","Germany - HANNOVER",11,18,46,93,138,333,730,1036,1038,1161,1181,1133,838,444,293,163,74,25,5,0]
[null,null,null,null,null,null,null,null,null,null,null,null,null,null,null,null,null,null,null,null,null,null,null,null,null,null,null,null,null,null,null,599,"HEIDELBERG","Germany","HEIDELBERG","Germany - HEIDELBERG",1,7,19,48,73,261,670,983,795,1106,1084,1110,970,519,518,324,176,60,30,6]
[null,null,null,null,null,null,null,null,null,null,null,null,null,null,null,null,null,null,null,null,null,null,null,null,null,null,null,null,null,null,null,600,"IDAR-OBERSTEIN","Germany","IDAR-OBERSTEIN","Germany - IDAR-OBERSTEIN",2,12,47,111,165,483,922,1071,945,1139,1130,1006,707,338,338,213,96,28,7,0]
[null,null,null,null,null,null,null,null,null,null,null,null,null,null,null,null,null,null,null,null,null,null,null,null,null,null,null,null,null,null,null,601,"KARLSRUHE","Germany","KARLSRUHE","Germany - KARLSRUHE",0,7,29,58,108,290,705,936,934,1079,1076,1070,937,560,449,278,154,62,23,4]
[null,null,null,null,null,null,null,null,null,null,null,null,null,null,null,null,null,null,null,null,null,null,null,null,null,null,null,null,null,null,null,602,"KASSEL","Germany","KASSEL","Germany - KASSEL",6,17,41,99,153,370,858,1127,971,1088,1146,1066,794,444,306,172,73,23,5,0]
[null,null,null,null,null,null,null,null,null,null,null,null,null,null,null,null,null,null,null,null,null,null,null,null,null,null,null,null,null,null,null,603,"KIEL","Germany","KIEL","Germany - KIEL",0,0,0,10,66,221,570,1196,1472,1094,1134,1373,1040,403,141,26,7,4,3,1]
[null,null,null,null,null,null,null,null,null,null,null,null,null,null,null,null,null,null,null,null,null,null,null,null,null,null,null,null,null,null,null,604,"KITZINGEN AAF","Germany","KITZINGEN AAF","Germany - KITZINGEN AAF",13,17,30,73,104,355,808,1112,826,1027,1058,1090,915,458,415,262,135,42,17,1]
[null,null,null,null,null,null,null,null,null,null,null,null,null,null,null,null,null,null,null,null,null,null,null,null,null,null,null,null,null,null,null,605,"MANNHEIN","Germany","MANNHEIN","Germany - MANNHEIN",3,7,24,55,111,306,682,954,949,1082,1042,1035,930,590,455,295,159,61,17,3]
[null,null,null,null,null,null,null,null,null,null,null,null,null,null,null,null,null,null,null,null,null,null,null,null,null,null,null,null,null,null,null,606,"MUNICH","Germany","MUNICH","Germany - MUNICH",22,41,77,135,210,580,1020,993,806,991,1063,1020,759,396,341,204,77,18,6,0]
[null,null,null,null,null,null,null,null,null,null,null,null,null,null,null,null,null,null,null,null,null,null,null,null,null,null,null,null,null,null,null,607,"NURNBERG","Germany","NURNBERG","Germany - NURNBERG",17,22,54,99,164,432,925,1073,891,981,1012,1013,811,486,377,236,116,40,10,1]
[null,null,null,null,null,null,null,null,null,null,null,null,null,null,null,null,null,null,null,null,null,null,null,null,null,null,null,null,null,null,null,608,"OLDENBURG","Germany","OLDENBURG","Germany - OLDENBURG",4,11,37,91,122,320,736,1075,937,1278,1249,1204,843,365,260,139,62,20,7,1]
[null,null,null,null,null,null,null,null,null,null,null,null,null,null,null,null,null,null,null,null,null,null,null,null,null,null,null,null,null,null,null,609,"RAMSTEIN USAFB","Germany","RAMSTEIN USAFB","Germany - RAMSTEIN USAFB",4,13,42,86,103,391,819,1126,745,1230,1122,1053,875,351,395,224,130,29,17,4]
[null,null,null,null,null,null,null,null,null,null,null,null,null,null,null,null,null,null,null,null,null,null,null,null,null,null,null,null,null,null,null,610,"SEMBACH AB","Germany","SEMBACH AB","Germany - SEMBACH AB",1,9,38,76,114,372,803,1095,790,1164,1268,1131,877,383,357,181,79,15,8,0]
[null,null,null,null,null,null,null,null,null,null,null,null,null,null,null,null,null,null,null,null,null,null,null,null,null,null,null,null,null,null,null,611,"SPANGDAHLEM AB","Germany","SPANGDAHLEM AB","Germany - SPANGDAHLEM AB",0,6,25,71,115,399,878,1305,799,1243,1155,1038,838,314,332,146,75,14,5,0]
[null,null,null,null,null,null,null,null,null,null,null,null,null,null,null,null,null,null,null,null,null,null,null,null,null,null,null,null,null,null,null,612,"STOETTEN","Germany","STOETTEN","Germany - STOETTEN",11,25,72,176,325,694,1022,977,900,1081,1089,948,684,386,246,97,23,4,0,0]
[null,null,null,null,null,null,null,null,null,null,null,null,null,null,null,null,null,null,null,null,null,null,null,null,null,null,null,null,null,null,null,613,"STUTTGART","Germany","ECHTERDINGEN","Germany - STUTTGART",8,19,45,105,179,453,899,1026,908,1004,1108,1056,825,457,350,200,91,21,5,0]
[null,null,null,null,null,null,null,null,null,null,null,null,null,null,null,null,null,null,null,null,null,null,null,null,null,null,null,null,null,null,null,614,"ULM","Germany","ULM","Germany - ULM",10,21,56,132,237,556,1010,1020,867,980,1048,984,759,453,339,195,75,16,3,0]
[null,null,null,null,null,null,null,null,null,null,null,null,null,null,null,null,null,null,null,null,null,null,null,null,null,null,null,null,null,null,null,615,"WENDELSTEIN MTN","Germany","WENDELSTEIN MTN","Germany - WENDELSTEIN MTN",48,115,282,559,659,1002,1197,1258,1032,1029,787,499,218,58,13,1,0,0,0,0]
[null,null,null,null,null,null,null,null,null,null,null,null,null,null,null,null,null,null,null,null,null,null,null,null,null,null,null,null,null,null,null,616,"WIESBADEN (USA-AF)","Germany","WIESBADEN (USA-AF)","Germany - WIESBADEN (USA-AF)",0,3,18,34,59,255,654,1111,764,1190,1088,1152,1039,459,493,263,131,32,16,1]
[null,null,null,null,null,null,null,null,null,null,null,null,null,null,null,null,null,null,null,null,null,null,null,null,null,null,null,null,null,null,null,617,"WURZBURG AAF","Germany","WURZBURG AAF","Germany - WURZBURG AAF",9,19,45,98,162,408,919,1056,902,1008,1052,1006,810,480,381,239,118,38,10,1]
[null,null,null,null,null,null,null,null,null,null,null,null,null,null,null,null,null,null,null,null,null,null,null,null,null,null,null,null,null,null,null,618,"ATHENS","Greece","HELLINIKON","Greece - ATHENS",0,0,0,0,0,1,23,127,274,766,1143,1337,1157,667,1062,1016,717,287,152,29]
[null,null,null,null,null,null,null,null,null,null,null,null,null,null,null,null,null,null,null,null,null,null,null,null,null,null,null,null,null,null,null,619,"ELEFSIS","Greece","ELEFSIS","Greece - ELEFSIS",0,0,0,0,0,5,46,208,340,872,1199,1146,1000,624,952,952,727,330,270,90]
[null,null,null,null,null,null,null,null,null,null,null,null,null,null,null,null,null,null,null,null,null,null,null,null,null,null,null,null,null,null,null,620,"IRAKLION","Greece","(CIV/AFB)","Greece - IRAKLION",0,0,0,0,0,0,1,15,57,432,1230,1518,1367,887,1237,1328,575,81,27,6]
[null,null,null,null,null,null,null,null,null,null,null,null,null,null,null,null,null,null,null,null,null,null,null,null,null,null,null,null,null,null,null,621,"LARISSA","Greece","LARISSA","Greece - LARISSA",0,0,1,6,30,120,284,547,709,1016,950,898,916,698,794,625,541,306,229,92]
[null,null,null,null,null,null,null,null,null,null,null,null,null,null,null,null,null,null,null,null,null,null,null,null,null,null,null,null,null,null,null,622,"PREVEZA","Greece","PREVEZA","Greece - PREVEZA",0,0,0,0,0,0,10,111,290,824,1233,1304,1189,902,1217,970,551,122,32,4]
[null,null,null,null,null,null,null,null,null,null,null,null,null,null,null,null,null,null,null,null,null,null,null,null,null,null,null,null,null,null,null,623,"SOUDA","Greece","SOUDA","Greece - SOUDA",0,0,0,0,0,0,2,27,147,655,1332,1365,1169,848,1227,958,653,230,113,34]
[null,null,null,null,null,null,null,null,null,null,null,null,null,null,null,null,null,null,null,null,null,null,null,null,null,null,null,null,null,null,null,624,"ANGMAGSSALIK,","Greenland","ANGMAGSSALIK,","Greenland - ANGMAGSSALIK,",283,369,558,734,820,1236,1555,1460,967,579,158,32,8,1,0,0,0,0,0,0]
[null,null,null,null,null,null,null,null,null,null,null,null,null,null,null,null,null,null,null,null,null,null,null,null,null,null,null,null,null,null,null,625,"SONDRE STROMFJORD","Greenland","SONDRE STROMFJORD","Greenland - SONDRE STROMFJORD",2305,506,486,493,352,554,647,767,718,808,573,336,172,35,5,0,0,0,0,0]
[null,null,null,null,null,null,null,null,null,null,null,null,null,null,null,null,null,null,null,null,null,null,null,null,null,null,null,null,null,null,null,626,"THULE AB","Greenland","THULE AB","Greenland - THULE AB",3674,481,481,491,339,672,874,969,384,303,73,15,3,0,0,0,0,0,0,0]
[null,null,null,null,null,null,null,null,null,null,null,null,null,null,null,null,null,null,null,null,null,null,null,null,null,null,null,null,null,null,null,627,"GUATEMALA","Guatemala","LA AURORA","Guatemala - GUATEMALA",0,0,0,0,0,0,0,0,0,26,222,1196,3366,1458,1576,798,114,5,0,0]
[null,null,null,null,null,null,null,null,null,null,null,null,null,null,null,null,null,null,null,null,null,null,null,null,null,null,null,null,null,null,null,628,"TEGUCIGALPA","Honduras","TONCONTIN","Honduras - TEGUCIGALPA",0,0,0,0,0,0,0,0,0,6,73,344,1328,2153,1984,1538,1054,237,43,0]
[null,null,null,null,null,null,null,null,null,null,null,null,null,null,null,null,null,null,null,null,null,null,null,null,null,null,null,null,null,null,null,629,"BUDAPEST","Hungary","BUDAPEST","Hungary - BUDAPEST",9,17,49,115,152,466,844,1001,612,818,888,975,980,541,586,400,203,64,34,4]
[null,null,null,null,null,null,null,null,null,null,null,null,null,null,null,null,null,null,null,null,null,null,null,null,null,null,null,null,null,null,null,630,"REYKJAVIK","Iceland","REYKJAVIK","Iceland - REYKJAVIK",0,3,42,177,305,795,1296,1633,1178,1705,1292,297,32,4,1,0,0,0,0,0]
[null,null,null,null,null,null,null,null,null,null,null,null,null,null,null,null,null,null,null,null,null,null,null,null,null,null,null,null,null,null,null,631,"BOMBAY","India","BOMBAY","India - BOMBAY",0,0,0,0,0,0,0,0,0,0,1,31,207,509,901,1963,2920,1495,661,72]
[null,null,null,null,null,null,null,null,null,null,null,null,null,null,null,null,null,null,null,null,null,null,null,null,null,null,null,null,null,null,null,632,"CALCUTTA","India","CALCUTTA","India - CALCUTTA",0,0,0,0,0,0,0,0,0,5,114,348,555,520,812,1564,2652,1185,748,256]
[null,null,null,null,null,null,null,null,null,null,null,null,null,null,null,null,null,null,null,null,null,null,null,null,null,null,null,null,null,null,null,633,"DELHI","India","DELHI","India - DELHI",0,0,0,0,0,0,0,4,60,335,566,622,651,613,741,1013,1495,1010,873,776]
[null,null,null,null,null,null,null,null,null,null,null,null,null,null,null,null,null,null,null,null,null,null,null,null,null,null,null,null,null,null,null,634,"HYDERABAD","India","HYDERABAD","India - HYDERABAD",0,0,0,0,0,0,0,0,0,0,17,142,372,602,1524,2189,1746,1009,574,585]
[null,null,null,null,null,null,null,null,null,null,null,null,null,null,null,null,null,null,null,null,null,null,null,null,null,null,null,null,null,null,null,635,"MADRAS","India","MADRAS","India - MADRAS",0,0,0,0,0,0,0,0,0,0,0,0,0,163,910,2018,2781,1551,888,443]
[null,null,null,null,null,null,null,null,null,null,null,null,null,null,null,null,null,null,null,null,null,null,null,null,null,null,null,null,null,null,null,636,"TEHRAN","Iran","TEHRAN","Iran - TEHRAN",0,0,1,15,41,170,421,582,496,681,637,623,684,520,735,794,790,529,598,445]
[null,null,null,null,null,null,null,null,null,null,null,null,null,null,null,null,null,null,null,null,null,null,null,null,null,null,null,null,null,null,null,637,"BAGHDAD","Iraq","BAGHDAD","Iraq - BAGHDAD",0,0,0,0,0,27,100,235,256,572,710,781,714,503,795,844,835,472,558,1357]
[null,null,null,null,null,null,null,null,null,null,null,null,null,null,null,null,null,null,null,null,null,null,null,null,null,null,null,null,null,null,null,638,"DUBLIN","Ireland","DUBLIN","Ireland - DUBLIN",0,0,0,0,4,37,308,920,1236,1809,1812,1516,800,238,72,8,0,0,0,0]
[null,null,null,null,null,null,null,null,null,null,null,null,null,null,null,null,null,null,null,null,null,null,null,null,null,null,null,null,null,null,null,639,"SHANNON","Ireland","SHANNON,","Ireland - SHANNON",0,0,0,0,5,39,211,684,1077,1812,1959,1633,925,271,104,33,6,1,0,0]
[null,null,null,null,null,null,null,null,null,null,null,null,null,null,null,null,null,null,null,null,null,null,null,null,null,null,null,null,null,null,null,640,"JERUSALEM","Israel","JERUSALEM","Israel - JERUSALEM",0,0,0,0,0,4,67,314,500,1125,1121,995,1323,885,963,802,472,126,56,5]
[null,null,null,null,null,null,null,null,null,null,null,null,null,null,null,null,null,null,null,null,null,null,null,null,null,null,null,null,null,null,null,641,"TEL-AVIV","Israel","TEL-AVIV","Israel - TEL-AVIV",0,0,0,0,0,0,0,2,30,200,649,1013,1362,1020,1286,1616,1321,223,28,11]
[null,null,null,null,null,null,null,null,null,null,null,null,null,null,null,null,null,null,null,null,null,null,null,null,null,null,null,null,null,null,null,642,"AVIANO","Italy","IT/US-AFB","Italy - AVIANO",0,0,1,23,44,223,482,819,666,1151,1005,911,1055,596,828,527,306,82,38,2]
[null,null,null,null,null,null,null,null,null,null,null,null,null,null,null,null,null,null,null,null,null,null,null,null,null,null,null,null,null,null,null,643,"BRINDISI","Italy","BRINDISI","Italy - BRINDISI",0,0,0,0,0,1,17,96,243,800,1462,1450,1145,787,1150,1012,458,99,33,8]
[null,null,null,null,null,null,null,null,null,null,null,null,null,null,null,null,null,null,null,null,null,null,null,null,null,null,null,null,null,null,null,644,"CAGLIARI","Italy","CAGLIARI","Italy - CAGLIARI",0,0,0,0,0,2,37,167,313,812,1312,1536,1227,816,1026,820,464,158,58,13]
[null,null,null,null,null,null,null,null,null,null,null,null,null,null,null,null,null,null,null,null,null,null,null,null,null,null,null,null,null,null,null,645,"CIAMPINO","Italy","CIAMPINO","Italy - CIAMPINO",0,0,0,1,2,31,184,427,498,1064,1374,1265,1073,711,869,623,399,153,76,9]
[null,null,null,null,null,null,null,null,null,null,null,null,null,null,null,null,null,null,null,null,null,null,null,null,null,null,null,null,null,null,null,646,"CIMONE MOUNTAIN","Italy","CIMONE MOUNTAIN","Italy - CIMONE MOUNTAIN",26,80,183,404,557,1275,1612,1276,893,1056,795,451,127,21,4,0,0,0,0,0]
[null,null,null,null,null,null,null,null,null,null,null,null,null,null,null,null,null,null,null,null,null,null,null,null,null,null,null,null,null,null,null,647,"GHEDI","Italy","GHEDI","Italy - GHEDI",1,2,7,31,89,326,673,860,685,908,881,896,909,649,732,552,362,140,52,2]
[null,null,null,null,null,null,null,null,null,null,null,null,null,null,null,null,null,null,null,null,null,null,null,null,null,null,null,null,null,null,null,648,"MILANO","Italy","MILANO","Italy - MILANO",0,0,3,14,43,227,654,909,737,960,913,924,957,668,719,532,331,127,39,2]
[null,null,null,null,null,null,null,null,null,null,null,null,null,null,null,null,null,null,null,null,null,null,null,null,null,null,null,null,null,null,null,649,"NAPLES","Italy","NAPLES","Italy - NAPLES",0,0,0,0,0,7,71,288,450,980,1306,1355,1132,778,957,738,461,164,63,10]
[null,null,null,null,null,null,null,null,null,null,null,null,null,null,null,null,null,null,null,null,null,null,null,null,null,null,null,null,null,null,null,650,"PISA","Italy","PISA","Italy - PISA",0,0,1,2,11,85,250,477,561,1056,1327,1302,1114,723,780,565,356,116,33,2]
[null,null,null,null,null,null,null,null,null,null,null,null,null,null,null,null,null,null,null,null,null,null,null,null,null,null,null,null,null,null,null,651,"RIMINI","Italy","RIMINI","Italy - RIMINI",0,0,1,4,17,124,430,779,735,1032,967,1024,971,688,811,676,395,83,20,3]
[null,null,null,null,null,null,null,null,null,null,null,null,null,null,null,null,null,null,null,null,null,null,null,null,null,null,null,null,null,null,null,652,"SIGONELLA NAS","Italy","SIGONELLA NAS","Italy - SIGONELLA NAS",0,0,0,0,0,1,36,234,278,836,1074,1148,1336,668,1165,728,610,243,301,101]
[null,null,null,null,null,null,null,null,null,null,null,null,null,null,null,null,null,null,null,null,null,null,null,null,null,null,null,null,null,null,null,653,"VENEZIA","Italy","VENEZIA","Italy - VENEZIA",0,0,1,6,23,180,551,837,742,994,952,911,965,722,863,617,313,74,10,0]
[null,null,null,null,null,null,null,null,null,null,null,null,null,null,null,null,null,null,null,null,null,null,null,null,null,null,null,null,null,null,null,654,"VILLAFRANCA","Italy","VILLAFRANCA","Italy - VILLAFRANCA",0,0,4,19,61,265,604,845,732,965,923,885,899,670,740,576,363,151,57,2]
[null,null,null,null,null,null,null,null,null,null,null,null,null,null,null,null,null,null,null,null,null,null,null,null,null,null,null,null,null,null,null,655,"SIGONELLA (NAS)","Italy","SIGONELLA NAS","Italy - SIGONELLA (NAS)",0,0,0,0,0,0,21,144,290,805,1212,1330,1191,792,1038,832,578,275,191,60]
[null,null,null,null,null,null,null,null,null,null,null,null,null,null,null,null,null,null,null,null,null,null,null,null,null,null,null,null,null,null,null,656,"PORT BOUET","Ivory Coast","ABIDJAN","Ivory Coast - PORT BOUET",0,0,0,0,0,0,0,0,0,0,0,0,1,23,870,3314,3346,1083,121,1]
[null,null,null,null,null,null,null,null,null,null,null,null,null,null,null,null,null,null,null,null,null,null,null,null,null,null,null,null,null,null,null,657,"KINGSTON","Jamaica","NORMAN MANLEY","Jamaica - KINGSTON",0,0,0,0,0,0,0,0,0,0,0,0,0,1,293,2496,3828,1586,553,4]
[null,null,null,null,null,null,null,null,null,null,null,null,null,null,null,null,null,null,null,null,null,null,null,null,null,null,null,null,null,null,null,658,"ASHIYA","Japan","ASHIYA","Japan - ASHIYA",0,0,0,0,0,36,216,584,574,989,1000,911,925,660,1038,997,557,187,84,4]
[null,null,null,null,null,null,null,null,null,null,null,null,null,null,null,null,null,null,null,null,null,null,null,null,null,null,null,null,null,null,null,659,"ATSUGI","Japan","ATSUGI","Japan - ATSUGI",0,0,0,0,10,105,349,643,607,895,867,898,993,768,1017,897,461,177,68,4]
[null,null,null,null,null,null,null,null,null,null,null,null,null,null,null,null,null,null,null,null,null,null,null,null,null,null,null,null,null,null,null,660,"FUKUOKA","Japan","FUKUOKA","Japan - FUKUOKA",0,3,2,0,0,7,94,429,665,924,936,854,913,853,998,964,676,311,127,9]
[null,null,null,null,null,null,null,null,null,null,null,null,null,null,null,null,null,null,null,null,null,null,null,null,null,null,null,null,null,null,null,661,"FUKUOKA","Japan","ITAZUKE","Japan - FUKUOKA",0,0,0,0,2,35,230,565,532,928,944,872,881,635,987,1041,690,239,164,15]
[null,null,null,null,null,null,null,null,null,null,null,null,null,null,null,null,null,null,null,null,null,null,null,null,null,null,null,null,null,null,null,662,"FUTENMA","Japan","FUTENMA","Japan - FUTENMA",0,3,2,0,0,2,2,3,2,10,194,751,1196,1010,1512,1672,1781,521,99,0]
[null,null,null,null,null,null,null,null,null,null,null,null,null,null,null,null,null,null,null,null,null,null,null,null,null,null,null,null,null,null,null,663,"IRUMA","Japan","IRUMA","Japan - IRUMA",0,0,0,4,32,212,535,767,587,851,848,868,979,715,976,752,361,147,107,20]
[null,null,null,null,null,null,null,null,null,null,null,null,null,null,null,null,null,null,null,null,null,null,null,null,null,null,null,null,null,null,null,664,"IWACUNI","Japan","IWACUNI","Japan - IWACUNI",0,3,1,1,3,33,274,604,609,952,900,857,887,724,995,986,631,229,66,2]
[null,null,null,null,null,null,null,null,null,null,null,null,null,null,null,null,null,null,null,null,null,null,null,null,null,null,null,null,null,null,null,665,"MISAWA","Japan","(JASDF/AF/NV)","Japan - MISAWA",0,0,11,111,255,779,978,884,547,746,843,951,994,627,597,280,121,28,0,0]
[null,null,null,null,null,null,null,null,null,null,null,null,null,null,null,null,null,null,null,null,null,null,null,null,null,null,null,null,null,null,null,666,"MORIOKA","Japan","MORIOKA","Japan - MORIOKA",3,6,38,118,251,665,1028,864,645,706,743,829,860,716,651,381,175,61,19,1]
[null,null,null,null,null,null,null,null,null,null,null,null,null,null,null,null,null,null,null,null,null,null,null,null,null,null,null,null,null,null,null,667,"NAGASAKI","Japan","NAGASAKI","Japan - NAGASAKI",0,0,0,0,1,25,156,461,482,942,981,891,881,635,1004,1071,803,275,139,11]
[null,null,null,null,null,null,null,null,null,null,null,null,null,null,null,null,null,null,null,null,null,null,null,null,null,null,null,null,null,null,null,668,"NAGOYA","Japan","NAGOYA","Japan - NAGOYA",0,0,0,0,5,111,453,724,557,861,806,806,836,615,995,996,594,219,154,25]
[null,null,null,null,null,null,null,null,null,null,null,null,null,null,null,null,null,null,null,null,null,null,null,null,null,null,null,null,null,null,null,669,"NAHA","Japan","NAHA","Japan - NAHA",0,0,0,0,0,0,0,0,0,2,83,601,1144,967,1603,1693,1981,590,96,0]
[null,null,null,null,null,null,null,null,null,null,null,null,null,null,null,null,null,null,null,null,null,null,null,null,null,null,null,null,null,null,null,670,"OSAKA","Japan","ITAMI","Japan - OSAKA",0,0,0,0,2,68,385,695,582,881,826,804,827,602,962,969,699,242,188,27]
[null,null,null,null,null,null,null,null,null,null,null,null,null,null,null,null,null,null,null,null,null,null,null,null,null,null,null,null,null,null,null,671,"SAPPORO","Japan","SAPPORO","Japan - SAPPORO",1,11,72,248,453,818,918,756,623,631,707,811,899,769,624,285,103,27,5,0]
[null,null,null,null,null,null,null,null,null,null,null,null,null,null,null,null,null,null,null,null,null,null,null,null,null,null,null,null,null,null,null,672,"SASEBO","Japan","SASEBO","Japan - SASEBO",0,0,0,0,0,9,93,383,708,866,844,800,934,908,1030,985,799,295,98,8]
[null,null,null,null,null,null,null,null,null,null,null,null,null,null,null,null,null,null,null,null,null,null,null,null,null,null,null,null,null,null,null,673,"TOKYO","Japan","TOKYO","Japan - TOKYO",0,0,0,0,0,3,132,534,789,917,866,823,945,921,1025,850,601,261,87,6]
[null,null,null,null,null,null,null,null,null,null,null,null,null,null,null,null,null,null,null,null,null,null,null,null,null,null,null,null,null,null,null,674,"TOKYO INTERNATIONAL","Japan","TOKYO INTERNATIONAL","Japan - TOKYO INTERNATIONAL",0,0,0,0,0,11,173,600,646,1030,897,884,1023,775,1050,896,527,169,74,4]
[null,null,null,null,null,null,null,null,null,null,null,null,null,null,null,null,null,null,null,null,null,null,null,null,null,null,null,null,null,null,null,675,"YOKOTA ","Japan","(JASDF/USAF)","Japan - YOKOTA ",0,0,0,4,31,217,503,777,576,889,822,850,1052,723,1016,717,353,136,82,11]
[null,null,null,null,null,null,null,null,null,null,null,null,null,null,null,null,null,null,null,null,null,null,null,null,null,null,null,null,null,null,null,676,"AMMAN","Jordan","AMMAN","Jordan - AMMAN",0,0,0,0,0,2,54,300,544,1066,980,900,959,791,1020,847,683,347,206,62]
[null,null,null,null,null,null,null,null,null,null,null,null,null,null,null,null,null,null,null,null,null,null,null,null,null,null,null,null,null,null,null,677,"BEIRUT","Lebanon","BEIRUT","Lebanon - BEIRUT",0,0,0,0,0,0,0,3,25,221,814,1258,1446,837,1247,1456,1252,178,20,3]
[null,null,null,null,null,null,null,null,null,null,null,null,null,null,null,null,null,null,null,null,null,null,null,null,null,null,null,null,null,null,null,678,"BENINA","Libya","BENGHAZI","Libya - BENINA",0,0,0,0,0,0,0,4,37,395,894,1325,1120,828,1372,1090,910,390,241,154]
[null,null,null,null,null,null,null,null,null,null,null,null,null,null,null,null,null,null,null,null,null,null,null,null,null,null,null,null,null,null,null,679,"TRIPOLI","Libya","TRIPOLI","Libya - TRIPOLI",0,0,0,0,0,0,1,46,185,568,855,1049,1085,834,1148,953,766,439,404,426]
[null,null,null,null,null,null,null,null,null,null,null,null,null,null,null,null,null,null,null,null,null,null,null,null,null,null,null,null,null,null,null,680,"AGANA","Malaysia","BREWER","Malaysia - AGANA",0,0,0,0,0,0,2,0,0,0,0,0,0,1,111,3110,3762,1697,79,0]
[null,null,null,null,null,null,null,null,null,null,null,null,null,null,null,null,null,null,null,null,null,null,null,null,null,null,null,null,null,null,null,681,"ANDERSEN AFB","Malaysia","ANDERSEN AFB","Malaysia - ANDERSEN AFB",0,0,0,0,0,0,0,0,0,0,0,0,0,0,133,3931,4107,583,6,0]
[null,null,null,null,null,null,null,null,null,null,null,null,null,null,null,null,null,null,null,null,null,null,null,null,null,null,null,null,null,null,null,682,"KUALA LUMPUR","Malaysia","SUBANG","Malaysia - KUALA LUMPUR",0,0,0,0,0,0,0,0,0,0,0,0,0,9,1209,3566,1774,1324,865,12]
[null,null,null,null,null,null,null,null,null,null,null,null,null,null,null,null,null,null,null,null,null,null,null,null,null,null,null,null,null,null,null,683,"PENANG","Malaysia","BAYAN LEPAS","Malaysia - PENANG",0,0,0,0,0,0,0,0,0,0,0,0,0,0,381,3591,2631,1821,336,1]
[null,null,null,null,null,null,null,null,null,null,null,null,null,null,null,null,null,null,null,null,null,null,null,null,null,null,null,null,null,null,null,684,"KWAJALEIN","Marshall Islands","BUCHOLZ","Marshall Islands - KWAJALEIN",0,0,0,0,0,0,0,0,0,0,0,0,0,0,6,1108,5823,1819,4,0]
[null,null,null,null,null,null,null,null,null,null,null,null,null,null,null,null,null,null,null,null,null,null,null,null,null,null,null,null,null,null,null,685,"MAJURO","Marshall Islands","MAJURO","Marshall Islands - MAJURO",0,0,0,0,0,0,0,0,0,0,0,0,0,0,9,1171,6221,1356,3,0]
[null,null,null,null,null,null,null,null,null,null,null,null,null,null,null,null,null,null,null,null,null,null,null,null,null,null,null,null,null,null,null,686,"MEXICO CITY","Mexico","MEXICO CITY","Mexico - MEXICO CITY",0,0,0,0,0,0,4,40,85,410,878,2036,2117,970,1328,673,188,28,3,0]
[null,null,null,null,null,null,null,null,null,null,null,null,null,null,null,null,null,null,null,null,null,null,null,null,null,null,null,null,null,null,null,687,"YAP ISLAND","Micronesa","YAP ISLAND","Micronesa - YAP ISLAND",0,0,0,0,0,0,0,0,0,0,0,0,0,1,91,3095,3817,1750,6,0]
[null,null,null,null,null,null,null,null,null,null,null,null,null,null,null,null,null,null,null,null,null,null,null,null,null,null,null,null,null,null,null,688,"PONAPE ISLAND","Micronesia","PONAPE ISLAND","Micronesia - PONAPE ISLAND",0,0,0,0,0,0,0,0,0,0,0,0,0,0,379,3181,3784,1387,28,0]
[null,null,null,null,null,null,null,null,null,null,null,null,null,null,null,null,null,null,null,null,null,null,null,null,null,null,null,null,null,null,null,689,"SAIPAN","Micronesia","SAIPAN","Micronesia - SAIPAN",0,0,0,0,0,0,0,0,0,0,0,0,0,1,117,2679,4283,1597,83,1]
[null,null,null,null,null,null,null,null,null,null,null,null,null,null,null,null,null,null,null,null,null,null,null,null,null,null,null,null,null,null,null,690,"TRUK","Micronesia","MOEN ISLAND","Micronesia - TRUK",0,0,0,0,0,0,0,0,0,0,0,2,0,1,12,1488,5545,1704,7,0]
[null,null,null,null,null,null,null,null,null,null,null,null,null,null,null,null,null,null,null,null,null,null,null,null,null,null,null,null,null,null,null,691,"RABAT","Morocco","SALE","Morocco - RABAT",0,0,0,0,0,0,1,15,101,528,1093,1582,1824,1241,1388,715,177,49,29,16]
[null,null,null,null,null,null,null,null,null,null,null,null,null,null,null,null,null,null,null,null,null,null,null,null,null,null,null,null,null,null,null,692,"TANGIER","Morocco","BOUKHALF","Morocco - TANGIER",0,0,0,0,0,0,1,31,102,385,980,1853,1821,1089,1237,753,314,123,61,11]
[null,null,null,null,null,null,null,null,null,null,null,null,null,null,null,null,null,null,null,null,null,null,null,null,null,null,null,null,null,null,null,693,"RANGOON","Myanmar","MINGALADON","Myanmar - RANGOON",0,0,0,0,0,0,0,0,0,0,0,12,153,297,834,3247,2221,879,705,412]
[null,null,null,null,null,null,null,null,null,null,null,null,null,null,null,null,null,null,null,null,null,null,null,null,null,null,null,null,null,null,null,694,"AMSTERDAM","Netherlands","AMSTERDAM,","Netherlands - AMSTERDAM",0,3,12,39,76,212,537,895,1173,1408,1315,1313,979,419,227,105,39,9,1,0]
[null,null,null,null,null,null,null,null,null,null,null,null,null,null,null,null,null,null,null,null,null,null,null,null,null,null,null,null,null,null,null,695,"HOEK VAN HOLLAND","Netherlands","HOEK VAN HOLLAND","Netherlands - HOEK VAN HOLLAND",0,0,6,28,67,180,375,725,1243,1399,1272,1382,1248,513,212,74,27,9,1,0]
[null,null,null,null,null,null,null,null,null,null,null,null,null,null,null,null,null,null,null,null,null,null,null,null,null,null,null,null,null,null,null,696,"SOESTERBERG","Netherlands","SOESTERBERG","Netherlands - SOESTERBERG",1,7,21,57,97,277,622,938,1100,1337,1292,1246,876,421,254,130,61,19,4,0]
[null,null,null,null,null,null,null,null,null,null,null,null,null,null,null,null,null,null,null,null,null,null,null,null,null,null,null,null,null,null,null,697,"VOLKEL","Netherlands","VOLKEL","Netherlands - VOLKEL",0,5,21,52,91,258,638,948,1043,1276,1311,1248,879,447,289,151,71,21,8,1]
[null,null,null,null,null,null,null,null,null,null,null,null,null,null,null,null,null,null,null,null,null,null,null,null,null,null,null,null,null,null,null,698,"CHRISTCHURCH","New Zealand","CHRISTCHURCH","New Zealand - CHRISTCHURCH",0,0,0,0,1,93,332,653,980,1582,1689,1548,970,413,289,139,55,14,4,0]
[null,null,null,null,null,null,null,null,null,null,null,null,null,null,null,null,null,null,null,null,null,null,null,null,null,null,null,null,null,null,null,699,"WELLINGTON","New Zealand","WELLINGTON","New Zealand - WELLINGTON",0,0,0,0,0,0,74,388,323,1197,2371,2274,1432,490,181,30,0,0,0,0]
[null,null,null,null,null,null,null,null,null,null,null,null,null,null,null,null,null,null,null,null,null,null,null,null,null,null,null,null,null,null,null,700,"MANAGUA","Nicaragua","AUGUSTO","Nicaragua - MANAGUA",0,0,0,0,0,0,0,0,0,0,0,0,30,215,1687,2674,1818,1309,908,119]
[null,null,null,null,null,null,null,null,null,null,null,null,null,null,null,null,null,null,null,null,null,null,null,null,null,null,null,null,null,null,null,701,"OSLO","Norway","OSLO","Norway - OSLO",77,97,161,299,355,723,1110,1001,658,832,913,1004,764,335,257,128,40,5,1,0]
[null,null,null,null,null,null,null,null,null,null,null,null,null,null,null,null,null,null,null,null,null,null,null,null,null,null,null,null,null,null,null,702,"KARACHI","Pakistan","KARACHI","Pakistan - KARACHI",0,0,0,0,0,0,0,0,4,41,157,367,516,431,813,1201,2420,1281,1141,388]
[null,null,null,null,null,null,null,null,null,null,null,null,null,null,null,null,null,null,null,null,null,null,null,null,null,null,null,null,null,null,null,703,"KOROR","Palau","PALAU ISLAND","Palau - KOROR",0,0,0,0,0,0,0,0,0,0,0,0,0,0,25,2948,4112,1664,11,0]
[null,null,null,null,null,null,null,null,null,null,null,null,null,null,null,null,null,null,null,null,null,null,null,null,null,null,null,null,null,null,null,704,"HOWARD AFB","Panama","HOWARD AFB","Panama - HOWARD AFB",0,0,0,0,0,0,0,0,0,0,0,0,0,3,324,3997,2803,1101,508,23]
[null,null,null,null,null,null,null,null,null,null,null,null,null,null,null,null,null,null,null,null,null,null,null,null,null,null,null,null,null,null,null,705,"TOCUMEN","Panama","TOCUMEN","Panama - TOCUMEN",0,0,0,0,0,0,0,0,0,0,0,0,2,71,1554,3530,1953,1108,538,4]
[null,null,null,null,null,null,null,null,null,null,null,null,null,null,null,null,null,null,null,null,null,null,null,null,null,null,null,null,null,null,null,706,"ASUNCION","Paraguay","SILVIO PETTIROSSI","Paraguay - ASUNCION",0,0,0,0,0,0,2,22,44,150,331,579,861,870,1666,1717,1223,620,511,163]
[null,null,null,null,null,null,null,null,null,null,null,null,null,null,null,null,null,null,null,null,null,null,null,null,null,null,null,null,null,null,null,707,"LIMA","Peru","JORGE CHAVEZ","Peru - LIMA",0,0,0,0,0,0,0,0,0,0,6,578,3291,1958,1804,887,210,26,1,0]
[null,null,null,null,null,null,null,null,null,null,null,null,null,null,null,null,null,null,null,null,null,null,null,null,null,null,null,null,null,null,null,708,"BAGUIO","Philippines","LUZON ISLAND","Philippines - BAGUIO",0,0,0,0,0,0,0,0,0,4,93,608,3353,2084,1748,744,98,21,7,0]
[null,null,null,null,null,null,null,null,null,null,null,null,null,null,null,null,null,null,null,null,null,null,null,null,null,null,null,null,null,null,null,709,"CLARK AFB","Philippines","LUZON ISL","Philippines - CLARK AFB",0,0,0,0,0,0,0,0,0,0,0,0,8,111,1144,3387,2354,1048,630,79]
[null,null,null,null,null,null,null,null,null,null,null,null,null,null,null,null,null,null,null,null,null,null,null,null,null,null,null,null,null,null,null,710,"NINOY AQUINO","Philippines","NINOY AQUINO","Philippines - NINOY AQUINO",0,0,0,0,0,0,0,0,0,0,0,0,4,47,647,3154,2810,1357,681,60]
[null,null,null,null,null,null,null,null,null,null,null,null,null,null,null,null,null,null,null,null,null,null,null,null,null,null,null,null,null,null,null,711,"OLONGAPO","Philippines","OLONGAPO","Philippines - OLONGAPO",0,0,0,0,0,0,0,0,0,0,2,3,1,18,434,2760,2884,1390,1082,186]
[null,null,null,null,null,null,null,null,null,null,null,null,null,null,null,null,null,null,null,null,null,null,null,null,null,null,null,null,null,null,null,712,"JOHNSTON ISLAND","Pitcairn Island","JOHNSTON ISLAND","Pitcairn Island - JOHNSTON ISLAND",0,0,0,0,0,0,0,0,0,0,0,0,0,3,293,4184,3825,442,12,0]
[null,null,null,null,null,null,null,null,null,null,null,null,null,null,null,null,null,null,null,null,null,null,null,null,null,null,null,null,null,null,null,713,"WARSAW","Poland","WARSAW","Poland - WARSAW",41,50,103,193,229,548,1056,1061,676,909,989,990,818,404,378,215,77,18,5,1]
[null,null,null,null,null,null,null,null,null,null,null,null,null,null,null,null,null,null,null,null,null,null,null,null,null,null,null,null,null,null,null,714,"LISBON,","Portugal","LISBON,","Portugal - LISBON,",0,0,0,0,0,0,3,48,149,714,1493,1936,1777,856,831,527,250,87,66,23]
[null,null,null,null,null,null,null,null,null,null,null,null,null,null,null,null,null,null,null,null,null,null,null,null,null,null,null,null,null,null,null,715,"AQUADILLA","Puerto Rico","AQUADILLA","Puerto Rico - AQUADILLA",0,0,0,0,0,0,0,0,0,0,0,0,6,329,1987,3137,2476,812,13,0]
[null,null,null,null,null,null,null,null,null,null,null,null,null,null,null,null,null,null,null,null,null,null,null,null,null,null,null,null,null,null,null,716,"ROOSEVELT ROADS NAS","Puerto Rico","ROOSEVELT ROADS NAS","Puerto Rico - ROOSEVELT ROADS NAS",0,0,0,0,0,0,0,0,0,0,0,0,4,69,764,3242,3453,1149,79,0]
[null,null,null,null,null,null,null,null,null,null,null,null,null,null,null,null,null,null,null,null,null,null,null,null,null,null,null,null,null,null,null,717,"SAN JUAN","Puerto Rico","SAN JUAN","Puerto Rico - SAN JUAN",0,0,0,0,0,0,0,0,0,0,0,0,0,45,1001,3217,2879,1460,157,2]
[null,null,null,null,null,null,null,null,null,null,null,null,null,null,null,null,null,null,null,null,null,null,null,null,null,null,null,null,null,null,null,718,"MOSCOW","Russia","MOSCOW","Russia - MOSCOW",366,215,334,411,386,762,1089,795,450,663,873,833,694,326,331,171,52,7,2,0]
[null,null,null,null,null,null,null,null,null,null,null,null,null,null,null,null,null,null,null,null,null,null,null,null,null,null,null,null,null,null,null,719,"DHAHRAN","Saudi Arabia","DHAHRAN","Saudi Arabia - DHAHRAN",0,0,0,0,0,0,0,2,16,127,328,620,827,687,931,859,1098,774,872,1618]
[null,null,null,null,null,null,null,null,null,null,null,null,null,null,null,null,null,null,null,null,null,null,null,null,null,null,null,null,null,null,null,720,"RIYADH","Saudi Arabia","RIYADH","Saudi Arabia - RIYADH",0,0,0,0,0,0,1,15,52,220,438,639,753,562,773,823,988,715,845,1936]
[null,null,null,null,null,null,null,null,null,null,null,null,null,null,null,null,null,null,null,null,null,null,null,null,null,null,null,null,null,null,null,721,"SEYCHELLES","SEYCHELLES","SEYCHELLES","SEYCHELLES - SEYCHELLES",0,0,0,0,0,0,0,0,0,0,0,0,0,3,93,3777,4015,846,27,0]
[null,null,null,null,null,null,null,null,null,null,null,null,null,null,null,null,null,null,null,null,null,null,null,null,null,null,null,null,null,null,null,722,"SINGAPORE","Singapore","PAYALEBAR","Singapore - SINGAPORE",0,0,0,0,0,0,0,0,0,0,0,0,0,0,573,4123,2574,1288,201,2]
[null,null,null,null,null,null,null,null,null,null,null,null,null,null,null,null,null,null,null,null,null,null,null,null,null,null,null,null,null,null,null,723,"CAMP LAGUARDIA,","South Korea","CAMP LAGUARDIA,","South Korea - CAMP LAGUARDIA,",43,83,140,233,234,536,641,684,498,607,602,644,765,635,878,791,496,170,71,8]
[null,null,null,null,null,null,null,null,null,null,null,null,null,null,null,null,null,null,null,null,null,null,null,null,null,null,null,null,null,null,null,724,"CHUPUNGNYONG","South Korea","CHUPUNGNYONG","South Korea - CHUPUNGNYONG",0,15,69,187,308,548,740,755,592,641,658,711,774,766,903,610,320,123,38,2]
[null,null,null,null,null,null,null,null,null,null,null,null,null,null,null,null,null,null,null,null,null,null,null,null,null,null,null,null,null,null,null,725,"INCHON","South Korea","INCHON","South Korea - INCHON",1,20,78,202,279,500,692,757,611,626,662,716,778,763,961,755,268,75,16,1]
[null,null,null,null,null,null,null,null,null,null,null,null,null,null,null,null,null,null,null,null,null,null,null,null,null,null,null,null,null,null,null,726,"KANGNUNG","South Korea","KANGNUNG","South Korea - KANGNUNG",0,4,26,104,145,392,682,837,552,784,795,803,955,700,903,612,304,96,59,9]
[null,null,null,null,null,null,null,null,null,null,null,null,null,null,null,null,null,null,null,null,null,null,null,null,null,null,null,null,null,null,null,727,"KUNSAN","South Korea","KUNSAN","South Korea - KUNSAN",0,1,15,67,113,399,663,897,566,759,666,681,834,570,956,835,556,134,47,2]
[null,null,null,null,null,null,null,null,null,null,null,null,null,null,null,null,null,null,null,null,null,null,null,null,null,null,null,null,null,null,null,728,"KWANGJU","South Korea","KWANGJU","South Korea - KWANGJU",0,2,16,77,169,503,694,716,530,653,665,691,700,608,864,936,551,217,139,29]
[null,null,null,null,null,null,null,null,null,null,null,null,null,null,null,null,null,null,null,null,null,null,null,null,null,null,null,null,null,null,null,729,"MANGILSAN","South Korea","MANGILSAN","South Korea - MANGILSAN",0,6,54,189,217,504,784,820,471,640,692,781,953,719,1004,632,226,54,13,0]
[null,null,null,null,null,null,null,null,null,null,null,null,null,null,null,null,null,null,null,null,null,null,null,null,null,null,null,null,null,null,null,730,"MOSULPO","South Korea","MOSULPO","South Korea - MOSULPO",0,0,0,0,2,34,270,662,579,904,909,958,997,718,1086,1006,491,121,22,0]
[null,null,null,null,null,null,null,null,null,null,null,null,null,null,null,null,null,null,null,null,null,null,null,null,null,null,null,null,null,null,null,731,"OSAN","South Korea","(US/KOR-AFB)","South Korea - OSAN",28,51,118,255,248,567,684,767,433,651,602,617,759,525,950,809,486,132,69,7]
[null,null,null,null,null,null,null,null,null,null,null,null,null,null,null,null,null,null,null,null,null,null,null,null,null,null,null,null,null,null,null,732,"PUSAN","South Korea","PUSAN","South Korea - PUSAN",0,0,4,28,81,222,395,592,674,821,793,864,1002,948,1033,811,353,122,16,1]
[null,null,null,null,null,null,null,null,null,null,null,null,null,null,null,null,null,null,null,null,null,null,null,null,null,null,null,null,null,null,null,733,"PUSAN","South Korea","KIMHAE","South Korea - PUSAN",0,0,6,52,115,376,593,672,534,755,763,796,858,692,977,904,433,157,72,4]
[null,null,null,null,null,null,null,null,null,null,null,null,null,null,null,null,null,null,null,null,null,null,null,null,null,null,null,null,null,null,null,734,"PYONGTAEK","South Korea","PYONGTAEK","South Korea - PYONGTAEK",29,44,114,247,241,544,674,774,437,637,622,640,764,563,939,827,450,141,68,5]
[null,null,null,null,null,null,null,null,null,null,null,null,null,null,null,null,null,null,null,null,null,null,null,null,null,null,null,null,null,null,null,735,"SEOUL","South Korea","SEOUL","South Korea - SEOUL",1,25,89,208,209,448,642,730,470,630,650,705,753,615,1001,915,476,131,56,6]
[null,null,null,null,null,null,null,null,null,null,null,null,null,null,null,null,null,null,null,null,null,null,null,null,null,null,null,null,null,null,null,736,"SEOUL","South Korea","KIMPO","South Korea - SEOUL",15,51,134,260,255,536,736,731,464,641,654,684,735,578,937,823,385,100,40,2]
[null,null,null,null,null,null,null,null,null,null,null,null,null,null,null,null,null,null,null,null,null,null,null,null,null,null,null,null,null,null,null,737,"SEOUL EAST","South Korea","SEOUL EAST","South Korea - SEOUL EAST",25,48,119,218,237,489,671,720,456,661,660,693,720,574,907,835,467,159,83,16]
[null,null,null,null,null,null,null,null,null,null,null,null,null,null,null,null,null,null,null,null,null,null,null,null,null,null,null,null,null,null,null,738,"TAEGU","South Korea","TAEGU","South Korea - TAEGU",0,5,37,136,206,481,620,674,510,679,666,701,751,635,846,826,530,232,169,56]
[null,null,null,null,null,null,null,null,null,null,null,null,null,null,null,null,null,null,null,null,null,null,null,null,null,null,null,null,null,null,null,739,"TAEJON","South Korea","TAEJON","South Korea - TAEJON",4,28,96,215,244,565,702,743,467,639,640,646,679,557,907,861,482,170,107,9]
[null,null,null,null,null,null,null,null,null,null,null,null,null,null,null,null,null,null,null,null,null,null,null,null,null,null,null,null,null,null,null,740,"ALICANTE","Spain","ALICANTE","Spain - ALICANTE",0,0,0,0,0,0,5,66,170,586,1116,1373,1383,917,1216,1022,638,206,55,7]
[null,null,null,null,null,null,null,null,null,null,null,null,null,null,null,null,null,null,null,null,null,null,null,null,null,null,null,null,null,null,null,741,"BARCELONA","Spain","BARCELONA","Spain - BARCELONA",0,0,0,0,1,5,52,296,461,1008,1368,1432,1222,846,1005,704,328,30,2,0]
[null,null,null,null,null,null,null,null,null,null,null,null,null,null,null,null,null,null,null,null,null,null,null,null,null,null,null,null,null,null,null,742,"CORDOBA,","Spain","CORDOBA,","Spain - CORDOBA,",0,0,0,0,4,22,117,267,360,716,1063,1232,1187,786,782,618,499,314,361,431]
[null,null,null,null,null,null,null,null,null,null,null,null,null,null,null,null,null,null,null,null,null,null,null,null,null,null,null,null,null,null,null,743,"MADRID","Spain","MADRID","Spain - MADRID",0,0,0,4,23,166,355,607,660,1177,1211,1058,921,554,624,494,387,223,210,87]
[null,null,null,null,null,null,null,null,null,null,null,null,null,null,null,null,null,null,null,null,null,null,null,null,null,null,null,null,null,null,null,744,"MAHON","Spain","MAHON","Spain - MAHON",0,0,0,0,0,0,4,28,131,695,1528,1693,1262,874,1260,861,352,61,11,1]
[null,null,null,null,null,null,null,null,null,null,null,null,null,null,null,null,null,null,null,null,null,null,null,null,null,null,null,null,null,null,null,745,"MALAGA","Spain","MALAGA","Spain - MALAGA",0,0,0,0,0,0,4,56,158,537,1049,1584,1489,976,1223,968,506,118,64,28]
[null,null,null,null,null,null,null,null,null,null,null,null,null,null,null,null,null,null,null,null,null,null,null,null,null,null,null,null,null,null,null,746,"MORON AB","Spain","MORON AB","Spain - MORON AB",0,0,0,0,2,16,106,246,346,670,1059,1330,1313,850,830,604,475,311,327,276]
[null,null,null,null,null,null,null,null,null,null,null,null,null,null,null,null,null,null,null,null,null,null,null,null,null,null,null,null,null,null,null,747,"ROTA NAVAL STATION","Spain","ROTA NAVAL STATION","Spain - ROTA NAVAL STATION",0,0,0,0,0,0,6,74,146,526,896,1441,1783,982,1392,801,429,135,115,31]
[null,null,null,null,null,null,null,null,null,null,null,null,null,null,null,null,null,null,null,null,null,null,null,null,null,null,null,null,null,null,null,748,"SEVILLA","Spain","SEVILLA","Spain - SEVILLA",0,0,0,0,0,3,37,172,267,669,1118,1329,1295,835,962,704,499,288,304,278]
[null,null,null,null,null,null,null,null,null,null,null,null,null,null,null,null,null,null,null,null,null,null,null,null,null,null,null,null,null,null,null,749,"TORREJON","Spain","(USAFB)","Spain - TORREJON",0,0,0,5,24,169,399,775,631,1318,1180,993,963,447,612,418,382,173,196,75]
[null,null,null,null,null,null,null,null,null,null,null,null,null,null,null,null,null,null,null,null,null,null,null,null,null,null,null,null,null,null,null,750,"VALENCIA","Spain","VALENCIA","Spain - VALENCIA",0,0,0,0,0,2,44,200,297,767,1189,1334,1276,869,1139,901,539,159,36,9]
[null,null,null,null,null,null,null,null,null,null,null,null,null,null,null,null,null,null,null,null,null,null,null,null,null,null,null,null,null,null,null,751,"ZARAGOZA AB","Spain","ZARAGOZA AB","Spain - ZARAGOZA AB",0,0,0,0,5,70,245,512,610,1134,1268,1117,1100,661,782,532,370,161,134,61]
[null,null,null,null,null,null,null,null,null,null,null,null,null,null,null,null,null,null,null,null,null,null,null,null,null,null,null,null,null,null,null,752,"ZANDERY","Suriname","PARAMARIBO","Suriname - ZANDERY",0,0,0,0,0,0,0,0,0,0,0,0,1,75,1881,3601,1413,995,740,53]
[null,null,null,null,null,null,null,null,null,null,null,null,null,null,null,null,null,null,null,null,null,null,null,null,null,null,null,null,null,null,null,753,"STOCKHOLM","Sweden","STOCKHOLM","Sweden - STOCKHOLM",65,69,130,235,308,669,1154,1155,703,866,973,966,712,358,253,109,28,5,1,0]
[null,null,null,null,null,null,null,null,null,null,null,null,null,null,null,null,null,null,null,null,null,null,null,null,null,null,null,null,null,null,null,754,"GENEVA","Switzerland","GENEVA","Switzerland - GENEVA",0,3,9,28,67,334,872,1097,848,1112,1102,1047,875,469,451,274,128,34,9,0]
[null,null,null,null,null,null,null,null,null,null,null,null,null,null,null,null,null,null,null,null,null,null,null,null,null,null,null,null,null,null,null,755,"CHIANG MAI","Tailand","CHIANG MAI","Tailand - CHIANG MAI",0,0,0,0,0,0,0,0,1,8,55,232,483,508,1187,2543,1817,1009,649,267]
[null,null,null,null,null,null,null,null,null,null,null,null,null,null,null,null,null,null,null,null,null,null,null,null,null,null,null,null,null,null,null,756,"CHIAYI","Tailand","CHIAYI","Tailand - CHIAYI",0,0,0,0,0,0,0,2,7,67,267,681,1054,743,1336,2002,1494,649,450,9]
[null,null,null,null,null,null,null,null,null,null,null,null,null,null,null,null,null,null,null,null,null,null,null,null,null,null,null,null,null,null,null,757,"SUNGSHAN","Taiwan","TAIPEI","Taiwan - SUNGSHAN",0,0,0,0,0,0,0,1,8,62,299,797,1254,909,1327,1678,1396,569,430,29]
[null,null,null,null,null,null,null,null,null,null,null,null,null,null,null,null,null,null,null,null,null,null,null,null,null,null,null,null,null,null,null,758,"TAICHUNG","Taiwan","TAICHUNG","Taiwan - TAICHUNG",0,0,0,0,0,0,0,2,18,113,386,823,1056,741,1352,1841,1329,619,462,18]
[null,null,null,null,null,null,null,null,null,null,null,null,null,null,null,null,null,null,null,null,null,null,null,null,null,null,null,null,null,null,null,759,"TAINAN","Taiwan","TAINAN","Taiwan - TAINAN",0,0,0,0,0,0,0,0,2,25,152,504,910,679,1255,2017,1989,883,342,2]
[null,null,null,null,null,null,null,null,null,null,null,null,null,null,null,null,null,null,null,null,null,null,null,null,null,null,null,null,null,null,null,760,"WUCHIA OBSERVATORY,","Taiwan","WUCHIA OBSERVATORY,","Taiwan - WUCHIA OBSERVATORY,",0,0,0,0,0,0,0,2,11,137,464,946,1173,788,1514,1929,1166,503,126,1]
[null,null,null,null,null,null,null,null,null,null,null,null,null,null,null,null,null,null,null,null,null,null,null,null,null,null,null,null,null,null,null,761,"BANGKOK","Thailand","DON MUANG","Thailand - BANGKOK",0,0,0,0,0,0,0,0,0,0,1,11,45,125,485,2153,2903,1501,1227,311]
[null,null,null,null,null,null,null,null,null,null,null,null,null,null,null,null,null,null,null,null,null,null,null,null,null,null,null,null,null,null,null,762,"KORAT","Thailand","NAKHON RATCHA","Thailand - KORAT",0,0,0,0,0,0,0,0,0,2,9,55,192,331,837,2683,2103,1276,867,404]
[null,null,null,null,null,null,null,null,null,null,null,null,null,null,null,null,null,null,null,null,null,null,null,null,null,null,null,null,null,null,null,763,"NAKHON PHANOM","Thailand","NAKHON PHANOM","Thailand - NAKHON PHANOM",0,0,0,0,0,0,0,1,2,10,35,130,381,452,1067,2569,2193,1069,642,209]
[null,null,null,null,null,null,null,null,null,null,null,null,null,null,null,null,null,null,null,null,null,null,null,null,null,null,null,null,null,null,null,764,"UBON","Thailand","RATCHATHANI","Thailand - UBON",0,0,0,0,0,0,0,0,0,0,5,61,255,392,908,2341,2316,1316,845,320]
[null,null,null,null,null,null,null,null,null,null,null,null,null,null,null,null,null,null,null,null,null,null,null,null,null,null,null,null,null,null,null,765,"UDON THANI","Thailand","UDON THANI","Thailand - UDON THANI",0,0,0,0,0,0,0,0,1,11,33,104,306,417,896,2263,2430,1210,788,301]
[null,null,null,null,null,null,null,null,null,null,null,null,null,null,null,null,null,null,null,null,null,null,null,null,null,null,null,null,null,null,null,766,"TUNIS","Tunisia","CARTHAGE","Tunisia - TUNIS",0,0,0,0,0,0,1,22,130,635,1234,1433,1222,845,1119,947,631,289,185,67]
[null,null,null,null,null,null,null,null,null,null,null,null,null,null,null,null,null,null,null,null,null,null,null,null,null,null,null,null,null,null,null,767,"ADANA","Turkey","INCIRLIK AFB","Turkey - ADANA",0,0,0,0,0,7,69,232,324,768,1019,989,977,676,960,1019,748,477,391,104]
[null,null,null,null,null,null,null,null,null,null,null,null,null,null,null,null,null,null,null,null,null,null,null,null,null,null,null,null,null,null,null,768,"ANKARA","Turkey","ANKARA","Turkey - ANKARA",43,43,87,179,248,556,867,865,641,883,890,850,756,474,541,420,266,101,47,5]
[null,null,null,null,null,null,null,null,null,null,null,null,null,null,null,null,null,null,null,null,null,null,null,null,null,null,null,null,null,null,null,769,"BALIKESIR","Turkey","BALIKESIR","Turkey - BALIKESIR",0,0,2,13,46,188,421,692,712,936,966,957,930,660,781,604,475,209,122,43]
[null,null,null,null,null,null,null,null,null,null,null,null,null,null,null,null,null,null,null,null,null,null,null,null,null,null,null,null,null,null,null,770,"DIYARBAKIR","Turkey","DIYARBAKIR","Turkey - DIYARBAKIR",6,7,15,44,86,251,517,696,619,825,774,680,648,476,637,635,547,351,419,526]
[null,null,null,null,null,null,null,null,null,null,null,null,null,null,null,null,null,null,null,null,null,null,null,null,null,null,null,null,null,null,null,771,"ESKISEHIR","Turkey","ESKISEHIR","Turkey - ESKISEHIR",4,14,48,115,184,468,828,826,615,852,898,967,869,555,586,465,292,112,53,9]
[null,null,null,null,null,null,null,null,null,null,null,null,null,null,null,null,null,null,null,null,null,null,null,null,null,null,null,null,null,null,null,772,"GOLCUK","Turkey","GOLCUK","Turkey - GOLCUK",0,0,0,1,3,37,217,563,758,1020,967,973,1018,886,954,650,457,188,58,10]
[null,null,null,null,null,null,null,null,null,null,null,null,null,null,null,null,null,null,null,null,null,null,null,null,null,null,null,null,null,null,null,773,"ISTANBUL","Turkey","ISTANBUL","Turkey - ISTANBUL",0,0,0,1,7,57,240,635,768,1091,1084,1003,987,788,1017,681,323,63,13,2]
[null,null,null,null,null,null,null,null,null,null,null,null,null,null,null,null,null,null,null,null,null,null,null,null,null,null,null,null,null,null,null,774,"IZMIR","Turkey","IZMIR","Turkey - IZMIR",0,0,0,0,2,41,204,405,434,841,1089,1100,1046,735,896,739,571,325,258,74]
[null,null,null,null,null,null,null,null,null,null,null,null,null,null,null,null,null,null,null,null,null,null,null,null,null,null,null,null,null,null,null,775,"MALATYA","Turkey","MALATYA","Turkey - MALATYA",15,20,45,117,176,409,674,807,598,772,756,692,681,493,634,610,500,299,296,165]
[null,null,null,null,null,null,null,null,null,null,null,null,null,null,null,null,null,null,null,null,null,null,null,null,null,null,null,null,null,null,null,776,"SAMSUN CITY","Turkey","SAMSUN CITY","Turkey - SAMSUN CITY",0,0,0,0,3,23,143,523,828,1202,1059,1016,1099,941,1045,719,148,8,1,0]
[null,null,null,null,null,null,null,null,null,null,null,null,null,null,null,null,null,null,null,null,null,null,null,null,null,null,null,null,null,null,null,777,"SINOP","Turkey","SINOP","Turkey - SINOP",0,0,0,0,2,18,117,489,937,1360,1107,1016,1055,948,1066,532,108,7,0,0]
[null,null,null,null,null,null,null,null,null,null,null,null,null,null,null,null,null,null,null,null,null,null,null,null,null,null,null,null,null,null,null,778,"ABERDEEN","United Kingdom","ABERDEEN,","United Kingdom - ABERDEEN",1,4,6,15,28,125,632,1431,1466,1617,1621,1117,475,148,61,11,1,0,0,0]
[null,null,null,null,null,null,null,null,null,null,null,null,null,null,null,null,null,null,null,null,null,null,null,null,null,null,null,null,null,null,null,779,"BENSON RAF","United Kingdom","BENSON RAF","United Kingdom - BENSON RAF",0,1,2,11,41,163,525,912,1111,1581,1501,1294,840,384,239,108,36,8,4,0]
[null,null,null,null,null,null,null,null,null,null,null,null,null,null,null,null,null,null,null,null,null,null,null,null,null,null,null,null,null,null,null,780,"BENTWATERS","United Kingdom","BENTWATERS","United Kingdom - BENTWATERS",0,0,0,2,10,86,414,1051,1044,1650,1446,1343,1074,352,228,49,8,1,0,0]
[null,null,null,null,null,null,null,null,null,null,null,null,null,null,null,null,null,null,null,null,null,null,null,null,null,null,null,null,null,null,null,781,"BRIZE NORTON","United Kingdom","BRIZE NORTON","United Kingdom - BRIZE NORTON",0,0,1,9,31,162,547,940,1120,1566,1534,1287,821,378,227,97,30,9,2,0]
[null,null,null,null,null,null,null,null,null,null,null,null,null,null,null,null,null,null,null,null,null,null,null,null,null,null,null,null,null,null,null,782,"CHURCH LAWFORD","United Kingdom","CHURCH LAWFORD","United Kingdom - CHURCH LAWFORD",0,0,1,7,45,175,560,1001,1344,1479,1516,1202,762,379,183,76,24,5,0,0]
[null,null,null,null,null,null,null,null,null,null,null,null,null,null,null,null,null,null,null,null,null,null,null,null,null,null,null,null,null,null,null,783,"EDINBURGH","United Kingdom","EDINBURGH","United Kingdom - EDINBURGH",1,5,7,19,44,152,559,1198,1307,1638,1620,1268,644,201,75,17,3,0,0,0]
[null,null,null,null,null,null,null,null,null,null,null,null,null,null,null,null,null,null,null,null,null,null,null,null,null,null,null,null,null,null,null,784,"FLYINGDALES","United Kingdom","FLYINGDALES","United Kingdom - FLYINGDALES",0,0,0,7,25,219,1036,1509,1418,1619,1433,900,389,126,63,13,1,0,0,0]
[null,null,null,null,null,null,null,null,null,null,null,null,null,null,null,null,null,null,null,null,null,null,null,null,null,null,null,null,null,null,null,785,"LEUCHARS RAF","United Kingdom","LEUCHARS RAF","United Kingdom - LEUCHARS RAF",0,0,3,9,30,131,608,1289,1385,1631,1610,1237,574,173,66,11,2,0,0,0]
[null,null,null,null,null,null,null,null,null,null,null,null,null,null,null,null,null,null,null,null,null,null,null,null,null,null,null,null,null,null,null,786,"LONDON","United Kingdom","HEATHROW","United Kingdom - LONDON",0,0,0,2,17,101,389,824,1026,1494,1493,1369,1002,509,320,145,50,15,4,0]
[null,null,null,null,null,null,null,null,null,null,null,null,null,null,null,null,null,null,null,null,null,null,null,null,null,null,null,null,null,null,null,787,"LONDON","United Kingdom","GATWICK","United Kingdom - LONDON",0,0,2,11,40,181,520,861,1083,1591,1479,1297,890,409,243,108,34,8,2,0]
[null,null,null,null,null,null,null,null,null,null,null,null,null,null,null,null,null,null,null,null,null,null,null,null,null,null,null,null,null,null,null,788,"MILDENHALL RAF","United Kingdom","MILDENHALL RAF","United Kingdom - MILDENHALL RAF",0,0,1,9,19,131,446,1092,786,1668,1530,1245,1007,321,329,122,42,7,3,0]
[null,null,null,null,null,null,null,null,null,null,null,null,null,null,null,null,null,null,null,null,null,null,null,null,null,null,null,null,null,null,null,789,"NORTHOLT RAF,","United Kingdom","NORTHOLT RAF,","United Kingdom - NORTHOLT RAF,",0,0,1,4,26,120,394,785,1012,1457,1519,1364,991,512,339,159,57,14,4,0]
[null,null,null,null,null,null,null,null,null,null,null,null,null,null,null,null,null,null,null,null,null,null,null,null,null,null,null,null,null,null,null,790,"PRESTWICK","United Kingdom","PRESTWICK","United Kingdom - PRESTWICK",0,0,3,12,35,147,470,981,1273,1837,1722,1421,609,152,68,23,5,0,0,0]
[null,null,null,null,null,null,null,null,null,null,null,null,null,null,null,null,null,null,null,null,null,null,null,null,null,null,null,null,null,null,null,791,"WOODBRIDGE RAF","United Kingdom","WOODBRIDGE RAF","United Kingdom - WOODBRIDGE RAF",0,0,0,3,8,86,420,1007,1019,1563,1395,1404,1147,390,249,59,9,1,0,0]
[null,null,null,null,null,null,null,null,null,null,null,null,null,null,null,null,null,null,null,null,null,null,null,null,null,null,null,null,null,null,null,792,"CARRASCO","Uruguay","CARRASCO","Uruguay - CARRASCO",0,0,0,0,0,1,35,148,266,779,1297,1410,1487,1118,1222,628,256,75,32,6]
[null,null,null,null,null,null,null,null,null,null,null,null,null,null,null,null,null,null,null,null,null,null,null,null,null,null,null,null,null,null,null,793,"DA NANG","Vietnam","DA NANG","Vietnam - DA NANG",0,0,0,0,0,0,0,0,0,0,1,14,160,562,1619,2693,2159,865,544,143]
[null,null,null,null,null,null,null,null,null,null,null,null,null,null,null,null,null,null,null,null,null,null,null,null,null,null,null,null,null,null,null,794,"HO CHI MINH","Vietnam","TANSONN","Vietnam - HO CHI MINH",0,0,0,0,0,0,0,0,0,0,0,0,5,61,465,3120,2786,1437,818,68]
[null,null,null,null,null,null,null,null,null,null,null,null,null,null,null,null,null,null,null,null,null,null,null,null,null,null,null,null,null,null,null,795,"WAKE ISLAND AIRFLD","Wake Island","WAKE ISLAND AIRFLD","Wake Island - WAKE ISLAND AIRFLD",0,0,0,0,0,0,0,0,0,0,0,0,0,16,676,3207,3586,1224,51,0]
[null,null,null,null,null,null,null,null,null,null,null,null,null,null,null,null,null,null,null,null,null,null,null,null,null,null,null,null,null,null,null,796,"BELGRADE","Yugoslavia","BELGRADE","Yugoslavia - BELGRADE",2,13,36,94,150,406,801,842,621,803,857,987,1013,603,643,453,271,99,53,14]
[null,null,null,null,null,null,null,null,null,null,null,null,null,null,null,null,null,null,null,null,null,null,null,null,null,null,null,null,null,null,null,797,"FAIRBANKS","Alaska","FAIRBANKS","Alaska - FAIRBANKS",2081,422,418,421,393,409,474,455,460,535,677,668,552,375,235,124,46,10,2,0]
[null,null,null,null,null,null,null,null,null,null,null,null,null,null,null,null,null,null,null,null,null,null,null,null,null,null,null,null,null,null,null,798,"GREENVILLE","South Carolina","SPARTANBURG","South Carolina - GREENVILLE",1,3,8,31,78,193,364,507,652,714,769,772,864,994,1127,704,527,304,121,27]
[null,null,null,null,null,null,null,null,null,null,null,null,null,null,null,null,null,null,null,null,null,null,null,null,null,null,null,null,null,null,null,799,"Bayinmaodao","China","Bayinmaodao","China - Bayinmaodao",461,409,503,520,380,537,503,438,450,335,562,642,665,488,661,510,391,259,46,0]
[null,null,null,null,null,null,null,null,null,null,null,null,null,null,null,null,null,null,null,null,null,null,null,null,null,null,null,null,null,null,null,800,"Beijing","China","Beijing","China - Beijing",0,63,170,330,339,659,714,599,450,322,537,648,630,371,805,853,638,378,147,107]
[null,null,null,null,null,null,null,null,null,null,null,null,null,null,null,null,null,null,null,null,null,null,null,null,null,null,null,null,null,null,null,801,"Changchun","China","Changchun","China - Changchun",828,575,507,479,283,445,496,397,502,360,503,670,734,506,744,490,192,40,9,0]
[null,null,null,null,null,null,null,null,null,null,null,null,null,null,null,null,null,null,null,null,null,null,null,null,null,null,null,null,null,null,null,802,"Changsha","China","Changsha","China - Changsha",0,0,0,0,3,71,287,588,867,646,690,768,620,591,947,906,766,554,225,231]
[null,null,null,null,null,null,null,null,null,null,null,null,null,null,null,null,null,null,null,null,null,null,null,null,null,null,null,null,null,null,null,803,"Chengdu","China","Chengdu","China - Chengdu",0,0,0,0,0,19,98,339,1045,595,938,1012,1172,622,1068,939,589,257,63,4]
[null,null,null,null,null,null,null,null,null,null,null,null,null,null,null,null,null,null,null,null,null,null,null,null,null,null,null,null,null,null,null,804,"Chongqing","China","Chongqing","China - Chongqing",0,0,0,0,0,0,1,54,676,820,1267,812,1064,741,906,908,684,419,191,217]
[null,null,null,null,null,null,null,null,null,null,null,null,null,null,null,null,null,null,null,null,null,null,null,null,null,null,null,null,null,null,null,805,"Dallan","China","Dallan","China - Dallan",0,37,196,296,375,597,716,688,511,354,661,745,785,679,1235,699,179,7,0,0]
[null,null,null,null,null,null,null,null,null,null,null,null,null,null,null,null,null,null,null,null,null,null,null,null,null,null,null,null,null,null,null,806,"Fuzhou","China","Fuzhou","China - Fuzhou",0,0,0,0,0,0,0,18,286,609,864,883,991,808,1144,1262,1132,541,160,62]
[null,null,null,null,null,null,null,null,null,null,null,null,null,null,null,null,null,null,null,null,null,null,null,null,null,null,null,null,null,null,null,807,"Ganzhou","China","Ganzhou","China - Ganzhou",0,0,0,0,0,5,151,276,665,464,683,754,706,615,1004,1242,1026,684,262,223]
[null,null,null,null,null,null,null,null,null,null,null,null,null,null,null,null,null,null,null,null,null,null,null,null,null,null,null,null,null,null,null,808,"Guanzhou","China","Guanzhou","China - Guanzhou",0,0,0,0,0,0,0,18,154,274,381,638,1045,802,1279,1656,1402,765,263,83]
[null,null,null,null,null,null,null,null,null,null,null,null,null,null,null,null,null,null,null,null,null,null,null,null,null,null,null,null,null,null,null,809,"Guilin","China","Guilin","China - Guilin",0,0,0,0,0,0,8,257,707,597,782,764,995,586,806,1749,897,461,120,31]
[null,null,null,null,null,null,null,null,null,null,null,null,null,null,null,null,null,null,null,null,null,null,null,null,null,null,null,null,null,null,null,810,"Guiyang","China","Guiyang","China - Guiyang",0,0,0,0,0,21,264,582,978,682,802,832,1231,824,1298,829,350,66,1,0]
[null,null,null,null,null,null,null,null,null,null,null,null,null,null,null,null,null,null,null,null,null,null,null,null,null,null,null,null,null,null,null,811,"Haikou","China","Haikou","China - Haikou",0,0,0,0,0,0,0,0,26,116,274,575,757,773,1320,2206,1590,712,263,148]
[null,null,null,null,null,null,null,null,null,null,null,null,null,null,null,null,null,null,null,null,null,null,null,null,null,null,null,null,null,null,null,812,"Hailar","China","Hailar","China - Hailar",2670,288,258,345,200,396,439,389,452,350,629,708,632,334,366,205,73,19,7,0]
[null,null,null,null,null,null,null,null,null,null,null,null,null,null,null,null,null,null,null,null,null,null,null,null,null,null,null,null,null,null,null,813,"Hangzhou","China","Hangzhou","China - Hangzhou",0,0,0,0,0,43,284,642,868,607,727,704,728,682,1163,1021,767,330,127,67]
[null,null,null,null,null,null,null,null,null,null,null,null,null,null,null,null,null,null,null,null,null,null,null,null,null,null,null,null,null,null,null,814,"Hanzhong","China","Hanzhong","China - Hanzhong",0,0,0,0,4,168,521,916,1052,409,725,790,830,711,1140,778,480,208,27,1]
[null,null,null,null,null,null,null,null,null,null,null,null,null,null,null,null,null,null,null,null,null,null,null,null,null,null,null,null,null,null,null,815,"Harbin","China","Harbin","China - Harbin",878,487,442,457,317,503,551,481,452,346,565,613,605,425,621,516,312,139,40,10]
[null,null,null,null,null,null,null,null,null,null,null,null,null,null,null,null,null,null,null,null,null,null,null,null,null,null,null,null,null,null,null,816,"Hefei","China","Hefei","China - Hefei",0,0,0,0,11,115,410,756,916,449,631,636,846,542,942,1010,782,456,144,114]
[null,null,null,null,null,null,null,null,null,null,null,null,null,null,null,null,null,null,null,null,null,null,null,null,null,null,null,null,null,null,null,817,"Hohhot","China","Hohhot","China - Hohhot",269,416,487,491,410,579,471,443,521,347,625,653,762,473,655,478,368,256,48,8]
[null,null,null,null,null,null,null,null,null,null,null,null,null,null,null,null,null,null,null,null,null,null,null,null,null,null,null,null,null,null,null,818,"Jinan","China","Jinan","China - Jinan",0,0,12,63,127,419,550,756,752,471,658,627,638,490,708,768,771,588,239,123]
[null,null,null,null,null,null,null,null,null,null,null,null,null,null,null,null,null,null,null,null,null,null,null,null,null,null,null,null,null,null,null,819,"Karamay","China","Karamay","China - Karamay",461,444,598,642,410,493,404,363,433,235,402,454,538,407,624,586,522,336,177,231]
[null,null,null,null,null,null,null,null,null,null,null,null,null,null,null,null,null,null,null,null,null,null,null,null,null,null,null,null,null,null,null,820,"Kunming","China","Kunming","China - Kunming",0,0,0,5,5,52,355,615,702,514,1109,1291,1678,970,942,422,100,0,0,0]
[null,null,null,null,null,null,null,null,null,null,null,null,null,null,null,null,null,null,null,null,null,null,null,null,null,null,null,null,null,null,null,821,"Lanzhou","China","Lanzhou","China - Lanzhou",0,9,85,286,348,776,804,762,625,345,610,829,916,528,670,540,334,193,43,57]
[null,null,null,null,null,null,null,null,null,null,null,null,null,null,null,null,null,null,null,null,null,null,null,null,null,null,null,null,null,null,null,822,"Lhasa","China","Lhasa","China - Lhasa",0,0,53,226,245,609,766,863,937,694,1380,1151,837,440,377,142,40,0,0,0]
[null,null,null,null,null,null,null,null,null,null,null,null,null,null,null,null,null,null,null,null,null,null,null,null,null,null,null,null,null,null,null,823,"Mohe","China","Mohe","China - Mohe",2677,331,321,288,238,465,504,518,529,333,549,535,413,285,353,283,116,20,2,0]
[null,null,null,null,null,null,null,null,null,null,null,null,null,null,null,null,null,null,null,null,null,null,null,null,null,null,null,null,null,null,null,824,"Nanchang","China","Nanchang","China - Nanchang",0,0,0,0,0,25,182,490,840,649,675,746,732,485,891,1011,908,648,257,221]
[null,null,null,null,null,null,null,null,null,null,null,null,null,null,null,null,null,null,null,null,null,null,null,null,null,null,null,null,null,null,null,825,"Nanjing","China","Nanjing","China - Nanjing",0,0,0,54,124,367,541,854,743,427,676,735,718,441,883,775,744,419,161,98]
[null,null,null,null,null,null,null,null,null,null,null,null,null,null,null,null,null,null,null,null,null,null,null,null,null,null,null,null,null,null,null,826,"Nanning","China","Nanning","China - Nanning",0,0,0,0,0,0,0,4,135,239,503,702,871,921,1191,1745,1373,721,223,132]
[null,null,null,null,null,null,null,null,null,null,null,null,null,null,null,null,null,null,null,null,null,null,null,null,null,null,null,null,null,null,null,827,"Qionghai","China","Qionghai","China - Qionghai",0,0,0,0,0,0,0,0,0,97,244,529,677,757,1404,2362,1581,743,244,122]
[null,null,null,null,null,null,null,null,null,null,null,null,null,null,null,null,null,null,null,null,null,null,null,null,null,null,null,null,null,null,null,828,"Shanghai","China","Shanghai","China - Shanghai",0,0,0,0,5,87,360,548,963,551,754,717,744,615,888,932,861,447,161,127]
[null,null,null,null,null,null,null,null,null,null,null,null,null,null,null,null,null,null,null,null,null,null,null,null,null,null,null,null,null,null,null,829,"Shenyang","China","Shenyang","China - Shenyang",440,244,363,420,301,539,661,556,536,343,590,598,665,372,638,668,470,302,51,3]
[null,null,null,null,null,null,null,null,null,null,null,null,null,null,null,null,null,null,null,null,null,null,null,null,null,null,null,null,null,null,null,830,"Shijazhuang","China","Shijazhuang","China - Shijazhuang",0,0,36,118,248,636,621,639,713,407,518,698,704,405,673,870,663,471,188,152]
[null,null,null,null,null,null,null,null,null,null,null,null,null,null,null,null,null,null,null,null,null,null,null,null,null,null,null,null,null,null,null,831,"Taiyuan","China","Taiyuan","China - Taiyuan",14,64,199,306,329,628,680,696,724,429,603,727,843,610,831,550,405,109,13,0]
[null,null,null,null,null,null,null,null,null,null,null,null,null,null,null,null,null,null,null,null,null,null,null,null,null,null,null,null,null,null,null,832,"Tianjin","China","Tianjin","China - Tianjin",18,34,97,274,371,576,626,647,616,403,569,679,703,422,744,801,599,386,129,66]
[null,null,null,null,null,null,null,null,null,null,null,null,null,null,null,null,null,null,null,null,null,null,null,null,null,null,null,null,null,null,null,833,"Turpan","China","Turpan","China - Turpan",181,272,347,378,259,521,562,478,421,283,375,406,447,319,582,685,631,545,309,759]
[null,null,null,null,null,null,null,null,null,null,null,null,null,null,null,null,null,null,null,null,null,null,null,null,null,null,null,null,null,null,null,834,"Urumqi","China","Urumqi","China - Urumqi",838,351,407,449,299,428,531,438,389,321,475,584,656,509,748,560,428,239,82,28]
[null,null,null,null,null,null,null,null,null,null,null,null,null,null,null,null,null,null,null,null,null,null,null,null,null,null,null,null,null,null,null,835,"Wuhan","China","Wuhan","China - Wuhan",0,0,0,0,0,39,345,757,747,417,650,663,840,545,806,918,915,708,245,165]
[null,null,null,null,null,null,null,null,null,null,null,null,null,null,null,null,null,null,null,null,null,null,null,null,null,null,null,null,null,null,null,836,"Xiamen","China","Xiamen","China - Xiamen",0,0,0,0,0,0,0,0,64,347,836,1024,894,796,1251,1597,1209,541,171,30]
[null,null,null,null,null,null,null,null,null,null,null,null,null,null,null,null,null,null,null,null,null,null,null,null,null,null,null,null,null,null,null,837,"Xi'an","China","Xi'an","China - Xi'an",0,0,0,18,142,552,753,753,617,447,642,676,882,595,869,748,544,391,88,43]
[null,null,null,null,null,null,null,null,null,null,null,null,null,null,null,null,null,null,null,null,null,null,null,null,null,null,null,null,null,null,null,838,"Xining","China","Xining","China - Xining",119,265,450,616,450,701,707,703,729,621,908,918,592,311,353,190,66,35,21,5]
[null,null,null,null,null,null,null,null,null,null,null,null,null,null,null,null,null,null,null,null,null,null,null,null,null,null,null,null,null,null,null,839,"Yinchuan","China","Yinchuan","China - Yinchuan",17,129,335,460,406,743,649,526,627,435,635,609,916,617,694,498,324,128,12,0]
[null,null,null,null,null,null,null,null,null,null,null,null,null,null,null,null,null,null,null,null,null,null,null,null,null,null,null,null,null,null,null,840,"Yuncheng","China","Yuncheng","China - Yuncheng",0,0,11,114,195,443,663,677,708,498,655,673,658,383,606,711,738,533,214,280]
[null,null,null,null,null,null,null,null,null,null,null,null,null,null,null,null,null,null,null,null,null,null,null,null,null,null,null,null,null,null,null,841,"Zhangbei","China","Zhangbei","China - Zhangbei",729,462,612,630,390,549,486,554,561,425,723,834,813,358,457,175,2,0,0,0]
[null,null,null,null,null,null,null,null,null,null,null,null,null,null,null,null,null,null,null,null,null,null,null,null,null,null,null,null,null,null,null,842,"Zhengzhou","China","Zhengzhou","China - Zhengzhou",5,12,34,145,269,595,761,624,490,398,645,611,698,570,871,810,619,386,129,88]